College_Name,Check_Number,Payee,Date,Amount,Funding_Source,Purpose
Coastal Alabama CC,!0000001,Childress Christa,7/16/2020,98.9,Unrestricted-Monroeville,Mileage - IS
Coastal Alabama CC,!0000001,Childress Christa,7/16/2020,98.9,Unrestricted-Monroeville,Mileage - OS
Coastal Alabama CC,!0000002,Ellison Kay,7/31/2020,248.15,Unrestricted -Bay Minette,Mileage - IS
Coastal Alabama CC,!0000003,Horton Jana,7/31/2020,1262.7,Unrestricted-Monroeville,Mileage - IS
Coastal Alabama CC,!0000004,Howard Ernestine,7/31/2020,889.64,Unrestricted-Monroeville,Mileage - IS
Coastal Alabama CC,!0000005,Jordan Rachael,7/31/2020,92,Unrestricted-Fairhope,Mileage - IS
Coastal Alabama CC,!0000006,Scarborough Tiffany,7/31/2020,126.5,Unrestricted -Bay Minette,Mileage - IS
Coastal Alabama CC,!0000007,Watson Cody,7/31/2020,828,Unrestricted - Atmore,Mileage - IS
Coastal Alabama CC,!0000008,Wilson Kenneth,7/31/2020,400,Unrestricted -Bay Minette,Other Professional Fees - PS
Coastal Alabama CC,!0000009,C Spire Business ,7/31/2020,9416.66,Unrestricted -Brewton,Technology - non capitalized - MS
Coastal Alabama CC,!0000010,Dell Marketing LP ,7/31/2020,3610.52,Unrestricted -Bay Minette,Technology - non capitalized - MS
Coastal Alabama CC,!0000011,Ferguson Enterprises Inc ,7/31/2020,5844.29,Unrestricted -Bay Minette,Internal Purchases - MS
Coastal Alabama CC,!0000012,Xerox Financial Services LLC ,7/31/2020,149.64,Student Support Service -BM,Short-Term Equipment Rentals - OOS
Coastal Alabama CC,!0000012,Xerox Financial Services LLC ,7/31/2020,150.03,Unrestricted - Fountain,Short-Term Equipment Rentals - OOS
Coastal Alabama CC,!0000012,Xerox Financial Services LLC ,7/31/2020,162.36,Unrestricted - Atmore,Short-Term Equipment Rentals - OOS
Coastal Alabama CC,!0000012,Xerox Financial Services LLC ,7/31/2020,189.42,Unrestricted-Fairhope,Short-Term Equipment Rentals - OOS
Coastal Alabama CC,!0000012,Xerox Financial Services LLC ,7/31/2020,212.11,Unrestricted-Thomasville,Short-Term Equipment Rentals - OOS
Coastal Alabama CC,!0000012,Xerox Financial Services LLC ,7/31/2020,329.1,Unrestricted-Fairhope,Other Travel Expenses - OS
Coastal Alabama CC,!0000012,Xerox Financial Services LLC ,7/31/2020,471.96,Unrestricted - Brookley Field,Short-Term Equipment Rentals - OOS
Coastal Alabama CC,!0000012,Xerox Financial Services LLC ,7/31/2020,1097.56,Unrestricted -Brewton,Short-Term Equipment Rentals - OOS
Coastal Alabama CC,!0000012,Xerox Financial Services LLC ,7/31/2020,1217.32,Unrestricted -Bay Minette,Short-Term Equipment Rentals - OOS
Coastal Alabama CC,!0000013,Childress Christa,8/4/2020,31.54,Unrestricted-Monroeville,Mileage - IS
Coastal Alabama CC,!0000014,The Bank of New York Mellon Trust Company NA ,8/4/2020,1100,Unrestricted-Monroeville,Trustee Handling Fee - PS
Coastal Alabama CC,!0000015,Cosker Melanie,8/6/2020,63.83,Unrestricted-Monroeville,Mileage - IS
Coastal Alabama CC,!0000016,Diaz Courtney,8/6/2020,553.15,AE - State Regular,Mileage - IS
Coastal Alabama CC,!0000017,Dunnam Angela,8/6/2020,221.95,Unrestricted -Bay Minette,Mileage - IS
Coastal Alabama CC,!0000018,Fields Rebecca,8/6/2020,128.8,AE-Federal Regular,Mileage - IS
Coastal Alabama CC,!0000019,Fuqua James,8/6/2020,215.05,Unrestricted -Brewton,Mileage - IS
Coastal Alabama CC,!0000020,Johnson Regina,8/6/2020,441.6,Unrestricted-Monroeville,Mileage - IS
Coastal Alabama CC,!0000021,Joyner Holley,8/6/2020,339.6,Unrestricted-Monroeville,Mileage - IS
Coastal Alabama CC,!0000022,Moquin Crystal,8/6/2020,197.8,Unrestricted -Bay Minette,Mileage - IS
Coastal Alabama CC,!0000023,Amazon ,8/6/2020,394.68,Upward Bound TV,Materials and Supplies - MS
Coastal Alabama CC,!0000024,CDW LLC ,8/6/2020,71.6,Unrestricted -Bay Minette,Materials and Supplies - MS
Coastal Alabama CC,!0000024,CDW LLC ,8/6/2020,581.97,AE-Federal Regular,Materials and Supplies - MS
Coastal Alabama CC,!0000025,CDW LLC ,8/6/2020,303.8,AE - State Regular,Equipment - non capitalized - MS
Coastal Alabama CC,!0000025,CDW LLC ,8/6/2020,413.73,AE-Federal Regular,Materials and Supplies - MS
Coastal Alabama CC,!0000025,CDW LLC ,8/6/2020,455.54,AE-Fed Institutional,Materials and Supplies - MS
Coastal Alabama CC,!0000025,CDW LLC ,8/6/2020,3226.04,AE - State Regular,Materials and Supplies - MS
Coastal Alabama CC,!0000026,Dell Marketing LP ,8/6/2020,5960.85,Unrestricted -Bay Minette,Technology - non capitalized - MS
Coastal Alabama CC,!0000027,HESI ,8/6/2020,110,Unrestricted -Bay Minette,Other Professional Fees - PS
Coastal Alabama CC,!0000027,HESI ,8/6/2020,1024,Nurse Testing Fees,Deposits Held for Others – Testing
Coastal Alabama CC,!0000028,HESI ,8/6/2020,1888,Nursing Testing Fees,Deposits Held for Others – Testing
Coastal Alabama CC,!0000029,Global Furniture Group Inc ,8/6/2020,985,Upward Bound MR,Materials and Supplies - MS
Coastal Alabama CC,!0000030,Stericycle Inc ,8/6/2020,325,Unrestricted -Bay Minette,Other Contractual Services - PS
Coastal Alabama CC,!0000031,Xerox Financial Services LLC ,8/6/2020,368.1,Unrestricted -Gulf Shores,Short-Term Equipment Rentals - OOS
Coastal Alabama CC,!0000032,Bradley Vinson,8/13/2020,57.5,Unrestricted -Bay Minette,Mileage - IS
Coastal Alabama CC,!0000033,Duplantis Joshua,8/13/2020,319.5,Unrestricted-Fairhope,Mileage - IS
Coastal Alabama CC,!0000034,Payne Pamela,8/13/2020,25.3,Unrestricted-Fairhope,Mileage - IS
Coastal Alabama CC,!0000035,C Spire Business ,8/13/2020,3844.39,Unrestricted -Bay Minette,Technology - non capitalized - MS
Coastal Alabama CC,!0000036,HESI ,8/13/2020,1586,Unrestricted Shared Services,Other Professional Fees - PS
Coastal Alabama CC,!0000037,Ferguson Enterprises Inc ,8/13/2020,297.06,Unrestricted -Bay Minette,Maintenance & Repairs  - OOS
Coastal Alabama CC,!0000037,Ferguson Enterprises Inc ,8/13/2020,48561.94,CARES Act - College Relief,Internal Purchases - MS
Coastal Alabama CC,!0000038,Xerox Corporation ,8/13/2020,100.05,Unrestricted-Monroeville,Short-Term Equipment Rentals - OOS
Coastal Alabama CC,!0000039,Xerox Corporation ,8/13/2020,174.77,Unrestricted-Jackson,Short-Term Equipment Rentals - OOS
Coastal Alabama CC,!0000039,Xerox Corporation ,8/13/2020,176.7,Unrestricted - Atmore,Short-Term Equipment Rentals - OOS
Coastal Alabama CC,!0000039,Xerox Corporation ,8/13/2020,208.12,Unrestricted-Gilbertown,Short-Term Equipment Rentals - OOS
Coastal Alabama CC,!0000039,Xerox Corporation ,8/13/2020,217.61,Unrestricted-Monroeville,Short-Term Equipment Rentals - OOS
Coastal Alabama CC,!0000039,Xerox Corporation ,8/13/2020,690.69,Unrestricted-Thomasville,Short-Term Equipment Rentals - OOS
Coastal Alabama CC,!0000039,Xerox Corporation ,8/13/2020,2287.62,Unrestricted -Bay Minette,Short-Term Equipment Rentals - OOS
Coastal Alabama CC,!0000040,Lee Stuart,8/21/2020,408.25,Unrestricted-Thomasville,Mileage - IS
Coastal Alabama CC,!0000041,McLean Diane,8/21/2020,299.58,Unrestricted -Bay Minette,Other Travel Expenses - IS
Coastal Alabama CC,!0000042,Morris Sharon,8/21/2020,209.91,Courtesy Fund Br/At,Deposits Held for Others - Agency
Coastal Alabama CC,!0000043,Watson Cody,8/21/2020,207,Unrestricted - Atmore,Mileage - IS
Coastal Alabama CC,!0000044,CDW LLC ,8/21/2020,232.21,Unrestricted -Brewton,Technology - non capitalized - MS
Coastal Alabama CC,!0000045,CDW LLC ,8/21/2020,774.06,AE-Federal Regular,Computer Related M&S - MS
Coastal Alabama CC,!0000046,Cintas Corporation ,8/21/2020,105,Unrestricted-Monroeville,Other Contractual Services - PS
Coastal Alabama CC,!0000047,Cintas Corporation ,8/21/2020,35,Unrestricted-Monroeville,Other Contractual Services - PS
Coastal Alabama CC,!0000047,Cintas Corporation ,8/21/2020,140,Unrestricted-Thomasville,Other Contractual Services - PS
Coastal Alabama CC,!0000048,Cintas Corporation ,8/21/2020,62.75,Unrestricted - Atmore,Other Contractual Services - PS
Coastal Alabama CC,!0000048,Cintas Corporation ,8/21/2020,147.95,Unrestricted -Brewton,Other Contractual Services - PS
Coastal Alabama CC,!0000049,Ferguson Enterprises Inc ,8/21/2020,13526.94,CARES Act - College Relief,Internal Purchases - MS
Coastal Alabama CC,!0000050,Howard Technology Solutions ,8/21/2020,3225,Unrestricted -Bay Minette,Technology - non capitalized - MS
Coastal Alabama CC,!0000051,Pocket Nurse Enterprises Inc. ,8/21/2020,335.14,Nurse Lab Supplies,Deposits Held for Others - Agency
Coastal Alabama CC,!0000052,Xerox Corporation ,8/21/2020,175.9,Unrestricted -Bay Minette,Short-Term Equipment Rentals - OOS
Coastal Alabama CC,!0000053,Xerox Financial Services LLC ,8/21/2020,149.64,Student Support Service -BM,Short-Term Equipment Rentals - OOS
Coastal Alabama CC,!0000053,Xerox Financial Services LLC ,8/21/2020,150.03,Unrestricted - Fountain,Short-Term Equipment Rentals - OOS
Coastal Alabama CC,!0000053,Xerox Financial Services LLC ,8/21/2020,162.36,Unrestricted - Atmore,Short-Term Equipment Rentals - OOS
Coastal Alabama CC,!0000053,Xerox Financial Services LLC ,8/21/2020,212.11,Unrestricted-Thomasville,Short-Term Equipment Rentals - OOS
Coastal Alabama CC,!0000053,Xerox Financial Services LLC ,8/21/2020,368.1,Unrestricted -Gulf Shores,Short-Term Equipment Rentals - OOS
Coastal Alabama CC,!0000053,Xerox Financial Services LLC ,8/21/2020,471.96,Unrestricted - Brookley Field,Short-Term Equipment Rentals - OOS
Coastal Alabama CC,!0000053,Xerox Financial Services LLC ,8/21/2020,518.52,Unrestricted-Fairhope,Short-Term Equipment Rentals - OOS
Coastal Alabama CC,!0000053,Xerox Financial Services LLC ,8/21/2020,1097.56,Unrestricted -Brewton,Short-Term Equipment Rentals - OOS
Coastal Alabama CC,!0000053,Xerox Financial Services LLC ,8/21/2020,2725.32,Unrestricted -Bay Minette,Short-Term Equipment Rentals - OOS
Coastal Alabama CC,!0000054,Blubaugh Kaitlyn,8/25/2020,1800,Softball Booster Funds,Deposits Held for Others - Agency
Coastal Alabama CC,!0000055,Childress Christa,8/25/2020,31.89,Unrestricted-Monroeville,Conus (meals) - IS
Coastal Alabama CC,!0000055,Childress Christa,8/25/2020,287.05,Unrestricted-Monroeville,Mileage - IS
Coastal Alabama CC,!0000056,Duplantis Joshua,8/25/2020,370.88,Unrestricted Shared Services,Mileage - IS
Coastal Alabama CC,!0000057,Gilkerson Erica,8/25/2020,216.2,AE - State Regular,Mileage - IS
Coastal Alabama CC,!0000058,Amazon ,8/25/2020,-118.2,Upward Bound TV,Materials and Supplies - MS
Coastal Alabama CC,!0000058,Amazon ,8/25/2020,-57.99,Unrestricted -Brewton,Materials and Supplies - MS
Coastal Alabama CC,!0000058,Amazon ,8/25/2020,71.18,Unrestricted -Bay Minette,Materials and Supplies - MS
Coastal Alabama CC,!0000058,Amazon ,8/25/2020,291.79,Unrestricted-Fairhope,Materials and Supplies - MS
Coastal Alabama CC,!0000058,Amazon ,8/25/2020,594.85,WIOA,Materials and Supplies - MS
Coastal Alabama CC,!0000058,Amazon ,8/25/2020,883.76,Unrestricted - Brookley Field,Materials and Supplies - MS
Coastal Alabama CC,!0000058,Amazon ,8/25/2020,1487.94,WIOA,Computer Related M&S - MS
Coastal Alabama CC,!0000058,Amazon ,8/25/2020,4951.11,Local Grants And Contracts,Materials and Supplies - MS
Coastal Alabama CC,!0000058,Amazon ,8/25/2020,9180.22,CARES Act - College Relief,Internal Purchases - MS
Coastal Alabama CC,!0000059,CDW LLC ,8/25/2020,1176.12,Unrestricted-Monroeville,Technology - non capitalized - MS
Coastal Alabama CC,!0000059,CDW LLC ,8/25/2020,6246.05,AE-Federal Regular,Computer Related M&S - MS
Coastal Alabama CC,!0000059,CDW LLC ,8/25/2020,9993.68,AE - State Regular,Computer Related M&S - MS
Coastal Alabama CC,!0000060,HESI ,8/25/2020,1281,Unrestricted Shared Services,Other Professional Fees - PS
Coastal Alabama CC,!0000061,Xerox Corporation ,8/25/2020,175.9,Unrestricted -Fairhope Academy,Short-Term Equipment Rentals - OOS
Coastal Alabama CC,!0000061,Xerox Corporation ,8/25/2020,175.9,Unrestricted-Fairhope,Short-Term Equipment Rentals - OOS
Coastal Alabama CC,!0000062,Bezeredi Reba,8/28/2020,25.88,Unrestricted-Fairhope,Mileage - IS
Coastal Alabama CC,!0000063,Bezeredi Reba,8/28/2020,33.35,Unrestricted-Fairhope,Mileage - IS
Coastal Alabama CC,!0000064,Head Daniel,8/28/2020,1172.65,Unrestricted-Monroeville,Mileage - IS
Coastal Alabama CC,!0000065,Palamara Matthew,8/28/2020,405.8,AE-Federal Regular,Materials and Supplies - MS
Coastal Alabama CC,!0000066,Amazon ,8/28/2020,23.7,Unrestricted-Fairhope,Materials and Supplies - MS
Coastal Alabama CC,!0000066,Amazon ,8/28/2020,39.99,Unrestricted -Gulf Shores,Materials and Supplies - MS
Coastal Alabama CC,!0000066,Amazon ,8/28/2020,104.49,Unrestricted-Fairhope,Computer Related M&S - MS
Coastal Alabama CC,!0000066,Amazon ,8/28/2020,338.4,Housing- Bay Minette,Materials and Supplies - MS
Coastal Alabama CC,!0000066,Amazon ,8/28/2020,789,Housing - Brewton,Materials and Supplies - MS
Coastal Alabama CC,!0000066,Amazon ,8/28/2020,1339.3,Unrestricted-Monroeville,Books - CE
Coastal Alabama CC,!0000066,Amazon ,8/28/2020,12853.61,CARES Act - College Relief,Internal Purchases - MS
Coastal Alabama CC,!0000067,CDW LLC ,8/28/2020,1837.41,AE-Federal Regular,Materials and Supplies - MS
Coastal Alabama CC,!0000067,CDW LLC ,8/28/2020,6336.6,AE - State Regular,Computer Related M&S - MS
Coastal Alabama CC,!0000068,Ferguson Enterprises Inc ,8/28/2020,4507.13,CARES Act - College Relief,Internal Purchases - MS
Coastal Alabama CC,!0000069,Ferguson Enterprises Inc ,8/28/2020,13264.2,CARES Act - College Relief,Internal Purchases - MS
Coastal Alabama CC,!0000070,Pocket Nurse Enterprises Inc. ,8/28/2020,1889.44,Unrestricted -Brewton,Materials and Supplies - MS
Coastal Alabama CC,!0000070,Pocket Nurse Enterprises Inc. ,8/28/2020,3573.1,Nurse Lab Supplies,Deposits Held for Others - Agency
Coastal Alabama CC,!0000071,Xerox Corporation ,8/28/2020,175.9,Unrestricted -Brewton,Short-Term Equipment Rentals - OOS
Coastal Alabama CC,!0000071,Xerox Corporation ,8/28/2020,196.53,Unrestricted-Monroeville,Short-Term Equipment Rentals - OOS
Coastal Alabama CC,!0000073,Bradley Vinson,9/3/2020,115,Unrestricted -Bay Minette,Mileage - IS
Coastal Alabama CC,!0000074,Brasell Mary,9/3/2020,110.4,Talent Search MR,Mileage - IS
Coastal Alabama CC,!0000075,Brown Collins,9/3/2020,371.69,Unrestricted -Bay Minette,Materials and Supplies - MS
Coastal Alabama CC,!0000076,Burkett Kina,9/3/2020,115,Student Support Service -BR,Mileage - IS
Coastal Alabama CC,!0000077,Calhoun Brenda,9/3/2020,35.19,Unrestricted -Brewton,Mileage - IS
Coastal Alabama CC,!0000078,Cosker Melanie,9/3/2020,55.55,Unrestricted-Monroeville,Mileage - IS
Coastal Alabama CC,!0000079,Diaz Courtney,9/3/2020,261.05,AE - State Regular,Mileage - IS
Coastal Alabama CC,!0000080,Dunnam Angela,9/3/2020,121.9,Unrestricted -Bay Minette,Mileage - IS
Coastal Alabama CC,!0000081,Duplantis Joshua,9/3/2020,463.45,Unrestricted Shared Services,Mileage - IS
Coastal Alabama CC,!0000082,Ethington Tracie,9/3/2020,66.7,Unrestricted-Fairhope,Mileage - IS
Coastal Alabama CC,!0000083,Fields Rebecca,9/3/2020,293.83,AE-Federal Regular,Mileage - IS
Coastal Alabama CC,!0000084,Forester Cathleen,9/3/2020,64.4,Unrestricted -Bay Minette,Mileage - IS
Coastal Alabama CC,!0000085,Fuqua James,9/3/2020,241.5,Unrestricted -Brewton,Mileage - IS
Coastal Alabama CC,!0000086,Gibson Katie,9/3/2020,34.5,Talent Search MR,Mileage - IS
Coastal Alabama CC,!0000087,Gilkerson Erica,9/3/2020,561.2,AE - State Regular,Mileage - IS
Coastal Alabama CC,!0000088,Harrison Joy,9/3/2020,357.65,Unrestricted-Monroeville,Mileage - IS
Coastal Alabama CC,!0000089,Jackson Yvette,9/3/2020,341.55,Unrestricted -Bay Minette,Mileage - IS
Coastal Alabama CC,!0000090,Johnson Regina,9/3/2020,276,Unrestricted-Monroeville,Mileage - IS
Coastal Alabama CC,!0000091,Joyner Holley,9/3/2020,139.04,Unrestricted-Monroeville,Mileage - IS
Coastal Alabama CC,!0000092,Lake Charles,9/3/2020,33.35,Unrestricted -Bay Minette,Mileage - IS
Coastal Alabama CC,!0000093,McCullough Diana,9/3/2020,100,Employee Courtesy Funds,Deposits Held for Others - Agency
Coastal Alabama CC,!0000094,Moore Kiki,9/3/2020,115,Unrestricted-Thomasville,Mileage - IS
Coastal Alabama CC,!0000095,Robinson Barbara,9/3/2020,158.7,Unrestricted -Bay Minette,Mileage - IS
Coastal Alabama CC,!0000096,Scarborough Tiffany,9/3/2020,267.95,Unrestricted -Bay Minette,Mileage - IS
Coastal Alabama CC,!0000097,Young Marlo,9/3/2020,612.95,AE-Federal Regular,Mileage - IS
Coastal Alabama CC,!0000098,Amazon ,9/3/2020,533.6,Talent Search MR,Materials and Supplies - MS
Coastal Alabama CC,!0000099,Amazon ,9/3/2020,167.95,Unrestricted -Bay Minette,Maintenance & Repairs  - OOS
Coastal Alabama CC,!0000099,Amazon ,9/3/2020,337.68,Unrestricted-Monroeville,Materials and Supplies - MS
Coastal Alabama CC,!0000099,Amazon ,9/3/2020,405.93,Talent Search MR,Materials and Supplies - MS
Coastal Alabama CC,!0000099,Amazon ,9/3/2020,688.06,CARES Act - College Relief,Internal Purchases - MS
Coastal Alabama CC,!0000099,Amazon ,9/3/2020,765.1,Unrestricted -Brewton,Audiovisuals - CE
Coastal Alabama CC,!0000099,Amazon ,9/3/2020,793.36,Unrestricted -Brewton,Books - CE
Coastal Alabama CC,!0000099,Amazon ,9/3/2020,988.4,Unrestricted -Gulf Shores,Materials and Supplies - MS
Coastal Alabama CC,!0000099,Amazon ,9/3/2020,1180.41,Upward Bound TV,Materials and Supplies - MS
Coastal Alabama CC,!0000099,Amazon ,9/3/2020,3285.69,Unrestricted -Bay Minette,Materials and Supplies - MS
Coastal Alabama CC,!0000099,Amazon ,9/3/2020,6731.37,Unrestricted -Bay Minette,Technology - non capitalized - MS
Coastal Alabama CC,!0000100,CDW LLC ,9/3/2020,2940.3,Unrestricted -Brewton,Technology - non capitalized - MS
Coastal Alabama CC,!0000101,Cintas Corporation ,9/3/2020,39.45,Unrestricted-Fairhope,Athletic Uniforms
Coastal Alabama CC,!0000101,Cintas Corporation ,9/3/2020,168.3,Unrestricted -Bay Minette,Athletic Uniforms
Coastal Alabama CC,!0000101,Cintas Corporation ,9/3/2020,988.2,Unrestricted -Bay Minette,Materials and Supplies - MS
Coastal Alabama CC,!0000101,Cintas Corporation ,9/3/2020,1830,Unrestricted -Brewton,Materials and Supplies - MS
Coastal Alabama CC,!0000102,Dell Marketing LP ,9/3/2020,392.14,Unrestricted -Bay Minette,Technology - non capitalized - MS
Coastal Alabama CC,!0000102,Dell Marketing LP ,9/3/2020,2001.48,Talent Search MR,Materials and Supplies - MS
Coastal Alabama CC,!0000102,Dell Marketing LP ,9/3/2020,3494.32,Unrestricted -Brewton,Technology - non capitalized - MS
Coastal Alabama CC,!0000102,Dell Marketing LP ,9/3/2020,23233.84,Unrestricted-Monroeville,Technology - non capitalized - MS
Coastal Alabama CC,!0000103,Ferguson Enterprises Inc ,9/3/2020,8665,CARES Act - College Relief,Internal Purchases - MS
Coastal Alabama CC,!0000104,Respondus ,9/3/2020,24470,Unrestricted Distance Ed,Other Contractual Services - PS
Coastal Alabama CC,!0000105,Woodburn Press LLC ,9/3/2020,634.38,Student Support Service -BR,Materials and Supplies - MS
Coastal Alabama CC,!0000106,Xerox Corporation ,9/3/2020,269.69,Unrestricted-Thomasville,Short-Term Equipment Rentals - OOS
Coastal Alabama CC,!0000107,Carey Cullen,9/11/2020,447.35,WIOA,Mileage - IS
Coastal Alabama CC,!0000108,Godfrey Carman,9/11/2020,65.55,Unrestricted -Bay Minette,Mileage - IS
Coastal Alabama CC,!0000109,Hurtubise James,9/11/2020,199,Unrestricted -Gulf Shores,Registration Fees- IS
Coastal Alabama CC,!0000110,Hutcherson Lindsay,9/11/2020,420.9,Unrestricted Shared Services,Mileage - IS
Coastal Alabama CC,!0000111,Kohen Mattie,9/11/2020,136.85,Unrestricted-Monroeville,Mileage - IS
Coastal Alabama CC,!0000112,Mack Susan,9/11/2020,198.95,Unrestricted -Brewton,Mileage - IS
Coastal Alabama CC,!0000113,McMillan Barbara,9/11/2020,110.4,Unrestricted-Monroeville,Mileage - IS
Coastal Alabama CC,!0000114,Payne Pamela,9/11/2020,221.95,Unrestricted -Bay Minette,Mileage - IS
Coastal Alabama CC,!0000115,Richardson Nikeya,9/11/2020,78.2,Unrestricted-Monroeville,Mileage - IS
Coastal Alabama CC,!0000116,Smith Merrilyn,9/11/2020,97.75,Unrestricted -Bay Minette,Mileage - IS
Coastal Alabama CC,!0000117,Stokes Jacqueline,9/11/2020,73.6,Unrestricted -Bay Minette,Mileage - IS
Coastal Alabama CC,!0000118,CDW LLC ,9/11/2020,727.65,Unrestricted -Brewton,Technology - non capitalized - MS
Coastal Alabama CC,!0000118,CDW LLC ,9/11/2020,1176.12,Unrestricted -Bay Minette,Computer Software(non capital) - MS
Coastal Alabama CC,!0000119,Dell Marketing LP ,9/11/2020,5413.42,Unrestricted -Brewton,Technology - non capitalized - MS
Coastal Alabama CC,!0000120,Howard Technology Solutions ,9/11/2020,4920,Unrestricted -Brewton,Technology - non capitalized - MS
Coastal Alabama CC,!0000121,Pocket Nurse Enterprises Inc. ,9/11/2020,936.32,Unrestricted -Gulf Shores,Materials and Supplies - MS
Coastal Alabama CC,!0000122,Pocket Nurse Enterprises Inc. ,9/11/2020,1040.8,Unrestricted -Brewton,Materials and Supplies - MS
Coastal Alabama CC,!0000122,Pocket Nurse Enterprises Inc. ,9/11/2020,4026.84,Unrestricted Shared Services,Materials and Supplies - MS
Coastal Alabama CC,!0000123,Xerox Corporation ,9/11/2020,174.86,Unrestricted-Jackson,Short-Term Equipment Rentals - OOS
Coastal Alabama CC,!0000123,Xerox Corporation ,9/11/2020,190.07,Unrestricted - Atmore,Short-Term Equipment Rentals - OOS
Coastal Alabama CC,!0000123,Xerox Corporation ,9/11/2020,228.25,Unrestricted-Thomasville,Short-Term Equipment Rentals - OOS
Coastal Alabama CC,!0000123,Xerox Corporation ,9/11/2020,431.45,Unrestricted-Monroeville,Short-Term Equipment Rentals - OOS
Coastal Alabama CC,!0000123,Xerox Corporation ,9/11/2020,1555.68,Unrestricted -Bay Minette,Short-Term Equipment Rentals - OOS
Coastal Alabama CC,!0000124,Blubaugh Kaitlyn,9/25/2020,1800,Softball Booster Funds,Deposits Held for Others - Agency
Coastal Alabama CC,!0000125,Dorman Scarlet,9/25/2020,269.1,Unrestricted -Bay Minette,Mileage - IS
Coastal Alabama CC,!0000126,Horton Jana,9/25/2020,911.95,Unrestricted-Monroeville,Mileage - IS
Coastal Alabama CC,!0000127,Lake Charles,9/25/2020,172.5,Unrestricted -Bay Minette,Bank Payroll
Coastal Alabama CC,!0000128,Lee Stuart,9/25/2020,254.15,AE - State Regular,Mileage - IS
Coastal Alabama CC,!0000129,Millis Daniel,9/25/2020,89.13,Unrestricted -Bay Minette,Mileage - IS
Coastal Alabama CC,!0000130,Montgomery Jacqueline,9/25/2020,125.35,AE - State Regular,Mileage - IS
Coastal Alabama CC,!0000131,Pearson Shirley,9/25/2020,121.9,AE - State Regular,Mileage - IS
Coastal Alabama CC,!0000132,ACT Inc ,9/25/2020,150,AE - State Inst'l,Other Professional Fees - PS
Coastal Alabama CC,!0000133,Amazon ,9/25/2020,2198,Unrestricted-Monroeville,Materials and Supplies - MS
Coastal Alabama CC,!0000134,Bibliotheca LLC ,9/25/2020,1645.79,Unrestricted -Brewton,Subscriptions - OOS
Coastal Alabama CC,!0000135,C Spire Business ,9/25/2020,3877.45,Unrestricted -Bay Minette,Technology - non capitalized - MS
Coastal Alabama CC,!0000136,CDW LLC ,9/25/2020,398.54,Upward Bound TV,Materials and Supplies - MS
Coastal Alabama CC,!0000137,CDW LLC ,9/25/2020,150.08,Unrestricted -Brewton,Materials and Supplies - MS
Coastal Alabama CC,!0000137,CDW LLC ,9/25/2020,217.79,Talent Search MR,Materials and Supplies - MS
Coastal Alabama CC,!0000137,CDW LLC ,9/25/2020,1615.3,AE-Federal Regular,Materials and Supplies - MS
Coastal Alabama CC,!0000138,Cintas Corporation ,9/25/2020,118.36,Unrestricted -Brewton,Other Contractual Services - PS
Coastal Alabama CC,!0000139,Cintas Corporation ,9/25/2020,175,Unrestricted-Monroeville,Other Contractual Services - PS
Coastal Alabama CC,!0000139,Cintas Corporation ,9/25/2020,175,Unrestricted-Thomasville,Other Contractual Services - PS
Coastal Alabama CC,!0000140,Credentials Inc ,9/25/2020,2150,Unrestricted -Bay Minette,Materials and Supplies - MS
Coastal Alabama CC,!0000141,Dell Marketing LP ,9/25/2020,246.98,Unrestricted -Bay Minette,Technology - non capitalized - MS
Coastal Alabama CC,!0000141,Dell Marketing LP ,9/25/2020,783.87,WIOA,Computer Related M&S - MS
Coastal Alabama CC,!0000141,Dell Marketing LP ,9/25/2020,952.54,Unrestricted-Fairhope,Technology - non capitalized - MS
Coastal Alabama CC,!0000142,HESI ,9/25/2020,2714,Nurse Testing Fees,Deposits Held for Others – Testing
Coastal Alabama CC,!0000143,Ferguson Enterprises Inc ,9/25/2020,680,CARES Act - College Relief,Internal Purchases - MS
Coastal Alabama CC,!0000144,Global Furniture Group Inc ,9/25/2020,2386.16,Unrestricted -Bay Minette,Materials and Supplies - MS
Coastal Alabama CC,!0000145,Office Depot ,9/25/2020,21.09,Unrestricted-Fairhope,Materials and Supplies - MS
Coastal Alabama CC,!0000146,Office Depot ,9/25/2020,40.99,Unrestricted-Fairhope,Materials and Supplies - MS
Coastal Alabama CC,!0000147,Phillips Corporation ,9/25/2020,33360,Industry Certification Initiatives,Furniture and Equip > $25K - CE
Coastal Alabama CC,!0000148,Phillips Corporation ,9/25/2020,56763.95,Industry Certification Initiatives,Furniture and Equip > $25K - CE
Coastal Alabama CC,!0000149,Pocket Nurse Enterprises Inc. ,9/25/2020,47.42,Unrestricted -Brewton,Materials and Supplies - MS
Coastal Alabama CC,!0000150,Pocket Nurse Enterprises Inc. ,9/25/2020,499.95,Nurse Lab Supplies,Deposits Held for Others - Agency
Coastal Alabama CC,!0000150,Pocket Nurse Enterprises Inc. ,9/25/2020,1010.4,Unrestricted -Brewton,Materials and Supplies - MS
Coastal Alabama CC,!0000151,ProQuest ,9/25/2020,4142.62,Unrestricted -Bay Minette,Books - CE
Coastal Alabama CC,!0000152,Relyco Sales Inc ,9/25/2020,469.7,Unrestricted Shared Services,Materials and Supplies - MS
Coastal Alabama CC,!0000153,Woodburn Press LLC ,9/25/2020,1996,Talent Search MR,Computer Software(non capital) - MS
Coastal Alabama CC,!0000154,Xerox Corporation ,9/25/2020,175.9,Unrestricted-Fairhope,Short-Term Equipment Rentals - OOS
Coastal Alabama CC,!0000154,Xerox Corporation ,9/25/2020,191.74,Unrestricted -Brewton,Short-Term Equipment Rentals - OOS
Coastal Alabama CC,!0000154,Xerox Corporation ,9/25/2020,1065.36,Unrestricted -Gulf Shores,Short-Term Equipment Rentals - OOS
Coastal Alabama CC,!0000154,Xerox Corporation ,9/25/2020,1093.53,Unrestricted-Thomasville,Short-Term Equipment Rentals - OOS
Coastal Alabama CC,!0000154,Xerox Corporation ,9/25/2020,1332.14,Unrestricted -Bay Minette,Short-Term Equipment Rentals - OOS
Coastal Alabama CC,!0000155,Bradley Vinson,9/30/2020,374.9,Unrestricted -Bay Minette,Mileage - IS
Coastal Alabama CC,!0000156,Chancery Jennifer,9/30/2020,80.5,Unrestricted-Monroeville,Mileage - IS
Coastal Alabama CC,!0000157,Cribbs Nigel,9/30/2020,281.18,Unrestricted-Monroeville,Mileage - IS
Coastal Alabama CC,!0000158,Dunnam Angela,9/30/2020,110.4,Unrestricted -Bay Minette,Mileage - IS
Coastal Alabama CC,!0000159,Faircloth Linda,9/30/2020,126.5,AE - State Regular,Mileage - IS
Coastal Alabama CC,!0000160,Patterson Randall,9/30/2020,183.71,Unrestricted-Monroeville,Mileage - IS
Coastal Alabama CC,!0000161,Robertson Celeste,9/30/2020,25,Unrestricted -Bay Minette,Registration Fees- IS
Coastal Alabama CC,!0000162,Scarborough Tiffany,9/30/2020,101.2,Unrestricted -Bay Minette,Mileage - IS
Coastal Alabama CC,!0000163,Skelton Sheila,9/30/2020,118.45,Upward Bound GT,Mileage - IS
Coastal Alabama CC,!0000164,ACT Inc ,9/30/2020,2120,Work Keys Testing,Deposits Held for Others – Testing
Coastal Alabama CC,!0000165,Amazon ,9/30/2020,259.96,Unrestricted-Thomasville,Materials and Supplies - MS
Coastal Alabama CC,!0000166,Amazon ,9/30/2020,562.95,Student Support Service -BM,Materials and Supplies - MS
Coastal Alabama CC,!0000166,Amazon ,9/30/2020,3017.23,Upward Bound TV,Materials and Supplies - MS
Coastal Alabama CC,!0000167,Assurance Service Group Inc ,9/30/2020,321.35,R&R Bay Minette,Maintenance & Repairs  - OOS
Coastal Alabama CC,!0000167,Assurance Service Group Inc ,9/30/2020,2963.88,Unexpended Plant Gilbertown,Building Alterations - CE
Coastal Alabama CC,!0000167,Assurance Service Group Inc ,9/30/2020,7200,Unexpended Plant Bay Minette,Improvements - Other - CE
Coastal Alabama CC,!0000168,B & W Auto Parts ,9/30/2020,331.43,Unrestricted -Brewton,Maintenance & Repairs  - OOS
Coastal Alabama CC,!0000169,CDW LLC ,9/30/2020,382.57,Unrestricted -Brewton,Technology - non capitalized - MS
Coastal Alabama CC,!0000170,Cintas Corporation ,9/30/2020,25.1,Unrestricted - Atmore,Other Contractual Services - PS
Coastal Alabama CC,!0000171,Dell Marketing LP ,9/30/2020,4521.8,Talent Search MR,Materials and Supplies - MS
Coastal Alabama CC,!0000172,Ferguson Enterprises Inc ,9/30/2020,741.6,Unrestricted -Bay Minette,Internal Purchases - MS
Coastal Alabama CC,!0000172,Ferguson Enterprises Inc ,9/30/2020,3029.15,CARES Act - College Relief,Internal Purchases - MS
Coastal Alabama CC,!0000173,Cengage Learning Inc./Education to Go ,9/30/2020,1177.6,Unrestricted -Brewton,Books - CE
Coastal Alabama CC,!0000174,Heartland Campus Solutions Ecsi ,9/30/2020,584.77,Unrestricted Shared Services,Other Contractual Services - PS
Coastal Alabama CC,!0000175,Howard Technology Solutions ,9/30/2020,14023,Unrestricted -Brewton,Technology - non capitalized - MS
Coastal Alabama CC,!0000176,Interior Elements LLC ,9/30/2020,4828.32,Housing - Brewton,Materials and Supplies - MS
Coastal Alabama CC,!0000177,Kelly's Turf Pro ,9/30/2020,1850,Unrestricted -Bay Minette,Other Professional Fees - PS
Coastal Alabama CC,!0000177,Kelly's Turf Pro ,9/30/2020,1900,Softball Booster Funds,Deposits Held for Others - Agency
Coastal Alabama CC,!0000178,Pocket Nurse Enterprises Inc. ,9/30/2020,18.1,Unrestricted -Brewton,Materials and Supplies - MS
Coastal Alabama CC,!0000179,Pocket Nurse Enterprises Inc. ,9/30/2020,2617,Unrestricted Shared Services,Materials and Supplies - MS
Coastal Alabama CC,!0000180,Quill Corporation ,9/30/2020,120.19,Unrestricted -Bay Minette,Materials and Supplies - MS
Coastal Alabama CC,!0000180,Quill Corporation ,9/30/2020,379.98,Student Support Service -BR,Materials and Supplies - MS
Coastal Alabama CC,!0000181,Quill Corporation ,9/30/2020,1464.18,Talent Search MR,Materials and Supplies - MS
Coastal Alabama CC,!0000182,Xerox Corporation ,9/30/2020,96.33,Unrestricted-Monroeville,Short-Term Equipment Rentals - OOS
Coastal Alabama CC,!0000182,Xerox Corporation ,9/30/2020,174.75,Unrestricted-Gilbertown,Short-Term Equipment Rentals - OOS
Coastal Alabama CC,!0000182,Xerox Corporation ,9/30/2020,175.9,Unrestricted -Fairhope Academy,Short-Term Equipment Rentals - OOS
Coastal Alabama CC,!0000183,Xerox Financial Services LLC ,9/30/2020,754,Unrestricted -Bay Minette,Short-Term Equipment Rentals - OOS
Coastal Alabama CC,1001,Aho Architects LLC ,7/13/2020,1875.58,Unexpended Plant Shared Services,Engineering & Architectural Svc -PS
Coastal Alabama CC,1002,Air Masters Mechanical In ,7/13/2020,110132.48,R&R Bay Minette,Building Alterations - CE
Coastal Alabama CC,1003,Alabama Power Company ,7/13/2020,3259.1,Unrestricted -Bay Minette,Electricity - UC
Coastal Alabama CC,1004,Assurance Service Group Inc ,7/13/2020,95836.15,Unexpended Plant Bay Minette,Maintenance & Repairs  - OOS
Coastal Alabama CC,1005,Bondurant Lumber and Hardware Inc ,7/13/2020,218.35,Local Grants And Contracts,Materials and Supplies - MS
Coastal Alabama CC,1005,Bondurant Lumber and Hardware Inc ,7/13/2020,328.32,Unrestricted -Brewton,Maintenance & Repairs  - OOS
Coastal Alabama CC,1005,Bondurant Lumber and Hardware Inc ,7/13/2020,643.03,Unrestricted -Brewton,Materials and Supplies - MS
Coastal Alabama CC,1006,Builders Hardware and Supply ,7/13/2020,54.95,Unrestricted -Bay Minette,Materials and Supplies - MS
Coastal Alabama CC,1007,Central Baldwin Locksmiths LLC ,7/13/2020,160,Unrestricted -Bay Minette,Other Professional Fees - PS
Coastal Alabama CC,1007,Central Baldwin Locksmiths LLC ,7/13/2020,455,Unrestricted-Fairhope,Other Professional Fees - PS
Coastal Alabama CC,1008,Chuck Stevens Chevrolet of Bay Minette Inc ,7/13/2020,62.54,Unrestricted -Bay Minette,Maintenance & Repairs  - OOS
Coastal Alabama CC,1009,City of Brewton Utility Dept ,7/13/2020,188.03,Unrestricted -Brewton,Gas & Heating Fuel - UC
Coastal Alabama CC,1009,City of Brewton Utility Dept ,7/13/2020,464.94,Unrestricted -Brewton,Water & Sewer - UC
Coastal Alabama CC,1010,City of Gulf Shores ,7/13/2020,344.1,Unrestricted -Gulf Shores,Water & Sewer - UC
Coastal Alabama CC,1011,Commission on Adult Basic Education Inc. ,7/13/2020,1060,AE - State Regular,Other Professional Fees - PS
Coastal Alabama CC,1012,Cosker Melanie,7/13/2020,100.05,Unrestricted-Monroeville,Mileage - IS
Coastal Alabama CC,1013,Directv Inc ,7/13/2020,194.99,Unrestricted-Monroeville,Cable - UC
Coastal Alabama CC,1014,Dozier Hardware Co Inc ,7/13/2020,158.63,Unrestricted-Thomasville,Maintenance & Repairs  - OOS
Coastal Alabama CC,1014,Dozier Hardware Co Inc ,7/13/2020,416.35,Unrestricted-Thomasville,Materials and Supplies - MS
Coastal Alabama CC,1015,Fairhope Public Utilities ,7/13/2020,11.63,Unrestricted-Fairhope,Gas & Heating Fuel - UC
Coastal Alabama CC,1015,Fairhope Public Utilities ,7/13/2020,2150.16,Unrestricted-Fairhope,Water & Sewer - UC
Coastal Alabama CC,1015,Fairhope Public Utilities ,7/13/2020,18315.41,Unrestricted-Fairhope,Electricity - UC
Coastal Alabama CC,1016,Federal Express Corporation ,7/13/2020,241.28,Unrestricted -Bay Minette,Postage - OOS
Coastal Alabama CC,1017,Freemanville Water System ,7/13/2020,42.28,Unrestricted - Atmore,Water & Sewer - UC
Coastal Alabama CC,1018,Glenn Shepard Seminars Inc ,7/13/2020,39.97,Unrestricted -Bay Minette,Other Professional Fees - PS
Coastal Alabama CC,1019,Gulf Supply Co Inc ,7/13/2020,2896,Unrestricted -Bay Minette,Internal Purchases - MS
Coastal Alabama CC,1020,Johnson Regina,7/13/2020,496.8,Unrestricted-Monroeville,Mileage - IS
Coastal Alabama CC,1021,Lamar Advertising Company ,7/13/2020,2135,Unrestricted -Bay Minette,Advertising & Promotions - OOS
Coastal Alabama CC,1022,Marvins ,7/13/2020,213.87,Unrestricted-Monroeville,Maintenance & Repairs  - OOS
Coastal Alabama CC,1023,Medline Industries Inc ,7/13/2020,292,Unrestricted -Bay Minette,Materials and Supplies - MS
Coastal Alabama CC,1024,Mobile Area Water and Sewer System ,7/13/2020,378.91,Unrestricted - Brookley Field,Water & Sewer - UC
Coastal Alabama CC,1025,Monroe Scrap Materialinc ,7/13/2020,100,Unrestricted-Monroeville,Short-Term Equipment Rentals - OOS
Coastal Alabama CC,1025,Monroe Scrap Materialinc ,7/13/2020,405,Unrestricted-Monroeville,Materials and Supplies - MS
Coastal Alabama CC,1025,Monroe Scrap Materialinc ,7/13/2020,865.86,Unrestricted-Thomasville,Materials and Supplies - MS
Coastal Alabama CC,1026,Moquin Crystal,7/13/2020,231.73,Unrestricted -Bay Minette,Mileage - IS
Coastal Alabama CC,1027,Norm's Auto Repair ,7/13/2020,132.33,Unrestricted -Bay Minette,Maintenance & Repairs  - OOS
Coastal Alabama CC,1028,NPC International Inc ,7/13/2020,334.1,Upward Bound MR,Stipends-Meals
Coastal Alabama CC,1029,Payne Pamela,7/13/2020,133.4,Unrestricted-Fairhope,Mileage - IS
Coastal Alabama CC,1030,Pitts Dozer Service Llc ,7/13/2020,14142,Unrestricted - Atmore,Other Contractual Services - PS
Coastal Alabama CC,1031,Republic Services Inc. ,7/13/2020,97.02,Unrestricted -Gulf Shores,Waste Disposal - UC
Coastal Alabama CC,1031,Republic Services Inc. ,7/13/2020,137.85,Unrestricted - Brookley Field,Waste Disposal - UC
Coastal Alabama CC,1031,Republic Services Inc. ,7/13/2020,387.61,Unrestricted - Fountain,Waste Disposal - UC
Coastal Alabama CC,1031,Republic Services Inc. ,7/13/2020,415.3,Unrestricted - Atmore,Waste Disposal - UC
Coastal Alabama CC,1031,Republic Services Inc. ,7/13/2020,1415.77,Unrestricted -Brewton,Waste Disposal - UC
Coastal Alabama CC,1032,Richardson Nikeya,7/13/2020,78.2,Unrestricted-Monroeville,Mileage - IS
Coastal Alabama CC,1033,Roto Rooter ,7/13/2020,350,Unrestricted -Bay Minette,Maintenance & Repairs  - OOS
Coastal Alabama CC,1034,Securadyne Systems ,7/13/2020,127,Unrestricted -Bay Minette,Technology - non capitalized - MS
Coastal Alabama CC,1035,Sloan Mark,7/13/2020,35.65,Unrestricted - Brookley Field,Mileage - IS
Coastal Alabama CC,1036,South Alabama Gas ,7/13/2020,188.19,Unrestricted-Monroeville,Gas & Heating Fuel - UC
Coastal Alabama CC,1037,Southern Pine Electric Co ,7/13/2020,2582.67,Unrestricted -Brewton,Electricity - UC
Coastal Alabama CC,1038,Sunbelt Rentals Inc ,7/13/2020,7299.02,Unexpended Plant Bay Minette,Short-Term Equipment Rentals - OOS
Coastal Alabama CC,1039,United Parcel Service Inc ,7/13/2020,3,Unrestricted -Bay Minette,Postage - OOS
Coastal Alabama CC,1040,Verizon Wireless ,7/13/2020,54.79,Unrestricted -Bay Minette,Wireless Phones - UC
Coastal Alabama CC,1041,W W Grainger Inc ,7/13/2020,64.4,Unrestricted -Bay Minette,Internal Purchases - MS
Coastal Alabama CC,1041,W W Grainger Inc ,7/13/2020,3155.8,Unrestricted - Atmore,Maintenance & Repairs  - OOS
Coastal Alabama CC,1042,Waterworks and Sewer Board City of Jackson ,7/13/2020,37.32,Unrestricted-Jackson,Waste Disposal - UC
Coastal Alabama CC,1043,Weiser ,7/13/2020,204.8,Unrestricted -Gulf Shores,Other Contractual Services - PS
Coastal Alabama CC,1043,Weiser ,7/13/2020,937.6,Unrestricted -Fairhope Academy,Other Contractual Services - PS
Coastal Alabama CC,1043,Weiser ,7/13/2020,1984,Unrestricted - Brookley Field,Other Contractual Services - PS
Coastal Alabama CC,1044,Williford Joseph,7/13/2020,33.35,Unrestricted -Bay Minette,Mileage - IS
Coastal Alabama CC,1045,Wrights Auto Parts Inc ,7/13/2020,393.44,Unrestricted -Bay Minette,Maintenance & Repairs  - OOS
Coastal Alabama CC,1046,ACT Inc ,7/16/2020,160,AE - State Regular,Other Professional Fees - PS
Coastal Alabama CC,1046,ACT Inc ,7/16/2020,608,Work Keys Testing,Deposits Held for Others – Testing
Coastal Alabama CC,1047,Aho Architects LLC ,7/16/2020,1921.42,Unexpended Plant Shared Services,Engineering & Architectural Svc -PS
Coastal Alabama CC,1048,Air Specialty Inc ,7/16/2020,260,Unrestricted-Fairhope,Maintenance & Repairs  - OOS
Coastal Alabama CC,1049,Airgas Gulf States ,7/16/2020,17.37,Unrestricted-Fairhope,Short-Term Equipment Rentals - OOS
Coastal Alabama CC,1049,Airgas Gulf States ,7/16/2020,20.67,Unrestricted - Brookley Field,Materials and Supplies - MS
Coastal Alabama CC,1049,Airgas Gulf States ,7/16/2020,20.67,Unrestricted -Bay Minette,Short-Term Equipment Rentals - OOS
Coastal Alabama CC,1049,Airgas Gulf States ,7/16/2020,170.1,Unrestricted - Atmore,Short-Term Equipment Rentals - OOS
Coastal Alabama CC,1049,Airgas Gulf States ,7/16/2020,201.19,Unrestricted - Fountain,Short-Term Equipment Rentals - OOS
Coastal Alabama CC,1049,Airgas Gulf States ,7/16/2020,563.51,Unrestricted-Monroeville,Short-Term Equipment Rentals - OOS
Coastal Alabama CC,1049,Airgas Gulf States ,7/16/2020,1499.38,Unrestricted-Thomasville,Materials and Supplies - MS
Coastal Alabama CC,1050,AT&T Mobility National Accounts LLC ,7/16/2020,164.96,AE-Federal Regular,Internet - UC
Coastal Alabama CC,1051,Atmore Truckers Assoc ,7/16/2020,125.5,Unrestricted - Atmore,Maintenance & Repairs  - OOS
Coastal Alabama CC,1052,BSN ,7/16/2020,1419.5,Volleyball Booster Funds,Deposits Held for Others - Agency
Coastal Alabama CC,1052,BSN ,7/16/2020,1455,Unrestricted -Brewton,Materials and Supplies - MS
Coastal Alabama CC,1052,BSN ,7/16/2020,2750.1,Scholars Bowl Mv/Tv,Deposits Held for Others - Agency
Coastal Alabama CC,1052,BSN ,7/16/2020,6923,Unrestricted -Bay Minette,Materials and Supplies - MS
Coastal Alabama CC,1052,BSN ,7/16/2020,25263.74,Unrestricted -Bay Minette,Athletic Clothing-OOS
Coastal Alabama CC,1053,C & C Plumbing & Servc Co ,7/16/2020,1850,Unrestricted-Fairhope,Maintenance & Repairs  - OOS
Coastal Alabama CC,1054,C Spire Business ,7/16/2020,3854.45,Unrestricted -Bay Minette,Technology - non capitalized - MS
Coastal Alabama CC,1055,CDW LLC ,7/16/2020,227.37,Unrestricted -Bay Minette,Materials and Supplies - MS
Coastal Alabama CC,1056,Centaur Building Services Southeast Inc. ,7/16/2020,2079.31,Unrestricted-Gilbertown,Other Contractual Services - PS
Coastal Alabama CC,1056,Centaur Building Services Southeast Inc. ,7/16/2020,2265.73,Unrestricted -Gulf Shores,Other Contractual Services - PS
Coastal Alabama CC,1056,Centaur Building Services Southeast Inc. ,7/16/2020,2748.03,Unrestricted - Brookley Field,Other Contractual Services - PS
Coastal Alabama CC,1056,Centaur Building Services Southeast Inc. ,7/16/2020,3393.2,Unrestricted - Atmore,Other Contractual Services - PS
Coastal Alabama CC,1056,Centaur Building Services Southeast Inc. ,7/16/2020,5827.5,Unrestricted-Fairhope,Other Contractual Services - PS
Coastal Alabama CC,1056,Centaur Building Services Southeast Inc. ,7/16/2020,24701.51,Unrestricted -Bay Minette,Other Contractual Services - PS
Coastal Alabama CC,1057,Cintas Corporation ,7/16/2020,25.1,Unrestricted - Atmore,Other Contractual Services - PS
Coastal Alabama CC,1057,Cintas Corporation ,7/16/2020,31.56,Unrestricted-Fairhope,Athletic Uniforms
Coastal Alabama CC,1057,Cintas Corporation ,7/16/2020,118.36,Unrestricted -Brewton,Other Contractual Services - PS
Coastal Alabama CC,1057,Cintas Corporation ,7/16/2020,134.64,Unrestricted -Bay Minette,Athletic Uniforms
Coastal Alabama CC,1057,Cintas Corporation ,7/16/2020,790.56,Unrestricted -Bay Minette,Materials and Supplies - MS
Coastal Alabama CC,1058,Cintas Corporation ,7/16/2020,175,Unrestricted-Thomasville,Athletic Uniforms
Coastal Alabama CC,1059,City of Brewton Utility Dept ,7/16/2020,8.34,Unrestricted -Brewton,Gas & Heating Fuel - UC
Coastal Alabama CC,1059,City of Brewton Utility Dept ,7/16/2020,14.81,Housing - Brewton,Gas & Heating Fuel - UC
Coastal Alabama CC,1059,City of Brewton Utility Dept ,7/16/2020,142.14,Unrestricted -Brewton,Water & Sewer - UC
Coastal Alabama CC,1059,City of Brewton Utility Dept ,7/16/2020,166.14,Housing - Brewton,Water & Sewer - UC
Coastal Alabama CC,1060,Clarke-mobile Counties Ga ,7/16/2020,56.11,Unrestricted-Thomasville,Gas & Heating Fuel - UC
Coastal Alabama CC,1061,Cma Technology Solutions ,7/16/2020,3269.5,Unrestricted -Bay Minette,Other Contractual Services - PS
Coastal Alabama CC,1062,Commission on Adult Basic Education Inc. ,7/16/2020,530,AE - State Regular,Other Professional Fees - PS
Coastal Alabama CC,1063,Condensed Curriculum International Inc ,7/16/2020,9654.4,Unrestricted-Fairhope,Other Contractual Services - PS
Coastal Alabama CC,1064,Dell Marketing LP ,7/16/2020,5007.5,Unrestricted -Bay Minette,Technology - non capitalized - MS
Coastal Alabama CC,1064,Dell Marketing LP ,7/16/2020,14987.15,Unrestricted -Brewton,Technology - non capitalized - MS
Coastal Alabama CC,1065,Dunnam Angela,7/16/2020,133.4,Unrestricted -Bay Minette,Mileage - IS
Coastal Alabama CC,1066,Emergency Lighting By Haynes LLC ,7/16/2020,130,Unrestricted -Bay Minette,Maintenance & Repairs  - OOS
Coastal Alabama CC,1067,Ferguson Enterprises Inc ,7/16/2020,28242.85,Unrestricted -Bay Minette,Internal Purchases - MS
Coastal Alabama CC,1068,Inspired Bus Furniture ,7/16/2020,1400,Upward Bound TV,Materials and Supplies - MS
Coastal Alabama CC,1069,Jackson Yvette,7/16/2020,341.55,Unrestricted -Bay Minette,Mileage - IS
Coastal Alabama CC,1070,Knox Pest Control ,7/16/2020,92.25,Unrestricted -Gulf Shores,Other Contractual Services - PS
Coastal Alabama CC,1070,Knox Pest Control ,7/16/2020,153.75,Unrestricted-Fairhope,Other Contractual Services - PS
Coastal Alabama CC,1070,Knox Pest Control ,7/16/2020,369,Unrestricted -Bay Minette,Other Contractual Services - PS
Coastal Alabama CC,1071,KONE Inc. ,7/16/2020,426.76,Unrestricted-Fairhope,Service Contracts on Equipment -OOS
Coastal Alabama CC,1071,KONE Inc. ,7/16/2020,746.02,Unrestricted -Bay Minette,Service Contracts on Equipment -OOS
Coastal Alabama CC,1072,Nashville Chemical & ,7/16/2020,350,Unrestricted -Bay Minette,Maintenance & Repairs  - OOS
Coastal Alabama CC,1073,NCS Pearson Inc ,7/16/2020,5250,AE - GED,Materials and Supplies - MS
Coastal Alabama CC,1074,Nurse Tim Inc ,7/16/2020,2045,Unrestricted -Brewton,Mileage - IS
Coastal Alabama CC,1075,Republic Services Inc. ,7/16/2020,2237.93,Unrestricted -Bay Minette,Waste Disposal - UC
Coastal Alabama CC,1076,Sherwin Williams Company ,7/16/2020,322.34,Housing- Bay Minette,Materials and Supplies - MS
Coastal Alabama CC,1077,Sodexo Inc ,7/16/2020,19781.35,Unrestricted -Bay Minette,Other Contractual Services - PS
Coastal Alabama CC,1078,Standard Roofing of Montgomery Inc ,7/16/2020,20000,Unexpended Plant Shared Services,Building Alterations - CE
Coastal Alabama CC,1078,Standard Roofing of Montgomery Inc ,7/16/2020,56872,Unexpended Plant Bay Minette,Building Alterations - CE
Coastal Alabama CC,1078,Standard Roofing of Montgomery Inc ,7/16/2020,61805.64,R&R Bay Minette,Building Alterations - CE
Coastal Alabama CC,1079,United Parcel Service Inc ,7/16/2020,3,Unrestricted -Bay Minette,Postage - OOS
Coastal Alabama CC,1080,Williford Matthew,7/16/2020,42.55,Unrestricted -Bay Minette,Mileage - IS
Coastal Alabama CC,1081,Xerox Corporation ,7/16/2020,174.96,Unrestricted-Jackson,Short-Term Equipment Rentals - OOS
Coastal Alabama CC,1081,Xerox Corporation ,7/16/2020,181.58,Unrestricted - Atmore,Short-Term Equipment Rentals - OOS
Coastal Alabama CC,1081,Xerox Corporation ,7/16/2020,265.02,Unrestricted-Thomasville,Short-Term Equipment Rentals - OOS
Coastal Alabama CC,1081,Xerox Corporation ,7/16/2020,431.19,Unrestricted-Monroeville,Short-Term Equipment Rentals - OOS
Coastal Alabama CC,1081,Xerox Corporation ,7/16/2020,2318.37,Unrestricted -Bay Minette,Short-Term Equipment Rentals - OOS
Coastal Alabama CC,1172,ACT Inc ,7/28/2020,20,Work Keys Testing,Deposits Held for Others – Testing
Coastal Alabama CC,1173,Aho Architects LLC ,7/28/2020,1520.39,R&R Bay Minette,Improvements - Other - CE
Coastal Alabama CC,1173,Aho Architects LLC ,7/28/2020,5618.78,Unexpended Plant Thomasville,Building Alterations - CE
Coastal Alabama CC,1174,Air Specialty Inc ,7/28/2020,306.68,Unrestricted - Brookley Field,Maintenance & Repairs  - OOS
Coastal Alabama CC,1174,Air Specialty Inc ,7/28/2020,939.9,Unrestricted -Gulf Shores,Maintenance & Repairs  - OOS
Coastal Alabama CC,1174,Air Specialty Inc ,7/28/2020,3171.27,Unrestricted-Fairhope,Maintenance & Repairs  - OOS
Coastal Alabama CC,1175,Alabama Power Company ,7/28/2020,1669.03,Unrestricted-Gilbertown,Electricity - UC
Coastal Alabama CC,1175,Alabama Power Company ,7/28/2020,1942.78,Prison,Electricity - UC
Coastal Alabama CC,1175,Alabama Power Company ,7/28/2020,3313.57,Food Services- Bay Minette,Electricity - UC
Coastal Alabama CC,1175,Alabama Power Company ,7/28/2020,4754.15,Unrestricted - Brookley Field,Electricity - UC
Coastal Alabama CC,1175,Alabama Power Company ,7/28/2020,7209.34,Unrestricted - Atmore,Electricity - UC
Coastal Alabama CC,1175,Alabama Power Company ,7/28/2020,9333.31,Unrestricted-Thomasville,Electricity - UC
Coastal Alabama CC,1175,Alabama Power Company ,7/28/2020,18440.27,Unrestricted -Brewton,Electricity - UC
Coastal Alabama CC,1175,Alabama Power Company ,7/28/2020,27133.35,Housing- Bay Minette,Electricity - UC
Coastal Alabama CC,1175,Alabama Power Company ,7/28/2020,36231.31,Unrestricted-Monroeville,Electricity - UC
Coastal Alabama CC,1175,Alabama Power Company ,7/28/2020,50484.31,Unrestricted -Bay Minette,Electricity - UC
Coastal Alabama CC,1176,Allied Electronics Inc. ,7/28/2020,2312.27,Unrestricted - Brookley Field,Materials and Supplies - MS
Coastal Alabama CC,1177,American Testing and Inspection Services LLC ,7/28/2020,300,Unrestricted-Fairhope,Other Contractual Services - PS
Coastal Alabama CC,1177,American Testing and Inspection Services LLC ,7/28/2020,400,Unrestricted -Bay Minette,Other Contractual Services - PS
Coastal Alabama CC,1178,AT&T ,7/28/2020,1184.41,Unrestricted -Brewton,Landline Phones - UC
Coastal Alabama CC,1179,AT&T ,7/28/2020,7470.68,Unrestricted -Bay Minette,Landline Phones - UC
Coastal Alabama CC,1180,AT&T Mobility National Accounts LLC ,7/28/2020,199.04,Unrestricted -Brewton,Wireless Phones - UC
Coastal Alabama CC,1180,AT&T Mobility National Accounts LLC ,7/28/2020,2450.79,Unrestricted -Bay Minette,Landline Phones - UC
Coastal Alabama CC,1181,Baldwin EMC ,7/28/2020,5000.89,Unrestricted -Gulf Shores,Electricity - UC
Coastal Alabama CC,1182,Baldwin Rural Area Transportation ,7/28/2020,1350,Unrestricted -Bay Minette,Other Contractual Services - PS
Coastal Alabama CC,1183,Berney Office Solutions ,7/28/2020,3.73,Student Support Service -BM,Short-Term Equipment Rentals - OOS
Coastal Alabama CC,1184,Blubaugh Kaitlyn,7/28/2020,1800,Softball Booster Funds,Deposits Held for Others - Agency
Coastal Alabama CC,1185,Bolton Newspapers Inc ,7/28/2020,395,Unrestricted -Bay Minette,Advertising & Promotions - OOS
Coastal Alabama CC,1186,Brundidge Kaneisha,7/28/2020,70.15,Unrestricted -Bay Minette,Mileage - IS
Coastal Alabama CC,1187,BSN ,7/28/2020,3238.2,Unrestricted -Bay Minette,Athletic Clothing-OOS
Coastal Alabama CC,1187,BSN ,7/28/2020,3938.5,Unrestricted -Bay Minette,Athletic Uniforms
Coastal Alabama CC,1187,BSN ,7/28/2020,4109.99,Unrestricted -Bay Minette,Materials and Supplies - MS
Coastal Alabama CC,1188,C & C Plumbing & Servc Co ,7/28/2020,725,Unrestricted -Bay Minette,Maintenance & Repairs  - OOS
Coastal Alabama CC,1189,C Spire Business ,7/28/2020,5897.6,Unrestricted -Bay Minette,Technology - non capitalized - MS
Coastal Alabama CC,1189,C Spire Business ,7/28/2020,22645.88,Unrestricted -Brewton,Technology - non capitalized - MS
Coastal Alabama CC,1190,C Spire Business ,7/28/2020,5191.21,Unrestricted -Bay Minette,Technology - non capitalized - MS
Coastal Alabama CC,1191,Cae Health Care ,7/28/2020,9774.52,Unrestricted -Bay Minette,Service Contracts on Equipment -OOS
Coastal Alabama CC,1192,Central Baldwin Locksmiths LLC ,7/28/2020,205,Unrestricted -Bay Minette,Maintenance & Repairs  - OOS
Coastal Alabama CC,1193,Centurytel Inc. ,7/28/2020,2776.35,Unrestricted -Bay Minette,Landline Phones - UC
Coastal Alabama CC,1194,Childress Brenda,7/28/2020,284.43,Unrestricted-Fairhope,Materials and Supplies - MS
Coastal Alabama CC,1195,Chuck Stevens Chevrolet of Bay Minette Inc ,7/28/2020,62.54,Unrestricted -Bay Minette,Maintenance & Repairs  - OOS
Coastal Alabama CC,1196,Cintas Corporation ,7/28/2020,175,Unrestricted-Monroeville,Other Contractual Services - PS
Coastal Alabama CC,1197,Cintas Corporation ,7/28/2020,50.2,Unrestricted - Atmore,Other Contractual Services - PS
Coastal Alabama CC,1198,City Electric Supply Co ,7/28/2020,2828.58,Unrestricted -Bay Minette,Materials and Supplies - MS
Coastal Alabama CC,1199,Dell Marketing LP ,7/28/2020,2803.54,Unrestricted -Bay Minette,Technology - non capitalized - MS
Coastal Alabama CC,1200,EBSCO Industries Inc ,7/28/2020,2700,Unrestricted -Bay Minette,Books - CE
Coastal Alabama CC,1201,HESI ,7/28/2020,3481,Nurse Testing Fees,Deposits Held for Others – Testing
Coastal Alabama CC,1202,Ferguson Enterprises Inc ,7/28/2020,3233.7,Unrestricted -Bay Minette,Internal Purchases - MS
Coastal Alabama CC,1203,Fisher Scientific ,7/28/2020,3331.76,Unrestricted-Fairhope,Materials and Supplies - MS
Coastal Alabama CC,1204,Fisher Scientific ,7/28/2020,510.62,Unrestricted-Fairhope,Materials and Supplies - MS
Coastal Alabama CC,1205,Frasier-Ousley Construction & Engineering Inc ,7/28/2020,106925,Unexpended Plant Thomasville,Building Alterations - CE
Coastal Alabama CC,1206,Frontier Communications ,7/28/2020,169.68,Unrestricted-Monroeville,Wireless Phones - UC
Coastal Alabama CC,1206,Frontier Communications ,7/28/2020,1436.06,Unrestricted - Atmore,Landline Phones - UC
Coastal Alabama CC,1207,Goodwyn Mills & Cawood Inc ,7/28/2020,4500,Unrestricted -Brewton,Construction in Progress - CE
Coastal Alabama CC,1208,Jubilee Landscape Mgmtin ,7/28/2020,2707.05,Unrestricted - Atmore,Other Contractual Services - PS
Coastal Alabama CC,1208,Jubilee Landscape Mgmtin ,7/28/2020,8818.88,Unrestricted -Bay Minette,Other Contractual Services - PS
Coastal Alabama CC,1208,Jubilee Landscape Mgmtin ,7/28/2020,74130.16,Unrestricted -Bay Minette,Buildings & Fixed Equipment - PPE
Coastal Alabama CC,1209,Ll & Jp Inc. ,7/28/2020,795.99,Unrestricted -Gulf Shores,Other Professional Fees - PS
Coastal Alabama CC,1210,Mike's Automotive & Diesel ,7/28/2020,234.48,Unrestricted -Bay Minette,Maintenance & Repairs  - OOS
Coastal Alabama CC,1211,Mobile Glass Llc ,7/28/2020,249.7,Unrestricted - Brookley Field,Maintenance & Repairs  - OOS
Coastal Alabama CC,1211,Mobile Glass Llc ,7/28/2020,616.47,Unrestricted -Bay Minette,Maintenance & Repairs  - OOS
Coastal Alabama CC,1212,Monroeville Water Works ,7/28/2020,1521.85,Unrestricted-Monroeville,Water & Sewer - UC
Coastal Alabama CC,1213,Norm's Auto Repair ,7/28/2020,603.19,Unrestricted -Bay Minette,Maintenance & Repairs  - OOS
Coastal Alabama CC,1214,Opc News Llc ,7/28/2020,453.6,Unrestricted -Bay Minette,Advertising & Promotions - OOS
Coastal Alabama CC,1215,Platinum Educational Group LLC ,7/28/2020,500,Unrestricted -Gulf Shores,Materials and Supplies - MS
Coastal Alabama CC,1216,Pouncey Warren,7/28/2020,343.23,Unrestricted -Bay Minette,Mileage - IS
Coastal Alabama CC,1217,Quill Corporation ,7/28/2020,130.78,Unrestricted -Bay Minette,Materials and Supplies - MS
Coastal Alabama CC,1218,Riviera Utilities ,7/28/2020,449.53,Unrestricted -Gulf Shores,Gas & Heating Fuel - UC
Coastal Alabama CC,1219,Scantron Corporation ,7/28/2020,887,Unrestricted -Bay Minette,Service Contracts on Equipment -OOS
Coastal Alabama CC,1220,Sherwin Williams Company ,7/28/2020,160.04,Housing- Bay Minette,Materials and Supplies - MS
Coastal Alabama CC,1221,Siemens Industry Inc. ,7/28/2020,6544,Unrestricted -Brewton,Other Contractual Services - PS
Coastal Alabama CC,1222,South Alabama Gas ,7/28/2020,19.76,Unrestricted-Monroeville,Gas & Heating Fuel - UC
Coastal Alabama CC,1223,Spire ,7/28/2020,20.34,Unrestricted - Brookley Field,Gas & Heating Fuel - UC
Coastal Alabama CC,1224,Staples Contract & Commercial Inc ,7/28/2020,11872.39,Unrestricted -Bay Minette,Advertising & Promotions - OOS
Coastal Alabama CC,1225,State of Alabama ,7/28/2020,34,Unrestricted -Bay Minette,Insurance and Bonding - PS
Coastal Alabama CC,1226,State of Alabama ,7/28/2020,21708,Unrestricted -Bay Minette,Accounting & Auditing Services - PS
Coastal Alabama CC,1227,Storage Sense Saraland ,7/28/2020,1834,Unexpended Plant Bay Minette,Other Professional Fees - PS
Coastal Alabama CC,1228,Strickland Paper Company Inc ,7/28/2020,301.45,Unrestricted -Bay Minette,Materials and Supplies - MS
Coastal Alabama CC,1229,Stuart C. Irby Co. ,7/28/2020,850,Unrestricted-Monroeville,Materials and Supplies - MS
Coastal Alabama CC,1230,Tdfaithllc ,7/28/2020,3659,R&R  Brewton,Maintenance & Repairs  - OOS
Coastal Alabama CC,1231,Tennsco LLC ,7/28/2020,1161.26,Unrestricted -Bay Minette,Materials and Supplies - MS
Coastal Alabama CC,1231,Tennsco LLC ,7/28/2020,1754.24,Unrestricted -Bay Minette,Internal Purchases - MS
Coastal Alabama CC,1232,Terminix International Company LP ,7/28/2020,329,Unrestricted -Brewton,Other Contractual Services - PS
Coastal Alabama CC,1233,The Bank of New York Mellon Trust Company NA ,7/28/2020,1100,Unrestricted -Bay Minette,Trustee Handling Fee - PS
Coastal Alabama CC,1234,The Worden Company ,7/28/2020,3245.76,Unrestricted -Bay Minette,Internal Purchases - MS
Coastal Alabama CC,1235,United Parcel Service Inc ,7/28/2020,6,Unrestricted -Bay Minette,Postage - OOS
Coastal Alabama CC,1236,Wasden Heating & Cooling ,7/28/2020,535,Unrestricted-Monroeville,Maintenance & Repairs  - OOS
Coastal Alabama CC,1237,Weiser ,7/28/2020,204.8,Unrestricted -Gulf Shores,Other Contractual Services - PS
Coastal Alabama CC,1237,Weiser ,7/28/2020,476.8,Unrestricted -Fairhope Academy,Other Contractual Services - PS
Coastal Alabama CC,1237,Weiser ,7/28/2020,1670.4,Unrestricted - Brookley Field,Other Contractual Services - PS
Coastal Alabama CC,1238,Xerox Corporation ,7/28/2020,96.33,Unrestricted-Monroeville,Short-Term Equipment Rentals - OOS
Coastal Alabama CC,1238,Xerox Corporation ,7/28/2020,174.75,Unrestricted-Gilbertown,Short-Term Equipment Rentals - OOS
Coastal Alabama CC,1238,Xerox Corporation ,7/28/2020,175.9,Unrestricted -Brewton,Short-Term Equipment Rentals - OOS
Coastal Alabama CC,1238,Xerox Corporation ,7/28/2020,175.9,Unrestricted -Fairhope Academy,Short-Term Equipment Rentals - OOS
Coastal Alabama CC,1238,Xerox Corporation ,7/28/2020,175.9,Unrestricted-Fairhope,Short-Term Equipment Rentals - OOS
Coastal Alabama CC,1238,Xerox Corporation ,7/28/2020,398.85,Unrestricted -Bay Minette,Short-Term Equipment Rentals - OOS
Coastal Alabama CC,1238,Xerox Corporation ,7/28/2020,595.58,Unrestricted-Thomasville,Short-Term Equipment Rentals - OOS
Coastal Alabama CC,1239,Adams Ka'Lereona,7/29/2020,35,Upward Bound GT,Stipends-Attendance
Coastal Alabama CC,1240,Allen Kelsey,7/29/2020,15,Upward Bound GT,Stipends-Attendance
Coastal Alabama CC,1241,Banks Shantae,7/29/2020,10,Upward Bound GT,Stipends-Attendance
Coastal Alabama CC,1242,Bolden Eugene,7/29/2020,90,Upward Bound GT,Stipends-Attendance
Coastal Alabama CC,1243,Causey Amani,7/29/2020,90,Upward Bound GT,Stipends-Attendance
Coastal Alabama CC,1244,Chess Chalecia,7/29/2020,15,Upward Bound GT,Stipends-Attendance
Coastal Alabama CC,1245,Dozier Jordaia,7/29/2020,15,Upward Bound GT,Stipends-Attendance
Coastal Alabama CC,1246,Edwards Keyonte,7/29/2020,10,Upward Bound GT,Stipends-Attendance
Coastal Alabama CC,1247,Evans Matasha,7/29/2020,25,Upward Bound GT,Stipends-Attendance
Coastal Alabama CC,1248,Ford Zaria,7/29/2020,90,Upward Bound GT,Stipends-Attendance
Coastal Alabama CC,1249,Gibson Ashanti,7/29/2020,90,Upward Bound GT,Stipends-Attendance
Coastal Alabama CC,1250,Gibson Toni,7/29/2020,10,Upward Bound GT,Stipends-Attendance
Coastal Alabama CC,1251,Goodwin Chalisha,7/29/2020,30,Upward Bound GT,Stipends-Attendance
Coastal Alabama CC,1252,Hill Laurynn,7/29/2020,15,Upward Bound GT,Stipends-Attendance
Coastal Alabama CC,1253,Horne Willow,7/29/2020,10,Upward Bound GT,Stipends-Attendance
Coastal Alabama CC,1254,Johnson Ramsey,7/29/2020,15,Upward Bound GT,Stipends-Attendance
Coastal Alabama CC,1255,Jones Ta'Dreunnna,7/29/2020,90,Upward Bound GT,Stipends-Attendance
Coastal Alabama CC,1256,Lawrence Breonna,7/29/2020,15,Upward Bound GT,Stipends-Attendance
Coastal Alabama CC,1257,Lawrence Makayla,7/29/2020,20,Upward Bound GT,Stipends-Attendance
Coastal Alabama CC,1258,Lee Lakeisha,7/29/2020,90,Upward Bound GT,Stipends-Attendance
Coastal Alabama CC,1259,Lewis Shamyia,7/29/2020,10,Upward Bound GT,Stipends-Attendance
Coastal Alabama CC,1260,McGrew Kiara,7/29/2020,35,Upward Bound GT,Stipends-Attendance
Coastal Alabama CC,1261,Napier Kailin,7/29/2020,20,Upward Bound GT,Stipends-Attendance
Coastal Alabama CC,1262,Osborne Xavier,7/29/2020,90,Upward Bound GT,Stipends-Attendance
Coastal Alabama CC,1263,Parker J'Nyia,7/29/2020,10,Upward Bound GT,Stipends-Attendance
Coastal Alabama CC,1264,Ridgeway Maliyah,7/29/2020,25,Upward Bound GT,Stipends-Attendance
Coastal Alabama CC,1265,Ruffin Jasmine,7/29/2020,90,Upward Bound GT,Stipends-Attendance
Coastal Alabama CC,1266,Russell Kelli,7/29/2020,90,Upward Bound GT,Stipends-Attendance
Coastal Alabama CC,1267,Slay Kendra,7/29/2020,90,Upward Bound GT,Stipends-Attendance
Coastal Alabama CC,1268,Smith Tymia,7/29/2020,10,Upward Bound GT,Stipends-Attendance
Coastal Alabama CC,1269,Spears India,7/29/2020,90,Upward Bound GT,Stipends-Attendance
Coastal Alabama CC,1270,Sturdivant Damayia,7/29/2020,10,Upward Bound GT,Stipends-Attendance
Coastal Alabama CC,1271,Tanks Chatiya,7/29/2020,15,Upward Bound GT,Stipends-Attendance
Coastal Alabama CC,1272,Tanks Lacedric,7/29/2020,10,Upward Bound GT,Stipends-Attendance
Coastal Alabama CC,1273,Webster Crimson,7/29/2020,25,Upward Bound GT,Stipends-Attendance
Coastal Alabama CC,1274,Banks Serenity,7/29/2020,90,Upward Bound MR,Printing and Binding - OOS
Coastal Alabama CC,1275,Barnett Sikoya,7/29/2020,61,Upward Bound MR,Printing and Binding - OOS
Coastal Alabama CC,1276,Bayles Kiley,7/29/2020,41,Upward Bound MR,Printing and Binding - OOS
Coastal Alabama CC,1277,Beasley Labrina,7/29/2020,78,Upward Bound MR,Printing and Binding - OOS
Coastal Alabama CC,1278,Blackmon Abrianna,7/29/2020,90,Upward Bound MR,Printing and Binding - OOS
Coastal Alabama CC,1279,Bonner JaKendria,7/29/2020,64,Upward Bound MR,Printing and Binding - OOS
Coastal Alabama CC,1280,Booker MacKeyshia,7/29/2020,88,Upward Bound MR,Printing and Binding - OOS
Coastal Alabama CC,1281,Bradley Laterrica,7/29/2020,63,Upward Bound MR,Printing and Binding - OOS
Coastal Alabama CC,1282,Briggs Brian,7/29/2020,60,Upward Bound MR,Printing and Binding - OOS
Coastal Alabama CC,1283,Chambers India,7/29/2020,58,Upward Bound MR,Printing and Binding - OOS
Coastal Alabama CC,1284,Chambers Nykeria,7/29/2020,56,Upward Bound MR,Printing and Binding - OOS
Coastal Alabama CC,1285,Clausell Jadon,7/29/2020,67,Upward Bound MR,Printing and Binding - OOS
Coastal Alabama CC,1286,Cooper Malik,7/29/2020,71,Upward Bound MR,Printing and Binding - OOS
Coastal Alabama CC,1287,Dale D'Zharria,7/29/2020,57,Upward Bound MR,Printing and Binding - OOS
Coastal Alabama CC,1288,Evans Makeda,7/29/2020,90,Upward Bound MR,Printing and Binding - OOS
Coastal Alabama CC,1289,Hands Yasmine,7/29/2020,49,Upward Bound MR,Printing and Binding - OOS
Coastal Alabama CC,1290,Harrison Presteria,7/29/2020,63,Upward Bound MR,Printing and Binding - OOS
Coastal Alabama CC,1291,Hill Shaquerrian,7/29/2020,57,Upward Bound MR,Printing and Binding - OOS
Coastal Alabama CC,1292,Hollinger Tyler,7/29/2020,57,Upward Bound MR,Printing and Binding - OOS
Coastal Alabama CC,1293,Huff Gerald,7/29/2020,55,Upward Bound MR,Printing and Binding - OOS
Coastal Alabama CC,1294,Johnson Alex,7/29/2020,63,Upward Bound MR,Printing and Binding - OOS
Coastal Alabama CC,1295,Johnson Navare,7/29/2020,74,Upward Bound MR,Printing and Binding - OOS
Coastal Alabama CC,1296,Johnson Terriaunna,7/29/2020,90,Upward Bound MR,Printing and Binding - OOS
Coastal Alabama CC,1297,Kyles KeNijah,7/29/2020,51,Upward Bound MR,Printing and Binding - OOS
Coastal Alabama CC,1298,Lee Aeireyonna,7/29/2020,58,Upward Bound MR,Printing and Binding - OOS
Coastal Alabama CC,1299,Lett Shekinah,7/29/2020,82,Upward Bound MR,Printing and Binding - OOS
Coastal Alabama CC,1300,Lowery Kelsey,7/29/2020,153,Upward Bound MR,Printing and Binding - OOS
Coastal Alabama CC,1301,Manual Paige,7/29/2020,59,Upward Bound MR,Printing and Binding - OOS
Coastal Alabama CC,1302,Martin Zalen,7/29/2020,71,Upward Bound MR,Printing and Binding - OOS
Coastal Alabama CC,1303,Mccants Tabitha,7/29/2020,58,Upward Bound MR,Printing and Binding - OOS
Coastal Alabama CC,1304,McCaskill Lameria,7/29/2020,60,Upward Bound MR,Printing and Binding - OOS
Coastal Alabama CC,1305,McIntosh Angel,7/29/2020,84,Upward Bound MR,Printing and Binding - OOS
Coastal Alabama CC,1306,Millender Dazzlin,7/29/2020,90,Upward Bound MR,Printing and Binding - OOS
Coastal Alabama CC,1307,Miller Keona,7/29/2020,72,Upward Bound MR,Printing and Binding - OOS
Coastal Alabama CC,1308,Montgomery Amardia,7/29/2020,56,Upward Bound MR,Printing and Binding - OOS
Coastal Alabama CC,1309,Nettles Aaliyah,7/29/2020,90,Upward Bound MR,Printing and Binding - OOS
Coastal Alabama CC,1310,Nettles Angel,7/29/2020,80,Upward Bound MR,Printing and Binding - OOS
Coastal Alabama CC,1311,Nettles Anthony,7/29/2020,90,Upward Bound MR,Printing and Binding - OOS
Coastal Alabama CC,1312,Nettles Asia,7/29/2020,90,Upward Bound MR,Printing and Binding - OOS
Coastal Alabama CC,1313,Nettles Makayla,7/29/2020,55,Upward Bound MR,Printing and Binding - OOS
Coastal Alabama CC,1314,North Alaina,7/29/2020,79,Upward Bound MR,Printing and Binding - OOS
Coastal Alabama CC,1315,Odom Rayera,7/29/2020,54,Upward Bound MR,Printing and Binding - OOS
Coastal Alabama CC,1316,Parker Celby,7/29/2020,86,Upward Bound MR,Printing and Binding - OOS
Coastal Alabama CC,1317,Parker Christian,7/29/2020,47,Upward Bound MR,Printing and Binding - OOS
Coastal Alabama CC,1318,Patrick Jada,7/29/2020,90,Upward Bound MR,Printing and Binding - OOS
Coastal Alabama CC,1319,Powell Morgan,7/29/2020,82,Upward Bound MR,Printing and Binding - OOS
Coastal Alabama CC,1320,Rankins Devonte,7/29/2020,46,Upward Bound MR,Printing and Binding - OOS
Coastal Alabama CC,1321,Riley Kahlyria,7/29/2020,90,Upward Bound MR,Printing and Binding - OOS
Coastal Alabama CC,1322,Roberts Kaylee,7/29/2020,51,Upward Bound MR,Printing and Binding - OOS
Coastal Alabama CC,1323,Robinson Zaniyah,7/29/2020,70,Upward Bound MR,Printing and Binding - OOS
Coastal Alabama CC,1324,Salter Veronica,7/29/2020,68,Upward Bound MR,Printing and Binding - OOS
Coastal Alabama CC,1325,Scott Dontavia,7/29/2020,86,Upward Bound MR,Printing and Binding - OOS
Coastal Alabama CC,1326,Stallworth Jkwan,7/29/2020,51,Upward Bound MR,Printing and Binding - OOS
Coastal Alabama CC,1327,Stallworth Kaylee,7/29/2020,71,Upward Bound MR,Printing and Binding - OOS
Coastal Alabama CC,1328,Stallworth Kyree,7/29/2020,86,Upward Bound MR,Printing and Binding - OOS
Coastal Alabama CC,1329,Stallworth Mahari,7/29/2020,90,Upward Bound MR,Printing and Binding - OOS
Coastal Alabama CC,1330,Stallworth Makaela,7/29/2020,87,Upward Bound MR,Printing and Binding - OOS
Coastal Alabama CC,1331,Stallworth Treasure,7/29/2020,84,Upward Bound MR,Printing and Binding - OOS
Coastal Alabama CC,1332,Stallworth Yasmin,7/29/2020,43,Upward Bound MR,Printing and Binding - OOS
Coastal Alabama CC,1333,Stallworth Zaveion,7/29/2020,74,Upward Bound MR,Printing and Binding - OOS
Coastal Alabama CC,1334,Stovall Catalina,7/29/2020,90,Upward Bound MR,Printing and Binding - OOS
Coastal Alabama CC,1335,Thames Charity,7/29/2020,74,Upward Bound MR,Printing and Binding - OOS
Coastal Alabama CC,1336,Walker Kei'ron,7/29/2020,90,Upward Bound MR,Printing and Binding - OOS
Coastal Alabama CC,1337,Watkins Sadiyah,7/29/2020,49,Upward Bound MR,Printing and Binding - OOS
Coastal Alabama CC,1338,Wiggins Jr Tamarius,7/29/2020,57,Upward Bound MR,Printing and Binding - OOS
Coastal Alabama CC,1339,Williams Kalese,7/29/2020,60,Upward Bound MR,Printing and Binding - OOS
Coastal Alabama CC,1340,Wright Kayvis,7/29/2020,54,Upward Bound MR,Printing and Binding - OOS
Coastal Alabama CC,1341,Adams Ta'Kya,7/30/2020,75,Upward Bound TV,Stipends-Attendance
Coastal Alabama CC,1342,Arnold Ashauntys,7/30/2020,90,Upward Bound TV,Stipends-Attendance
Coastal Alabama CC,1343,Augburn Mikale,7/30/2020,60,Upward Bound TV,Stipends-Attendance
Coastal Alabama CC,1344,Augburn Tyrese,7/30/2020,80,Upward Bound TV,Stipends-Attendance
Coastal Alabama CC,1345,Autery Nicholas,7/30/2020,90,Upward Bound TV,Stipends-Attendance
Coastal Alabama CC,1346,Banks Teah,7/30/2020,90,Upward Bound TV,Stipends-Attendance
Coastal Alabama CC,1347,Bass Sequeshia,7/30/2020,90,Upward Bound TV,Stipends-Attendance
Coastal Alabama CC,1348,Blackmon Morgan,7/30/2020,90,Upward Bound TV,Stipends-Attendance
Coastal Alabama CC,1349,Bonner Jakayla,7/30/2020,90,Upward Bound TV,Stipends-Attendance
Coastal Alabama CC,1350,Boykin Janiya,7/30/2020,90,Upward Bound TV,Stipends-Attendance
Coastal Alabama CC,1351,Bruno Quanesha,7/30/2020,90,Upward Bound TV,Stipends-Attendance
Coastal Alabama CC,1352,Calhoun Malayshia,7/30/2020,60,Upward Bound TV,Stipends-Attendance
Coastal Alabama CC,1353,Callen Asia,7/30/2020,75,Upward Bound TV,Stipends-Attendance
Coastal Alabama CC,1354,Campbell Ariell,7/30/2020,75,Upward Bound TV,Stipends-Attendance
Coastal Alabama CC,1355,Carswell Amaya,7/30/2020,90,Upward Bound TV,Stipends-Attendance
Coastal Alabama CC,1356,Carter Jaylen,7/30/2020,90,Upward Bound TV,Stipends-Attendance
Coastal Alabama CC,1357,Champion Ashanti,7/30/2020,90,Upward Bound TV,Stipends-Attendance
Coastal Alabama CC,1358,Cheeseboro Markel,7/30/2020,60,Upward Bound TV,Stipends-Attendance
Coastal Alabama CC,1359,Cowan Zaria,7/30/2020,90,Upward Bound TV,Stipends-Attendance
Coastal Alabama CC,1360,Davis D'Asia,7/30/2020,90,Upward Bound TV,Stipends-Attendance
Coastal Alabama CC,1361,Davis Tyshawn,7/30/2020,90,Upward Bound TV,Stipends-Attendance
Coastal Alabama CC,1362,Dozier Christane,7/30/2020,90,Upward Bound TV,Stipends-Attendance
Coastal Alabama CC,1363,Ervin Kevia,7/30/2020,75,Upward Bound TV,Stipends-Attendance
Coastal Alabama CC,1364,Evans Durand,7/30/2020,90,Upward Bound TV,Stipends-Attendance
Coastal Alabama CC,1365,Fail Shania,7/30/2020,90,Upward Bound TV,Stipends-Attendance
Coastal Alabama CC,1366,Garner Ta'Nija,7/30/2020,90,Upward Bound TV,Stipends-Attendance
Coastal Alabama CC,1367,Harris Dominqiue,7/30/2020,90,Upward Bound TV,Stipends-Attendance
Coastal Alabama CC,1368,Harris Scottianna,7/30/2020,75,Upward Bound TV,Stipends-Attendance
Coastal Alabama CC,1369,Hill Tyanena,7/30/2020,90,Upward Bound TV,Stipends-Attendance
Coastal Alabama CC,1370,Jackson Laquarius,7/30/2020,80,Upward Bound TV,Stipends-Attendance
Coastal Alabama CC,1371,January Shuntae,7/30/2020,75,Upward Bound TV,Stipends-Attendance
Coastal Alabama CC,1372,Johnson TaMiria,7/30/2020,90,Upward Bound TV,Stipends-Attendance
Coastal Alabama CC,1373,Jones Chrishundra,7/30/2020,90,Upward Bound TV,Stipends-Attendance
Coastal Alabama CC,1374,Kennedy Jada,7/30/2020,60,Upward Bound TV,Stipends-Attendance
Coastal Alabama CC,1375,Kimbrough Tierra,7/30/2020,90,Upward Bound TV,Stipends-Attendance
Coastal Alabama CC,1376,King Mikaya,7/30/2020,60,Upward Bound TV,Stipends-Attendance
Coastal Alabama CC,1377,Lee Telyn,7/30/2020,80,Upward Bound TV,Stipends-Attendance
Coastal Alabama CC,1378,Lytton Bryceton,7/30/2020,60,Upward Bound TV,Stipends-Attendance
Coastal Alabama CC,1379,Martin Evonte,7/30/2020,60,Upward Bound TV,Stipends-Attendance
Coastal Alabama CC,1380,McCall Toneka,7/30/2020,90,Upward Bound TV,Stipends-Attendance
Coastal Alabama CC,1381,McCoy Jalen,7/30/2020,75,Upward Bound TV,Stipends-Attendance
Coastal Alabama CC,1382,McCreary Justin,7/30/2020,90,Upward Bound TV,Stipends-Attendance
Coastal Alabama CC,1383,Mccreary Ryan,7/30/2020,90,Upward Bound TV,Stipends-Attendance
Coastal Alabama CC,1384,McMillian Za'Riyah,7/30/2020,80,Upward Bound TV,Stipends-Attendance
Coastal Alabama CC,1385,Myrthil Ruth,7/30/2020,90,Upward Bound TV,Stipends-Attendance
Coastal Alabama CC,1386,Norwood Gerald,7/30/2020,60,Upward Bound TV,Stipends-Attendance
Coastal Alabama CC,1387,Pace Amari,7/30/2020,90,Upward Bound TV,Stipends-Attendance
Coastal Alabama CC,1388,Pernell Faith,7/30/2020,90,Upward Bound TV,Stipends-Attendance
Coastal Alabama CC,1389,Pickett Dandre,7/30/2020,90,Upward Bound TV,Stipends-Attendance
Coastal Alabama CC,1390,Pope Hailey,7/30/2020,90,Upward Bound TV,Stipends-Attendance
Coastal Alabama CC,1391,Pritchett Shadiamond,7/30/2020,90,Upward Bound TV,Stipends-Attendance
Coastal Alabama CC,1392,Pugh JaMichael,7/30/2020,75,Upward Bound TV,Stipends-Attendance
Coastal Alabama CC,1393,Richardson Jalisa,7/30/2020,90,Upward Bound TV,Stipends-Attendance
Coastal Alabama CC,1394,Sanders Olivia,7/30/2020,90,Upward Bound TV,Stipends-Attendance
Coastal Alabama CC,1395,Scott David,7/30/2020,80,Upward Bound TV,Stipends-Attendance
Coastal Alabama CC,1396,Sigler Kiarra,7/30/2020,75,Upward Bound TV,Stipends-Attendance
Coastal Alabama CC,1397,Steward Jahmeria,7/30/2020,80,Upward Bound TV,Stipends-Attendance
Coastal Alabama CC,1398,Thomas Shaslin,7/30/2020,60,Upward Bound TV,Stipends-Attendance
Coastal Alabama CC,1399,Tripp Angel,7/30/2020,60,Upward Bound TV,Stipends-Attendance
Coastal Alabama CC,1400,Walker Kel'Juan,7/30/2020,45,Upward Bound TV,Stipends-Attendance
Coastal Alabama CC,1401,Waters Tiauna,7/30/2020,60,Upward Bound TV,Stipends-Attendance
Coastal Alabama CC,1402,Watkins Yoshida,7/30/2020,90,Upward Bound TV,Stipends-Attendance
Coastal Alabama CC,1403,Welch Tanavia,7/30/2020,30,Upward Bound TV,Stipends-Attendance
Coastal Alabama CC,1404,Wilson Dre'Von,7/30/2020,45,Upward Bound TV,Stipends-Attendance
Coastal Alabama CC,1405,Witherspoon Alayna,7/30/2020,60,Upward Bound TV,Stipends-Attendance
Coastal Alabama CC,1406,Woods Madison,7/30/2020,90,Upward Bound TV,Stipends-Attendance
Coastal Alabama CC,1407,Wright Kameron,7/30/2020,90,Upward Bound TV,Stipends-Attendance
Coastal Alabama CC,1408,Air Specialty Inc ,7/31/2020,917.28,Unrestricted-Fairhope,Maintenance & Repairs  - OOS
Coastal Alabama CC,1408,Air Specialty Inc ,7/31/2020,3286.88,Unrestricted -Bay Minette,Maintenance & Repairs  - OOS
Coastal Alabama CC,1409,Assurance Service Group Inc ,7/31/2020,12532.65,R&R Bay Minette,Maintenance & Repairs  - OOS
Coastal Alabama CC,1410,AT&T ,7/31/2020,2244.73,Unrestricted -Bay Minette,Landline Phones - UC
Coastal Alabama CC,1411,Berney Office Solutions ,7/31/2020,1.18,Student Support Service -BM,Short-Term Equipment Rentals - OOS
Coastal Alabama CC,1411,Berney Office Solutions ,7/31/2020,9.74,Unrestricted -Brewton,Short-Term Equipment Rentals - OOS
Coastal Alabama CC,1411,Berney Office Solutions ,7/31/2020,30.5,Unrestricted-Thomasville,Short-Term Equipment Rentals - OOS
Coastal Alabama CC,1411,Berney Office Solutions ,7/31/2020,44.36,Unrestricted-Fairhope,Short-Term Equipment Rentals - OOS
Coastal Alabama CC,1411,Berney Office Solutions ,7/31/2020,80.15,Unrestricted - Fountain,Short-Term Equipment Rentals - OOS
Coastal Alabama CC,1411,Berney Office Solutions ,7/31/2020,92.73,Unrestricted - Brookley Field,Short-Term Equipment Rentals - OOS
Coastal Alabama CC,1411,Berney Office Solutions ,7/31/2020,103.36,Unrestricted -Bay Minette,Short-Term Equipment Rentals - OOS
Coastal Alabama CC,1411,Berney Office Solutions ,7/31/2020,10902.1,Unrestricted Shared Services,Other Contractual Services - PS
Coastal Alabama CC,1412,Bywater Solutions Llc ,7/31/2020,2750,Unrestricted -Bay Minette,Other Contractual Services - PS
Coastal Alabama CC,1412,Bywater Solutions Llc ,7/31/2020,2750,Unrestricted -Brewton,Other Contractual Services - PS
Coastal Alabama CC,1412,Bywater Solutions Llc ,7/31/2020,2750,Unrestricted-Monroeville,Subscriptions - OOS
Coastal Alabama CC,1413,Centaur Building Services Southeast Inc. ,7/31/2020,2079.31,Unrestricted-Gilbertown,Other Contractual Services - PS
Coastal Alabama CC,1413,Centaur Building Services Southeast Inc. ,7/31/2020,2265.73,Unrestricted -Gulf Shores,Other Contractual Services - PS
Coastal Alabama CC,1413,Centaur Building Services Southeast Inc. ,7/31/2020,2748.03,Unrestricted - Brookley Field,Other Contractual Services - PS
Coastal Alabama CC,1413,Centaur Building Services Southeast Inc. ,7/31/2020,3393.2,Unrestricted - Atmore,Other Contractual Services - PS
Coastal Alabama CC,1413,Centaur Building Services Southeast Inc. ,7/31/2020,5827.5,Unrestricted-Fairhope,Other Contractual Services - PS
Coastal Alabama CC,1413,Centaur Building Services Southeast Inc. ,7/31/2020,24701.51,Unrestricted -Bay Minette,Other Contractual Services - PS
Coastal Alabama CC,1414,CrossBay Digital Marketing ,7/31/2020,4500,AE - State Regular,Advertising & Promotions - OOS
Coastal Alabama CC,1415,EBSCO Industries Inc ,7/31/2020,335.93,Unrestricted -Bay Minette,Subscriptions - OOS
Coastal Alabama CC,1415,EBSCO Industries Inc ,7/31/2020,586.03,Unrestricted - Brookley Field,Subscriptions - OOS
Coastal Alabama CC,1416,Instructure Inc. ,7/31/2020,164357.14,Unrestricted Distance Ed,Other Contractual Services - PS
Coastal Alabama CC,1417,Magnolia Clipping & Broadcast Monitoring Service ,7/31/2020,69,Unrestricted -Bay Minette,Advertising & Promotions - OOS
Coastal Alabama CC,1418,McElhenney Construction Company LLC ,7/31/2020,89653.43,R&R Bay Minette,Improvements - Other - CE
Coastal Alabama CC,1419,Mott MacDonald Alabama LLC ,7/31/2020,26240,Unexpended Plant Bay Minette,Building Alterations - CE
Coastal Alabama CC,1420,Opc News Llc ,7/31/2020,575,Unrestricted -Bay Minette,Advertising & Promotions - OOS
Coastal Alabama CC,1421,Outkast ,7/31/2020,500,Unrestricted -Bay Minette,Advertising & Promotions - OOS
Coastal Alabama CC,1422,PEEHIP ,7/31/2020,800,Unrestricted - Brookley Field,Group Health Insurance - FB
Coastal Alabama CC,1422,PEEHIP ,7/31/2020,800,Unrestricted-Fairhope,Group Health Insurance - FB
Coastal Alabama CC,1422,PEEHIP ,7/31/2020,2240,Unrestricted Shared Services,Group Health Insurance - FB
Coastal Alabama CC,1423,United Parcel Service Inc ,7/31/2020,3,Unrestricted -Bay Minette,Postage - OOS
Coastal Alabama CC,1424,United Rentals (North America) Inc. ,7/31/2020,484.19,Unrestricted -Bay Minette,Maintenance & Repairs  - OOS
Coastal Alabama CC,1425,Usa Adventures Llc ,7/31/2020,1580,Unrestricted -Bay Minette,Advertising & Promotions - OOS
Coastal Alabama CC,1426,Weiser ,7/31/2020,102.4,Unrestricted -Gulf Shores,Other Contractual Services - PS
Coastal Alabama CC,1426,Weiser ,7/31/2020,528,Unrestricted -Fairhope Academy,Other Contractual Services - PS
Coastal Alabama CC,1426,Weiser ,7/31/2020,985.6,Unrestricted - Brookley Field,Other Contractual Services - PS
Coastal Alabama CC,1427,Alert Protection Systems Inc ,8/4/2020,43,Unrestricted - Atmore,Other Contractual Services - PS
Coastal Alabama CC,1428,Alston Electric Supply Co Inc ,8/4/2020,51.24,Unrestricted -Brewton,Maintenance & Repairs  - OOS
Coastal Alabama CC,1429,Association for Student Conduct Administration ,8/4/2020,437.5,Unrestricted -Bay Minette,Other Professional Fees - PS
Coastal Alabama CC,1431,C & C Plumbing & Servc Co ,8/4/2020,6800,Unrestricted -Bay Minette,Maintenance & Repairs  - OOS
Coastal Alabama CC,1433,EBSCO Industries Inc ,8/4/2020,1380.98,Unrestricted -Bay Minette,Subscriptions - OOS
Coastal Alabama CC,1434,Fairhope Public Utilities ,8/4/2020,11.63,Unrestricted-Fairhope,Gas & Heating Fuel - UC
Coastal Alabama CC,1434,Fairhope Public Utilities ,8/4/2020,458.2,Unrestricted-Fairhope,Water & Sewer - UC
Coastal Alabama CC,1434,Fairhope Public Utilities ,8/4/2020,17565.72,Unrestricted-Fairhope,Electricity - UC
Coastal Alabama CC,1437,Help/Systems Inc ,8/4/2020,2391.03,Unrestricted -Bay Minette,Technology - non capitalized - MS
Coastal Alabama CC,1442,Mobile Airport Authority ,8/4/2020,461.33,Unrestricted - Brookley Field,Short-Term Building Rentals - OOS
Coastal Alabama CC,1443,Mobile Area Water and Sewer System ,8/4/2020,378.91,Unrestricted - Brookley Field,Water & Sewer - UC
Coastal Alabama CC,1444,Monroeville Main Street ,8/4/2020,500,Unrestricted -Bay Minette,Advertising & Promotions - OOS
Coastal Alabama CC,1446,North Baldwin Utilities ,8/4/2020,132.96,Food Services- Bay Minette,Gas & Heating Fuel - UC
Coastal Alabama CC,1446,North Baldwin Utilities ,8/4/2020,921.39,Housing- Bay Minette,Gas & Heating Fuel - UC
Coastal Alabama CC,1446,North Baldwin Utilities ,8/4/2020,1555.51,Housing- Bay Minette,Water & Sewer - UC
Coastal Alabama CC,1446,North Baldwin Utilities ,8/4/2020,2841.89,Unrestricted -Bay Minette,Gas & Heating Fuel - UC
Coastal Alabama CC,1446,North Baldwin Utilities ,8/4/2020,3574.24,Unrestricted -Bay Minette,Water & Sewer - UC
Coastal Alabama CC,1448,Republic Services Inc. ,8/4/2020,97.02,Unrestricted -Gulf Shores,Waste Disposal - UC
Coastal Alabama CC,1448,Republic Services Inc. ,8/4/2020,138.18,Unrestricted - Brookley Field,Waste Disposal - UC
Coastal Alabama CC,1450,Staples Contract & Commercial Inc ,8/4/2020,208.88,Unrestricted -Bay Minette,Materials and Supplies - MS
Coastal Alabama CC,1451,Staples Contract & Commercial Inc ,8/4/2020,265.79,Unrestricted -Bay Minette,Materials and Supplies - MS
Coastal Alabama CC,1470,Air Specialty Inc ,8/6/2020,105,Unrestricted - Brookley Field,Maintenance & Repairs  - OOS
Coastal Alabama CC,1470,Air Specialty Inc ,8/6/2020,613.2,Unrestricted -Bay Minette,Materials and Supplies - MS
Coastal Alabama CC,1471,Alabama Power Company ,8/6/2020,3756.05,Unrestricted -Bay Minette,Electricity - UC
Coastal Alabama CC,1473,Allied Universal Technology Services ,8/6/2020,127,Unrestricted -Bay Minette,Technology - non capitalized - MS
Coastal Alabama CC,1474,Apogee Telecom Inc ,8/6/2020,970.25,Unrestricted -Bay Minette,Technology - non capitalized - MS
Coastal Alabama CC,1474,Apogee Telecom Inc ,8/6/2020,2604.76,Housing - Brewton,Other Contractual Services - PS
Coastal Alabama CC,1474,Apogee Telecom Inc ,8/6/2020,16000.69,Housing- Bay Minette,Other Contractual Services - PS
Coastal Alabama CC,1475,AT&T Mobility National Accounts LLC ,8/6/2020,164.96,AE-Federal Regular,Internet - UC
Coastal Alabama CC,1476,Bay Minette Building Supply ,8/6/2020,155.98,Other Auxiliary- Bay Minette,Materials and Supplies - MS
Coastal Alabama CC,1479,Central Painters Supply ,8/6/2020,995.25,Prison,Purchases for Resale (COGS) - MS
Coastal Alabama CC,1480,City of Brewton Utility Dept ,8/6/2020,159.57,Unrestricted -Brewton,Gas & Heating Fuel - UC
Coastal Alabama CC,1480,City of Brewton Utility Dept ,8/6/2020,480.24,Unrestricted -Brewton,Water & Sewer - UC
Coastal Alabama CC,1481,Complete Safety Work Inc ,8/6/2020,144,Unrestricted -Brewton,Materials and Supplies - MS
Coastal Alabama CC,1482,CrossBay Digital Marketing ,8/6/2020,2250,AE-Federal Regular,Advertising & Promotions - OOS
Coastal Alabama CC,1483,Davis Fireman Pest Contro ,8/6/2020,1100,Unrestricted-Thomasville,Other Professional Fees - PS
Coastal Alabama CC,1485,Deas Building Supply Inc ,8/6/2020,585.57,Unrestricted-Monroeville,Maintenance & Repairs  - OOS
Coastal Alabama CC,1487,Design Frenzy Inc ,8/6/2020,650,Unrestricted -Bay Minette,Other Professional Fees - PS
Coastal Alabama CC,1488,Directv Inc ,8/6/2020,138.99,Unrestricted-Gilbertown,Other Professional Fees - PS
Coastal Alabama CC,1488,Directv Inc ,8/6/2020,194.99,Unrestricted-Monroeville,Other Professional Fees - PS
Coastal Alabama CC,1492,Geiger ,8/6/2020,3879.39,Upward Bound MR,Materials and Supplies - MS
Coastal Alabama CC,1494,Grad Pro Recognition Prod ,8/6/2020,790.95,Abe Deposit Liabilities,Deposits Held for Others - Agency
Coastal Alabama CC,1496,Gulf State Distributors ,8/6/2020,846,Unrestricted -Bay Minette,Materials and Supplies - MS
Coastal Alabama CC,1497,Heartland Campus Solutions Ecsi ,8/6/2020,5761.53,Unrestricted Shared Services,Bank Card Fees - PS
Coastal Alabama CC,1500,Keith's Coatings ,8/6/2020,3000,Unrestricted -Gulf Shores,Maintenance & Repairs  - OOS
Coastal Alabama CC,1501,Laerdal ,8/6/2020,6502.5,Industry Certification Initiatives,Other Professional Fees - PS
Coastal Alabama CC,1501,Laerdal ,8/6/2020,7290,Industry Certification Initiatives,Computer Software(non capital) - MS
Coastal Alabama CC,1502,Lamar Advertising Company ,8/6/2020,3791,Unrestricted -Bay Minette,Advertising & Promotions - OOS
Coastal Alabama CC,1504,Mediacom Southeast ,8/6/2020,2250,Unrestricted -Brewton,Internet - UC
Coastal Alabama CC,1505,Mediacom Southeast ,8/6/2020,60,Food Services- Bay Minette,Other Professional Fees - PS
Coastal Alabama CC,1505,Mediacom Southeast ,8/6/2020,4320.1,Housing- Bay Minette,Other Professional Fees - PS
Coastal Alabama CC,1506,Mercer Health & Benefits Administration LLC ,8/6/2020,5855,Unrestricted -Bay Minette,Insurance and Bonding - PS
Coastal Alabama CC,1508,Mobile Area Chamber of Commerce ,8/6/2020,500,Unrestricted -Bay Minette,Advertising & Promotions - OOS
Coastal Alabama CC,1509,Mobile Glass Llc ,8/6/2020,332,CARES Act - College Relief,Internal Purchases - MS
Coastal Alabama CC,1512,Ocs Electrical Services ,8/6/2020,1512,Unrestricted-Thomasville,Maintenance & Repairs  - OOS
Coastal Alabama CC,1513,Quadient Leasing USA Inc ,8/6/2020,195.39,Unrestricted - Brookley Field,Short-Term Equipment Rentals - OOS
Coastal Alabama CC,1514,Quill Corporation ,8/6/2020,121.15,Student Support Service -BR,Materials and Supplies - MS
Coastal Alabama CC,1516,Rp Group Llc ,8/6/2020,81,Food Services- Bay Minette,Other Professional Fees - PS
Coastal Alabama CC,1517,RSI Mechanical Inc ,8/6/2020,310,Food Services- Bay Minette,Maintenance & Repairs  - OOS
Coastal Alabama CC,1518,Stanley Convergent Security Solutions Inc ,8/6/2020,239.06,Housing- Bay Minette,Service Contracts on Equipment -OOS
Coastal Alabama CC,1519,Staples Contract & Commercial Inc ,8/6/2020,89.97,Unrestricted-Fairhope,Materials and Supplies - MS
Coastal Alabama CC,1519,Staples Contract & Commercial Inc ,8/6/2020,145.38,Unrestricted -Bay Minette,Materials and Supplies - MS
Coastal Alabama CC,1520,Staples Contract & Commercial Inc ,8/6/2020,540.77,Unrestricted -Bay Minette,Materials and Supplies - MS
Coastal Alabama CC,1521,State of Alabama ,8/6/2020,48646.89,Unrestricted-Monroeville,Landline Phones - UC
Coastal Alabama CC,1522,State of Alabama ,8/6/2020,390,Unrestricted -Bay Minette,Other Professional Fees - PS
Coastal Alabama CC,1523,Sunbelt Rentals Inc ,8/6/2020,9333.92,R&R Bay Minette,Short-Term Equipment Rentals - OOS
Coastal Alabama CC,1524,Supreme Paper Supplies LLC ,8/6/2020,814.39,Unrestricted -Gulf Shores,Materials and Supplies - MS
Coastal Alabama CC,1525,Tdfaithllc ,8/6/2020,3133.5,Unrestricted -Bay Minette,Materials and Supplies - MS
Coastal Alabama CC,1526,The Forum On ,8/6/2020,400,Unrestricted -Gulf Shores,Memberships - PS
Coastal Alabama CC,1527,Verizon Wireless ,8/6/2020,55.41,Unrestricted -Bay Minette,Wireless Phones - UC
Coastal Alabama CC,1528,Waste Management ,8/6/2020,766.98,Unrestricted -Gulf Shores,Waste Disposal - UC
Coastal Alabama CC,1529,Waste Management ,8/6/2020,310.7,Unrestricted-Gilbertown,Waste Disposal - UC
Coastal Alabama CC,1531,A & A Refrigeration ,8/13/2020,297.16,Unrestricted -Gulf Shores,Maintenance & Repairs  - OOS
Coastal Alabama CC,1531,A & A Refrigeration ,8/13/2020,319.24,Unrestricted -Gulf Shores,Materials and Supplies - MS
Coastal Alabama CC,1532,Ace Home Center of Fairhope ,8/13/2020,247.53,Unrestricted-Fairhope,Materials and Supplies - MS
Coastal Alabama CC,1533,Air Specialty Inc ,8/13/2020,5805.6,Unrestricted-Fairhope,Maintenance & Repairs  - OOS
Coastal Alabama CC,1534,Airgas Gulf States ,8/13/2020,17.48,Unrestricted-Fairhope,Short-Term Equipment Rentals - OOS
Coastal Alabama CC,1534,Airgas Gulf States ,8/13/2020,20.89,Unrestricted - Brookley Field,Materials and Supplies - MS
Coastal Alabama CC,1534,Airgas Gulf States ,8/13/2020,20.89,Unrestricted -Bay Minette,Short-Term Equipment Rentals - OOS
Coastal Alabama CC,1534,Airgas Gulf States ,8/13/2020,175.49,Unrestricted - Atmore,Short-Term Equipment Rentals - OOS
Coastal Alabama CC,1534,Airgas Gulf States ,8/13/2020,206.44,Unrestricted - Fountain,Short-Term Equipment Rentals - OOS
Coastal Alabama CC,1534,Airgas Gulf States ,8/13/2020,227.83,Unrestricted-Monroeville,Short-Term Equipment Rentals - OOS
Coastal Alabama CC,1535,Assurance Service Group Inc ,8/13/2020,6612.2,Unrestricted - Atmore,Maintenance & Repairs  - OOS
Coastal Alabama CC,1535,Assurance Service Group Inc ,8/13/2020,8745,R&R  Atmore,Building Alterations - CE
Coastal Alabama CC,1535,Assurance Service Group Inc ,8/13/2020,9622,R&R  Brewton,Maintenance & Repairs  - OOS
Coastal Alabama CC,1535,Assurance Service Group Inc ,8/13/2020,19924,Advanced Technology Funds,Maintenance & Repairs  - OOS
Coastal Alabama CC,1536,Atalian US Midwest LL ,8/13/2020,2079.31,Unrestricted-Gilbertown,Other Contractual Services - PS
Coastal Alabama CC,1536,Atalian US Midwest LL ,8/13/2020,2265.73,Unrestricted -Gulf Shores,Other Contractual Services - PS
Coastal Alabama CC,1536,Atalian US Midwest LL ,8/13/2020,2748.03,Unrestricted - Brookley Field,Other Contractual Services - PS
Coastal Alabama CC,1536,Atalian US Midwest LL ,8/13/2020,3393.2,Unrestricted - Atmore,Other Contractual Services - PS
Coastal Alabama CC,1536,Atalian US Midwest LL ,8/13/2020,5827.5,Unrestricted-Fairhope,Other Contractual Services - PS
Coastal Alabama CC,1536,Atalian US Midwest LL ,8/13/2020,24701.51,Unrestricted -Bay Minette,Other Contractual Services - PS
Coastal Alabama CC,1537,Atmore Newspapers Inc. ,8/13/2020,375,Unrestricted -Bay Minette,Advertising & Promotions - OOS
Coastal Alabama CC,1538,Baldwin Rural Area Transportation ,8/13/2020,1350,Unrestricted -Bay Minette,Other Contractual Services - PS
Coastal Alabama CC,1539,Bibliotheca LLC ,8/13/2020,1999,Unrestricted -Bay Minette,Service Contracts on Equipment -OOS
Coastal Alabama CC,1540,Bondurant Lumber & Hardwa ,8/13/2020,312.43,Housing - Brewton,Materials and Supplies - MS
Coastal Alabama CC,1540,Bondurant Lumber & Hardwa ,8/13/2020,740,Housing - Brewton,Maintenance & Repairs  - OOS
Coastal Alabama CC,1540,Bondurant Lumber & Hardwa ,8/13/2020,3243.98,Local Grants And Contracts,Materials and Supplies - MS
Coastal Alabama CC,1541,Bondurant Lumber & Hardwa ,8/13/2020,637.8,Housing - Brewton,Materials and Supplies - MS
Coastal Alabama CC,1542,Byrd's Eagle Printingllc ,8/13/2020,119.9,Student Support Service -BM,Materials and Supplies - MS
Coastal Alabama CC,1543,Carolina Biological Supply Co ,8/13/2020,399.39,Unrestricted-Fairhope,Materials and Supplies - MS
Coastal Alabama CC,1543,Carolina Biological Supply Co ,8/13/2020,905.73,Unrestricted -Bay Minette,Materials and Supplies - MS
Coastal Alabama CC,1545,City Electric Supply Co ,8/13/2020,69.69,Unrestricted-Fairhope,Materials and Supplies - MS
Coastal Alabama CC,1545,City Electric Supply Co ,8/13/2020,209.07,Unrestricted - Atmore,Materials and Supplies - MS
Coastal Alabama CC,1545,City Electric Supply Co ,8/13/2020,1514.88,Unrestricted -Bay Minette,Materials and Supplies - MS
Coastal Alabama CC,1545,City Electric Supply Co ,8/13/2020,10576.02,R&R Bay Minette,Maintenance & Repairs  - OOS
Coastal Alabama CC,1546,City of Brewton Utility Dept ,8/13/2020,110.49,Unrestricted -Brewton,Gas & Heating Fuel - UC
Coastal Alabama CC,1546,City of Brewton Utility Dept ,8/13/2020,169.26,Housing - Brewton,Water & Sewer - UC
Coastal Alabama CC,1546,City of Brewton Utility Dept ,8/13/2020,170.74,Unrestricted -Brewton,Water & Sewer - UC
Coastal Alabama CC,1547,City of Gulf Shores ,8/13/2020,344.1,Unrestricted -Gulf Shores,Water & Sewer - UC
Coastal Alabama CC,1548,City Of Jackson ,8/13/2020,37.32,Unrestricted-Thomasville,Waste Disposal - UC
Coastal Alabama CC,1549,City of Thomasville ,8/13/2020,1087.53,Unrestricted-Thomasville,Water & Sewer - UC
Coastal Alabama CC,1550,Cma Technology Solutions ,8/13/2020,3269.5,Unrestricted -Bay Minette,Other Contractual Services - PS
Coastal Alabama CC,1551,Dade Paper & Bag Co ,8/13/2020,15403.92,CARES Act - College Relief,Internal Purchases - MS
Coastal Alabama CC,1552,Democrat Reporter ,8/13/2020,160,Unrestricted -Bay Minette,Advertising & Promotions - OOS
Coastal Alabama CC,1553,Dental Assistant National Board ,8/13/2020,4575,Dental Assist Fees,Deposits Held for Others – Testing
Coastal Alabama CC,1554,Dozier Tire & Service ,8/13/2020,69.99,Unrestricted-Thomasville,Maintenance & Repairs  - OOS
Coastal Alabama CC,1555,Encore Rehabilitationinc ,8/13/2020,833.33,Unrestricted -Bay Minette,Other Contractual Services - PS
Coastal Alabama CC,1556,Fast Forward LLC ,8/13/2020,1800,Unrestricted -Bay Minette,Advertising & Promotions - OOS
Coastal Alabama CC,1557,Federal Express Corporation ,8/13/2020,21.55,Unrestricted -Bay Minette,Postage - OOS
Coastal Alabama CC,1558,Freemanville Water System ,8/13/2020,36.46,Unrestricted - Atmore,Water & Sewer - UC
Coastal Alabama CC,1559,Glenn Shepard Seminars In ,8/13/2020,39.97,Unrestricted -Bay Minette,Other Professional Fees - PS
Coastal Alabama CC,1560,Goodrow Inc. ,8/13/2020,130,Unrestricted - Brookley Field,Other Professional Fees - PS
Coastal Alabama CC,1561,Goodwyn Mills & Cawood Inc ,8/13/2020,1500,Unrestricted -Bay Minette,Engineering & Architectural Svc -PS
Coastal Alabama CC,1561,Goodwyn Mills & Cawood Inc ,8/13/2020,13612,Unrestricted -Brewton,Construction in Progress - CE
Coastal Alabama CC,1562,Grace Publishing Llc ,8/13/2020,225,Unrestricted -Bay Minette,Advertising & Promotions - OOS
Coastal Alabama CC,1563,Heiberg Consulting Inc. ,8/13/2020,1599,Upward Bound MR,Materials and Supplies - MS
Coastal Alabama CC,1564,Herrington's The Florist Inc ,8/13/2020,112.5,Courtesy Fund Br/At,Deposits Held for Others - Agency
Coastal Alabama CC,1565,Kilgore International Inc ,8/13/2020,1585.69,Unrestricted -Bay Minette,Materials and Supplies - MS
Coastal Alabama CC,1567,Kocurek Michael,8/13/2020,3000,Unrestricted-Monroeville,Other Professional Fees - PS
Coastal Alabama CC,1568,KONE Inc. ,8/13/2020,122.11,Unrestricted -Bay Minette,Other Contractual Services - PS
Coastal Alabama CC,1568,KONE Inc. ,8/13/2020,426.76,Unrestricted-Fairhope,Other Contractual Services - PS
Coastal Alabama CC,1568,KONE Inc. ,8/13/2020,623.91,Housing- Bay Minette,Other Contractual Services - PS
Coastal Alabama CC,1569,Lagniappe ,8/13/2020,3690,Unrestricted -Bay Minette,Advertising & Promotions - OOS
Coastal Alabama CC,1570,Lewis Pest Control Inc. ,8/13/2020,100,Unrestricted -Bay Minette,Maintenance & Repairs  - OOS
Coastal Alabama CC,1571,Lowe's Home Centers Inc ,8/13/2020,1034.46,Unrestricted -Bay Minette,Materials and Supplies - MS
Coastal Alabama CC,1572,Marvins ,8/13/2020,16.58,Unrestricted-Monroeville,Maintenance & Repairs  - OOS
Coastal Alabama CC,1572,Marvins ,8/13/2020,16.59,Unrestricted-Monroeville,Materials and Supplies - MS
Coastal Alabama CC,1573,Mobile Glass Llc ,8/13/2020,3550,CARES Act - College Relief,Internal Purchases - MS
Coastal Alabama CC,1574,Monroe Broadcasting ,8/13/2020,60,Unrestricted -Bay Minette,Advertising & Promotions - OOS
Coastal Alabama CC,1575,Mwi Animal Health ,8/13/2020,280.5,Unrestricted -Bay Minette,Materials and Supplies - MS
Coastal Alabama CC,1576,Nashville Chemical & ,8/13/2020,350,Unrestricted -Bay Minette,Maintenance & Repairs  - OOS
Coastal Alabama CC,1577,Network Services Company ,8/13/2020,269.88,Unrestricted-Monroeville,Materials and Supplies - MS
Coastal Alabama CC,1577,Network Services Company ,8/13/2020,1165.1,Unrestricted-Thomasville,Materials and Supplies - MS
Coastal Alabama CC,1577,Network Services Company ,8/13/2020,1288,Unrestricted -Brewton,Materials and Supplies - MS
Coastal Alabama CC,1578,North Baldwin Printing LLC ,8/13/2020,24,WIOA,Materials and Supplies - MS
Coastal Alabama CC,1579,PEEHIP ,8/13/2020,426.67,AE-Federal Regular,Group Health Insurance - FB
Coastal Alabama CC,1579,PEEHIP ,8/13/2020,800,Unrestricted -Brewton,Group Health Insurance - FB
Coastal Alabama CC,1580,PMT Publishing ,8/13/2020,1845,Unrestricted -Bay Minette,Advertising & Promotions - OOS
Coastal Alabama CC,1581,Power Productions Inc ,8/13/2020,5025,Unrestricted -Bay Minette,Other Professional Fees - PS
Coastal Alabama CC,1582,Professional Mechanical ,8/13/2020,373.5,Housing - Brewton,Maintenance & Repairs  - OOS
Coastal Alabama CC,1583,Publix Super Markets Inc ,8/13/2020,12.27,Unrestricted -Gulf Shores,Materials and Supplies - MS
Coastal Alabama CC,1584,Quill Corporation ,8/13/2020,156.55,Unrestricted-Monroeville,Materials and Supplies - MS
Coastal Alabama CC,1584,Quill Corporation ,8/13/2020,365.11,Unrestricted - Brookley Field,Materials and Supplies - MS
Coastal Alabama CC,1584,Quill Corporation ,8/13/2020,2632.37,Upward Bound MR,Materials and Supplies - MS
Coastal Alabama CC,1586,Republic Services Inc. ,8/13/2020,330,Unrestricted -Brewton,Waste Disposal - UC
Coastal Alabama CC,1586,Republic Services Inc. ,8/13/2020,387.61,Unrestricted - Fountain,Waste Disposal - UC
Coastal Alabama CC,1586,Republic Services Inc. ,8/13/2020,415.3,Unrestricted - Atmore,Waste Disposal - UC
Coastal Alabama CC,1586,Republic Services Inc. ,8/13/2020,1085.77,Housing - Brewton,Waste Disposal - UC
Coastal Alabama CC,1588,Rolin Construction Inc ,8/13/2020,24963.26,Unexpended Plant Bay Minette,Improvements - Other - CE
Coastal Alabama CC,1589,Rowell Tiffani,8/13/2020,800,Softball Booster Funds,Deposits Held for Others - Agency
Coastal Alabama CC,1590,Scantron Corporation ,8/13/2020,450,Unrestricted-Monroeville,Materials and Supplies - MS
Coastal Alabama CC,1591,Sherwin Williams Company ,8/13/2020,78.92,Housing - Brewton,Materials and Supplies - MS
Coastal Alabama CC,1591,Sherwin Williams Company ,8/13/2020,153.2,Unrestricted -Brewton,Materials and Supplies - MS
Coastal Alabama CC,1592,Sherwin Williams Company ,8/13/2020,137.65,Housing- Bay Minette,Materials and Supplies - MS
Coastal Alabama CC,1593,Sign-A-Rama ,8/13/2020,2075,CARES Act - College Relief,Internal Purchases - MS
Coastal Alabama CC,1594,South Alabama Gas ,8/13/2020,68.79,Unrestricted-Monroeville,Gas & Heating Fuel - UC
Coastal Alabama CC,1595,Southern Light Llc ,8/13/2020,3109.88,Unrestricted-Monroeville,Landline Phones - UC
Coastal Alabama CC,1595,Southern Light Llc ,8/13/2020,4911.08,Unrestricted-Gilbertown,Landline Phones - UC
Coastal Alabama CC,1596,Southern Linc Wireless ,8/13/2020,3224.24,Unrestricted -Bay Minette,Wireless Phones - UC
Coastal Alabama CC,1597,Southern Pine Electric Co ,8/13/2020,3039.19,Unrestricted -Brewton,Electricity - UC
Coastal Alabama CC,1598,Staples Contract & Commercial Inc ,8/13/2020,110.01,Unrestricted -Bay Minette,Materials and Supplies - MS
Coastal Alabama CC,1598,Staples Contract & Commercial Inc ,8/13/2020,138.65,Unrestricted -Brewton,Materials and Supplies - MS
Coastal Alabama CC,1599,Staples Contract & Commercial Inc ,8/13/2020,125.7,Unrestricted -Bay Minette,Materials and Supplies - MS
Coastal Alabama CC,1600,State of Alabama ,8/13/2020,75,Unrestricted -Brewton,Other Professional Fees - PS
Coastal Alabama CC,1601,State of Alabama ,8/13/2020,2412,Unrestricted -Bay Minette,Accounting & Auditing Services - PS
Coastal Alabama CC,1602,State of Alabama ,8/13/2020,51606,Unrestricted Shared Services,Bond Surety Fee Payable - AP
Coastal Alabama CC,1603,Stewart's Electrical Contractors ,8/13/2020,2000,Unrestricted-Fairhope,Maintenance & Repairs  - OOS
Coastal Alabama CC,1603,Stewart's Electrical Contractors ,8/13/2020,2900,Unrestricted -Bay Minette,Maintenance & Repairs  - OOS
Coastal Alabama CC,1604,Strickland Paper Company Inc ,8/13/2020,52.8,Upward Bound TV,Materials and Supplies - MS
Coastal Alabama CC,1605,Stuart C. Irby Co. ,8/13/2020,69,Unrestricted-Monroeville,Maintenance & Repairs  - OOS
Coastal Alabama CC,1606,The Chronicle of Higher Education Inc ,8/13/2020,3559,Unrestricted -Bay Minette,Subscriptions - OOS
Coastal Alabama CC,1607,Thomas Roofing Co. Inc ,8/13/2020,1335,Unrestricted-Fairhope,Maintenance & Repairs  - OOS
Coastal Alabama CC,1607,Thomas Roofing Co. Inc ,8/13/2020,2455,Unrestricted - Brookley Field,Maintenance & Repairs  - OOS
Coastal Alabama CC,1607,Thomas Roofing Co. Inc ,8/13/2020,3830,Unrestricted -Gulf Shores,Maintenance & Repairs  - OOS
Coastal Alabama CC,1608,Twin States Plumbing ,8/13/2020,227,Unrestricted-Thomasville,Maintenance & Repairs  - OOS
Coastal Alabama CC,1609,Unifirst Corporation ,8/13/2020,19800,CARES Act - College Relief,Internal Purchases - MS
Coastal Alabama CC,1610,United Parcel Service Inc ,8/13/2020,3,Unrestricted -Bay Minette,Postage - OOS
Coastal Alabama CC,1611,Vsc Fire & Securityinc. ,8/13/2020,440,Unrestricted -Bay Minette,Other Contractual Services - PS
Coastal Alabama CC,1611,Vsc Fire & Securityinc. ,8/13/2020,4159,Unrestricted -Brewton,Other Professional Fees - PS
Coastal Alabama CC,1611,Vsc Fire & Securityinc. ,8/13/2020,5240.31,Unrestricted-Monroeville,Other Professional Fees - PS
Coastal Alabama CC,1612,W W Grainger Inc ,8/13/2020,53.24,Unrestricted -Brewton,Materials and Supplies - MS
Coastal Alabama CC,1612,W W Grainger Inc ,8/13/2020,430.76,Housing - Brewton,Materials and Supplies - MS
Coastal Alabama CC,1613,W W Grainger Inc ,8/13/2020,1536,Unrestricted-Thomasville,Materials and Supplies - MS
Coastal Alabama CC,1614,Wal-Mart Community ,8/13/2020,156.78,Upward Bound MR,Materials and Supplies - MS
Coastal Alabama CC,1615,Wasden Heating & Cooling ,8/13/2020,420,Unrestricted-Monroeville,Maintenance & Repairs  - OOS
Coastal Alabama CC,1616,Weiser ,8/13/2020,204.8,Unrestricted -Gulf Shores,Other Contractual Services - PS
Coastal Alabama CC,1616,Weiser ,8/13/2020,1075.2,Unrestricted -Fairhope Academy,Other Contractual Services - PS
Coastal Alabama CC,1616,Weiser ,8/13/2020,2009.6,Unrestricted - Brookley Field,Other Contractual Services - PS
Coastal Alabama CC,1617,Woodburn Press LLC ,8/13/2020,3237.3,Student Support Service -BM,Materials and Supplies - MS
Coastal Alabama CC,1656,ABM Industry Groups LLC ,8/21/2020,210.94,Unrestricted -Gulf Shores,Other Contractual Services - PS
Coastal Alabama CC,1656,ABM Industry Groups LLC ,8/21/2020,625,Unrestricted - Brookley Field,Other Contractual Services - PS
Coastal Alabama CC,1656,ABM Industry Groups LLC ,8/21/2020,632.81,Unrestricted-Gilbertown,Other Contractual Services - PS
Coastal Alabama CC,1656,ABM Industry Groups LLC ,8/21/2020,1156,Unrestricted-Jackson,Other Contractual Services - PS
Coastal Alabama CC,1656,ABM Industry Groups LLC ,8/21/2020,1476.55,Unrestricted -Fairhope Academy,Other Contractual Services - PS
Coastal Alabama CC,1656,ABM Industry Groups LLC ,8/21/2020,1792.96,Unrestricted-Fairhope,Other Contractual Services - PS
Coastal Alabama CC,1656,ABM Industry Groups LLC ,8/21/2020,2109.35,Unrestricted-Thomasville,Other Contractual Services - PS
Coastal Alabama CC,1656,ABM Industry Groups LLC ,8/21/2020,8660.63,Unrestricted -Brewton,Other Contractual Services - PS
Coastal Alabama CC,1656,ABM Industry Groups LLC ,8/21/2020,9549.12,Unrestricted-Monroeville,Other Contractual Services - PS
Coastal Alabama CC,1657,Accurate Control Equipment ,8/21/2020,1389,Unrestricted-Monroeville,Service Contracts on Equipment -OOS
Coastal Alabama CC,1658,Aircraft Tool Supply Co. ,8/21/2020,1324.36,Unrestricted - Brookley Field,Materials and Supplies - MS
Coastal Alabama CC,1659,Airwind Inc ,8/21/2020,5749,Unrestricted -Bay Minette,Other Professional Fees - PS
Coastal Alabama CC,1660,Akd Inc. ,8/21/2020,1715.16,CARES Act - College Relief,Internal Purchases - MS
Coastal Alabama CC,1661,Alco Glass ,8/21/2020,50,Unrestricted -Brewton,Maintenance & Repairs  - OOS
Coastal Alabama CC,1663,Apple Computer Inc. ,8/21/2020,3057,Unrestricted -Bay Minette,Technology - non capitalized - MS
Coastal Alabama CC,1664,Assoc Of Veterinary ,8/21/2020,400,Unrestricted -Bay Minette,Registration Fees- OS
Coastal Alabama CC,1665,Assurance Service Group Inc ,8/21/2020,2500,Unrestricted -Bay Minette,Maintenance & Repairs  - OOS
Coastal Alabama CC,1665,Assurance Service Group Inc ,8/21/2020,17312.65,Housing- Bay Minette,Other Professional Fees - PS
Coastal Alabama CC,1665,Assurance Service Group Inc ,8/21/2020,56271,R&R Bay Minette,Maintenance & Repairs  - OOS
Coastal Alabama CC,1666,AT&T Mobility National Accounts LLC ,8/21/2020,164.96,AE-Federal Regular,Internet - UC
Coastal Alabama CC,1667,Atmore Heating & Ac Suppl ,8/21/2020,37.9,Unrestricted - Atmore,Materials and Supplies - MS
Coastal Alabama CC,1667,Atmore Heating & Ac Suppl ,8/21/2020,267.35,Unrestricted - Atmore,Maintenance & Repairs  - OOS
Coastal Alabama CC,1668,Belles Lettres Service Or ,8/21/2020,225,Unrestricted -Bay Minette,Advertising & Promotions - OOS
Coastal Alabama CC,1669,Berney Office Solutions ,8/21/2020,104.85,Unrestricted - Brookley Field,Materials and Supplies - MS
Coastal Alabama CC,1670,Bill Salter Advertising ,8/21/2020,2400,Unrestricted -Bay Minette,Advertising & Promotions - OOS
Coastal Alabama CC,1671,Burbank Sport Nets ,8/21/2020,2818,Unrestricted -Bay Minette,Materials and Supplies - MS
Coastal Alabama CC,1672,Clarke-mobile Counties Ga ,8/21/2020,88.56,Unrestricted-Thomasville,Gas & Heating Fuel - UC
Coastal Alabama CC,1673,Coley Air Conditioning Inc ,8/21/2020,250,Unrestricted-Monroeville,Maintenance & Repairs  - OOS
Coastal Alabama CC,1673,Coley Air Conditioning Inc ,8/21/2020,3500,Unrestricted -Brewton,Maintenance & Repairs  - OOS
Coastal Alabama CC,1674,CrossBay Digital Marketing ,8/21/2020,1000,WIOA,Advertising & Promotions - OOS
Coastal Alabama CC,1675,Davis Fireman Pest Contro ,8/21/2020,1350,Unrestricted-Monroeville,Other Professional Fees - PS
Coastal Alabama CC,1676,Design Frenzy Inc ,8/21/2020,837,Unrestricted -Bay Minette,Printing and Binding - OOS
Coastal Alabama CC,1677,Eastern Shore Chamber of Commerce ,8/21/2020,250,Unrestricted -Bay Minette,Memberships - PS
Coastal Alabama CC,1678,EBSCO Industries Inc ,8/21/2020,1907.8,Unrestricted-Monroeville,Subscriptions - OOS
Coastal Alabama CC,1679,Encore Rehabilitationinc ,8/21/2020,833.33,Unrestricted -Brewton,Other Contractual Services - PS
Coastal Alabama CC,1680,Frontier Communications ,8/21/2020,178.68,Unrestricted-Monroeville,Landline Phones - UC
Coastal Alabama CC,1681,Gilbertown Feed Corp. ,8/21/2020,87.76,Unrestricted-Gilbertown,Materials and Supplies - MS
Coastal Alabama CC,1682,Grace Publishing Llc ,8/21/2020,365,Unrestricted -Bay Minette,Advertising & Promotions - OOS
Coastal Alabama CC,1683,Gulf Supply Co Inc ,8/21/2020,181,CARES Act - College Relief,Internal Purchases - MS
Coastal Alabama CC,1684,Kelly's Turf Pro ,8/21/2020,200,Unrestricted -Bay Minette,Other Professional Fees - PS
Coastal Alabama CC,1684,Kelly's Turf Pro ,8/21/2020,200,Unrestricted -Brewton,Other Professional Fees - PS
Coastal Alabama CC,1685,Knox Pest Control ,8/21/2020,92.25,Unrestricted -Gulf Shores,Other Contractual Services - PS
Coastal Alabama CC,1685,Knox Pest Control ,8/21/2020,153.75,Unrestricted-Fairhope,Other Contractual Services - PS
Coastal Alabama CC,1685,Knox Pest Control ,8/21/2020,369,Unrestricted -Bay Minette,Other Contractual Services - PS
Coastal Alabama CC,1686,Mark C Pope Associates Inc ,8/21/2020,9995,Industry Certification Initiatives,Furniture and Equip $5K - $25K - CE
Coastal Alabama CC,1687,Mobile Glass Llc ,8/21/2020,25590,CARES Act - College Relief,Internal Purchases - MS
Coastal Alabama CC,1688,Monroe Scrap Materialinc ,8/21/2020,100,Unrestricted-Monroeville,Other Professional Fees - PS
Coastal Alabama CC,1689,Moyer Golf Management ,8/21/2020,299,Unrestricted -Bay Minette,Materials and Supplies - MS
Coastal Alabama CC,1690,Mullins Building Products Inc ,8/21/2020,207.86,Housing - Brewton,Maintenance & Repairs  - OOS
Coastal Alabama CC,1691,National Minority Update ,8/21/2020,390,Unrestricted -Bay Minette,Advertising & Promotions - OOS
Coastal Alabama CC,1692,North Baldwin Printing LLC ,8/21/2020,24,Unrestricted -Bay Minette,Materials and Supplies - MS
Coastal Alabama CC,1692,North Baldwin Printing LLC ,8/21/2020,24,Unrestricted -Gulf Shores,Materials and Supplies - MS
Coastal Alabama CC,1693,Opc News Llc ,8/21/2020,247.5,Unrestricted -Bay Minette,Advertising & Promotions - OOS
Coastal Alabama CC,1694,Paxen Publishing ,8/21/2020,1114.66,AE - State Regular,Materials and Supplies - MS
Coastal Alabama CC,1695,Quill Corporation ,8/21/2020,69.99,AE-Federal Regular,Computer Related M&S - MS
Coastal Alabama CC,1695,Quill Corporation ,8/21/2020,238.48,Unrestricted -Bay Minette,Materials and Supplies - MS
Coastal Alabama CC,1696,Quill Corporation ,8/21/2020,220,AE - State Regular,Materials and Supplies - MS
Coastal Alabama CC,1697,R.S.I. ,8/21/2020,672.49,Food Services- Bay Minette,Maintenance & Repairs  - OOS
Coastal Alabama CC,1698,Republic Services Inc. ,8/21/2020,1896.77,Unrestricted -Bay Minette,Waste Disposal - UC
Coastal Alabama CC,1699,Riviera Utilities ,8/21/2020,465.54,Unrestricted -Gulf Shores,Gas & Heating Fuel - UC
Coastal Alabama CC,1700,Rp Group Llc ,8/21/2020,45,Unrestricted -Gulf Shores,Service Contracts on Equipment -OOS
Coastal Alabama CC,1700,Rp Group Llc ,8/21/2020,81,Food Services- Bay Minette,Insurance and Bonding - PS
Coastal Alabama CC,1701,Sherwin Williams Company ,8/21/2020,108.1,Unrestricted -Brewton,Materials and Supplies - MS
Coastal Alabama CC,1701,Sherwin Williams Company ,8/21/2020,1411.05,Housing - Brewton,Materials and Supplies - MS
Coastal Alabama CC,1702,Sports Attack Llc ,8/21/2020,682.85,Unrestricted -Bay Minette,Materials and Supplies - MS
Coastal Alabama CC,1703,Staples Contract & Commercial Inc ,8/21/2020,88.49,Food Services- Bay Minette,Materials and Supplies - MS
Coastal Alabama CC,1703,Staples Contract & Commercial Inc ,8/21/2020,821.38,Unrestricted -Bay Minette,Internal Purchases - MS
Coastal Alabama CC,1704,The Field Llc ,8/21/2020,1626,Unrestricted-Monroeville,Materials and Supplies - MS
Coastal Alabama CC,1704,The Field Llc ,8/21/2020,1950,CARES Act - College Relief,Internal Purchases - MS
Coastal Alabama CC,1705,Tutor.com Inc ,8/21/2020,2600,CARES Act - College Relief,Other Contractual Services - PS
Coastal Alabama CC,1706,United Parcel Service Inc ,8/21/2020,3,Unrestricted -Bay Minette,Postage - OOS
Coastal Alabama CC,1707,US Food Service ,8/21/2020,91.95,Unrestricted -Gulf Shores,Short-Term Equipment Rentals - OOS
Coastal Alabama CC,1708,W W Grainger Inc ,8/21/2020,816.28,Unrestricted-Fairhope,Maintenance & Repairs  - OOS
Coastal Alabama CC,1709,Wasden Heating & Cooling ,8/21/2020,1385,Unrestricted-Monroeville,Maintenance & Repairs  - OOS
Coastal Alabama CC,1710,Weiser ,8/21/2020,102.4,Unrestricted -Gulf Shores,Other Contractual Services - PS
Coastal Alabama CC,1710,Weiser ,8/21/2020,528,Unrestricted -Fairhope Academy,Other Contractual Services - PS
Coastal Alabama CC,1710,Weiser ,8/21/2020,851.2,Unrestricted - Brookley Field,Other Contractual Services - PS
Coastal Alabama CC,1711,Wrights Auto Parts Inc ,8/21/2020,234.73,Unrestricted -Bay Minette,Materials and Supplies - MS
Coastal Alabama CC,1712,All Over Jantrl Srvcs Inc ,8/25/2020,26914,Unrestricted -Bay Minette,Other Contractual Services - PS
Coastal Alabama CC,1713,Assurance Service Group Inc ,8/25/2020,17837,R&R Bay Minette,Maintenance & Repairs  - OOS
Coastal Alabama CC,1714,AT&T Mobility National Accounts LLC ,8/25/2020,2450.79,Unrestricted -Bay Minette,Wireless Phones - UC
Coastal Alabama CC,1715,Carolina Biological Supply Co ,8/25/2020,61.56,Unrestricted -Bay Minette,Materials and Supplies - MS
Coastal Alabama CC,1716,Centurytel Inc. ,8/25/2020,2879.96,Unrestricted -Bay Minette,Landline Phones - UC
Coastal Alabama CC,1717,Dumas Micheal,8/25/2020,3000,Unrestricted -Bay Minette,Other Professional Fees - PS
Coastal Alabama CC,1718,Hollinger Cedric,8/25/2020,480,Unrestricted-Monroeville,Other Professional Fees - PS
Coastal Alabama CC,1719,Hunt Reginal,8/25/2020,350,Unrestricted-Monroeville,Other Professional Fees - PS
Coastal Alabama CC,1720,Kelly's Turf Pro ,8/25/2020,650,Unrestricted-Monroeville,Other Professional Fees - PS
Coastal Alabama CC,1721,Kiwanis Club/Monroeville ,8/25/2020,120,Council of the Arts ,Advertising & Promotions - OOS
Coastal Alabama CC,1722,Konica Minolta Business Solutions USA Inc ,8/25/2020,46.93,Student Support Service - TV,Short-Term Equipment Rentals - OOS
Coastal Alabama CC,1722,Konica Minolta Business Solutions USA Inc ,8/25/2020,225.58,Talent Search MR,Short-Term Equipment Rentals - OOS
Coastal Alabama CC,1722,Konica Minolta Business Solutions USA Inc ,8/25/2020,255.75,Upward Bound TV,Short-Term Equipment Rentals - OOS
Coastal Alabama CC,1722,Konica Minolta Business Solutions USA Inc ,8/25/2020,773.09,Upward Bound MR,Short-Term Equipment Rentals - OOS
Coastal Alabama CC,1723,Magnolia Clipping & Broadcast Monitoring Service ,8/25/2020,69,Unrestricted -Bay Minette,Other Professional Fees - PS
Coastal Alabama CC,1724,Mississippi State University ,8/25/2020,1166.06,Unrestricted Shared Services,Clearing Refunds - SP
Coastal Alabama CC,1725,Paxton Patterson LLC ,8/25/2020,688.5,Unrestricted N. Baldwin Cntr Tech,Materials and Supplies - MS
Coastal Alabama CC,1726,Quill Corporation ,8/25/2020,52.42,Upward Bound TV,Materials and Supplies - MS
Coastal Alabama CC,1727,Riviera Utilities ,8/25/2020,11910,Unrestricted -Gulf Shores,Short-Term Building Rentals - OOS
Coastal Alabama CC,1728,Rolin Construction Inc ,8/25/2020,179011.87,Unexpended Plant Bay Minette,Construction in Progress - CE
Coastal Alabama CC,1729,Sodexo Inc ,8/25/2020,15370.63,Unrestricted -Bay Minette,Other Contractual Services - PS
Coastal Alabama CC,1730,Storage Sense Saraland ,8/25/2020,1834,Unexpended Plant Bay Minette,Other Professional Fees - PS
Coastal Alabama CC,1731,Strickland Paper Company Inc ,8/25/2020,399.75,Unrestricted -Bay Minette,Materials and Supplies - MS
Coastal Alabama CC,1732,Thompson Christopher,8/25/2020,399,Unrestricted -Bay Minette,Other Professional Fees - PS
Coastal Alabama CC,1733,United Parcel Service Inc ,8/25/2020,3,Unrestricted -Bay Minette,Postage - OOS
Coastal Alabama CC,1734,Utilities Board of Gilbertown ,8/25/2020,142.58,Unrestricted-Gilbertown,Water & Sewer - UC
Coastal Alabama CC,1735,West Escambia Utilities Inc ,8/25/2020,8.85,Unrestricted - Fountain,Gas & Heating Fuel - UC
Coastal Alabama CC,1736,Abbco Service Corporation ,8/28/2020,6901,Unrestricted-Thomasville,Other Contractual Services - PS
Coastal Alabama CC,1736,Abbco Service Corporation ,8/28/2020,21021.34,Unrestricted-Monroeville,Other Contractual Services - PS
Coastal Alabama CC,1737,Akd Inc. ,8/28/2020,274.63,Unrestricted -Bay Minette,Materials and Supplies - MS
Coastal Alabama CC,1738,Alabama Power Company ,8/28/2020,1593.8,Unrestricted-Gilbertown,Electricity - UC
Coastal Alabama CC,1738,Alabama Power Company ,8/28/2020,1807.76,Prison,Electricity - UC
Coastal Alabama CC,1738,Alabama Power Company ,8/28/2020,3536.38,Food Services- Bay Minette,Electricity - UC
Coastal Alabama CC,1738,Alabama Power Company ,8/28/2020,6714.31,Unrestricted - Brookley Field,Electricity - UC
Coastal Alabama CC,1738,Alabama Power Company ,8/28/2020,6936.44,Unrestricted - Atmore,Electricity - UC
Coastal Alabama CC,1738,Alabama Power Company ,8/28/2020,11879.59,Unrestricted-Thomasville,Electricity - UC
Coastal Alabama CC,1738,Alabama Power Company ,8/28/2020,20568.03,Unrestricted-Monroeville,Electricity - UC
Coastal Alabama CC,1738,Alabama Power Company ,8/28/2020,21236.36,Unrestricted -Brewton,Electricity - UC
Coastal Alabama CC,1738,Alabama Power Company ,8/28/2020,24208.59,Housing- Bay Minette,Electricity - UC
Coastal Alabama CC,1738,Alabama Power Company ,8/28/2020,45524.72,Unrestricted -Bay Minette,Electricity - UC
Coastal Alabama CC,1739,Alco Glass ,8/28/2020,1667.5,Housing - Brewton,Maintenance & Repairs  - OOS
Coastal Alabama CC,1740,Alert Protection Systems Inc ,8/28/2020,43,Unrestricted - Atmore,Other Contractual Services - PS
Coastal Alabama CC,1741,Assurance Service Group Inc ,8/28/2020,243581.32,Unexpended Plant Bay Minette,Improvements - Other - CE
Coastal Alabama CC,1742,Baldwin EMC ,8/28/2020,4795.62,Unrestricted -Gulf Shores,Electricity - UC
Coastal Alabama CC,1744,Berney Office Solutions ,8/28/2020,10.76,Unrestricted -Bay Minette,Short-Term Equipment Rentals - OOS
Coastal Alabama CC,1745,Bishop Enterprises LLC ,8/28/2020,300,Unrestricted -Bay Minette,Other Professional Fees - PS
Coastal Alabama CC,1746,Brodart Company ,8/28/2020,259.2,Unrestricted -Bay Minette,Materials and Supplies - MS
Coastal Alabama CC,1747,BSN Sports LLC ,8/28/2020,2073.4,Unrestricted -Bay Minette,Athletic Clothing-OOS
Coastal Alabama CC,1747,BSN Sports LLC ,8/28/2020,5305.01,Unrestricted -Bay Minette,Materials and Supplies - MS
Coastal Alabama CC,1749,Central Baldwin Locksmiths LLC ,8/28/2020,320,Unrestricted -Bay Minette,Maintenance & Repairs  - OOS
Coastal Alabama CC,1750,Dell Marketing LP ,8/28/2020,5152.41,Unrestricted -Bay Minette,Technology - non capitalized - MS
Coastal Alabama CC,1751,Frontier Communications ,8/28/2020,1436.06,Unrestricted-Monroeville,Landline Phones - UC
Coastal Alabama CC,1752,Hunter Security Inc. ,8/28/2020,125,Unrestricted -Gulf Shores,Maintenance & Repairs  - OOS
Coastal Alabama CC,1753,In Sports Inc ,8/28/2020,588,Softball Booster Funds,Deposits Held for Others - Agency
Coastal Alabama CC,1754,Instructure Inc. ,8/28/2020,8935,AE-Federal Regular,Materials and Supplies - MS
Coastal Alabama CC,1755,IXL Learning Inc ,8/28/2020,1900,AE - State Regular,Materials and Supplies - MS
Coastal Alabama CC,1756,Jim Peach Motors Inc ,8/28/2020,100.5,Unrestricted -Brewton,Maintenance & Repairs  - OOS
Coastal Alabama CC,1757,Jubilee Landscape Mgmtin ,8/28/2020,11525.97,Unrestricted -Bay Minette,Other Contractual Services - PS
Coastal Alabama CC,1757,Jubilee Landscape Mgmtin ,8/28/2020,102818.08,Unrestricted -Bay Minette,Buildings & Fixed Equipment - PPE
Coastal Alabama CC,1759,Mas Modern Marketing Inc ,8/28/2020,4353.26,Student Support Service - MR,Materials and Supplies - MS
Coastal Alabama CC,1760,Method Test Prep Inc ,8/28/2020,1650,Upward Bound TV,Materials and Supplies - MS
Coastal Alabama CC,1761,Mobile Area Chamber of Commerce ,8/28/2020,3750,Unrestricted -Bay Minette,Memberships - PS
Coastal Alabama CC,1762,Mobile Glass Llc ,8/28/2020,7460,CARES Act - College Relief,Internal Purchases - MS
Coastal Alabama CC,1763,Monroeville Water Works ,8/28/2020,1534.94,Unrestricted-Monroeville,Water & Sewer - UC
Coastal Alabama CC,1764,Moody's Electric Inc ,8/28/2020,2416,Unrestricted-Fairhope,Maintenance & Repairs  - OOS
Coastal Alabama CC,1766,Muniz Angela,8/28/2020,452.91,NSF ,Other Contractual Services - PS
Coastal Alabama CC,1767,Paxen Publishing ,8/28/2020,8918.35,AE-Federal Regular,Materials and Supplies - MS
Coastal Alabama CC,1768,Pl Medical Co Llc ,8/28/2020,360,Unrestricted -Bay Minette,Materials and Supplies - MS
Coastal Alabama CC,1769,PMT Publishing ,8/28/2020,1845,Unrestricted -Bay Minette,Advertising & Promotions - OOS
Coastal Alabama CC,1770,Quill Corporation ,8/28/2020,374.98,Student Support Service -BR,Materials and Supplies - MS
Coastal Alabama CC,1771,Roto-rooter ,8/28/2020,175,Unrestricted-Monroeville,Maintenance & Repairs  - OOS
Coastal Alabama CC,1772,South Alabama Gas ,8/28/2020,2697.53,Unrestricted-Monroeville,Maintenance & Repairs  - OOS
Coastal Alabama CC,1773,Spire ,8/28/2020,20.34,Unrestricted - Brookley Field,Gas & Heating Fuel - UC
Coastal Alabama CC,1774,Standard Roofing of Montgomery Inc ,8/28/2020,30000,Unexpended Plant Bay Minette,Building Alterations - CE
Coastal Alabama CC,1774,Standard Roofing of Montgomery Inc ,8/28/2020,39200,Unexpended Plant Shared Services,Building Alterations - CE
Coastal Alabama CC,1775,Staples Contract & Commercial Inc ,8/28/2020,88.1,Unrestricted-Fairhope,Materials and Supplies - MS
Coastal Alabama CC,1775,Staples Contract & Commercial Inc ,8/28/2020,310.48,Unrestricted -Bay Minette,Materials and Supplies - MS
Coastal Alabama CC,1776,Staples Contract & Commercial Inc ,8/28/2020,55.98,Unrestricted -Bay Minette,Materials and Supplies - MS
Coastal Alabama CC,1777,Terminix International Company LP ,8/28/2020,565,Unrestricted-Fairhope,Other Contractual Services - PS
Coastal Alabama CC,1778,The Baldwin Community & ,8/28/2020,35000,Unrestricted -Bay Minette,Other Professional Fees - PS
Coastal Alabama CC,1779,The Library Store Inc. ,8/28/2020,550.79,Unrestricted -Brewton,Materials and Supplies - MS
Coastal Alabama CC,1780,United Parcel Service Inc ,8/28/2020,3,Unrestricted -Bay Minette,Postage - OOS
Coastal Alabama CC,1781,W W Grainger Inc ,8/28/2020,394.8,Unrestricted-Fairhope,Maintenance & Repairs  - OOS
Coastal Alabama CC,1781,W W Grainger Inc ,8/28/2020,670.64,Unrestricted -Gulf Shores,Maintenance & Repairs  - OOS
Coastal Alabama CC,1781,W W Grainger Inc ,8/28/2020,1691.96,Housing- Bay Minette,Maintenance & Repairs  - OOS
Coastal Alabama CC,1783,Weiser ,8/28/2020,102.4,Unrestricted -Gulf Shores,Other Contractual Services - PS
Coastal Alabama CC,1783,Weiser ,8/28/2020,209.28,Housing - Brewton,Other Contractual Services - PS
Coastal Alabama CC,1783,Weiser ,8/28/2020,528,Unrestricted -Fairhope Academy,Other Contractual Services - PS
Coastal Alabama CC,1783,Weiser ,8/28/2020,582.4,Unrestricted - Brookley Field,Other Contractual Services - PS
Coastal Alabama CC,1959,Abbco Service Corporation ,9/3/2020,13961.17,Unrestricted-Monroeville,Other Contractual Services - PS
Coastal Alabama CC,1960,Air Specialty Inc ,9/3/2020,542.48,Unrestricted-Fairhope,Maintenance & Repairs  - OOS
Coastal Alabama CC,1960,Air Specialty Inc ,9/3/2020,689.3,Unrestricted -Gulf Shores,Maintenance & Repairs  - OOS
Coastal Alabama CC,1960,Air Specialty Inc ,9/3/2020,1561.78,Housing- Bay Minette,Maintenance & Repairs  - OOS
Coastal Alabama CC,1960,Air Specialty Inc ,9/3/2020,3791,Unrestricted -Bay Minette,Maintenance & Repairs  - OOS
Coastal Alabama CC,1961,Aircraft Tool Supply Co. ,9/3/2020,381.13,Unrestricted - Brookley Field,Materials and Supplies - MS
Coastal Alabama CC,1962,Airgas Gulf States ,9/3/2020,413.78,Unrestricted - Atmore,Materials and Supplies - MS
Coastal Alabama CC,1963,All Over Jantrl Srvcs Inc ,9/3/2020,900,Unrestricted -Brewton,Other Contractual Services - PS
Coastal Alabama CC,1963,All Over Jantrl Srvcs Inc ,9/3/2020,13457,Unrestricted -Bay Minette,Other Contractual Services - PS
Coastal Alabama CC,1965,Allied Universal Technology Services ,9/3/2020,127,Unrestricted -Bay Minette,Technology - non capitalized - MS
Coastal Alabama CC,1966,Apogee Telecom Inc ,9/3/2020,1687.8,Unrestricted -Bay Minette,Technology - non capitalized - MS
Coastal Alabama CC,1966,Apogee Telecom Inc ,9/3/2020,2604.76,Housing - Brewton,Other Contractual Services - PS
Coastal Alabama CC,1966,Apogee Telecom Inc ,9/3/2020,16000.69,Housing- Bay Minette,Other Contractual Services - PS
Coastal Alabama CC,1967,Apple Computer Inc. ,9/3/2020,1331,Unrestricted -Bay Minette,Technology - non capitalized - MS
Coastal Alabama CC,1968,Apple Inc ,9/3/2020,187.9,Upward Bound TV,Materials and Supplies - MS
Coastal Alabama CC,1969,AT&T ,9/3/2020,95.23,Unrestricted-Jackson,Internet - UC
Coastal Alabama CC,1970,AT&T ,9/3/2020,22477.3,Unrestricted -Bay Minette,Internet - UC
Coastal Alabama CC,1971,AT&T ,9/3/2020,2437.96,Unrestricted -Bay Minette,Internet - UC
Coastal Alabama CC,1971,AT&T ,9/3/2020,6465.7,Unrestricted -Bay Minette,Landline Phones - UC
Coastal Alabama CC,1972,AT&T ,9/3/2020,90.95,Unrestricted-Jackson,Internet - UC
Coastal Alabama CC,1973,AT&T ,9/3/2020,1036.91,Unrestricted -Brewton,Landline Phones - UC
Coastal Alabama CC,1974,AT&T ,9/3/2020,41023.36,Unrestricted -Bay Minette,Internet - UC
Coastal Alabama CC,1975,AT&T Mobility National Accounts LLC ,9/3/2020,199.04,Unrestricted -Brewton,Wireless Phones - UC
Coastal Alabama CC,1976,Baldwin Gulf Coast Pest Control Inc. ,9/3/2020,134,Unrestricted - Atmore,Other Contractual Services - PS
Coastal Alabama CC,1977,Bay Minette Building Supply ,9/3/2020,378.99,Unrestricted -Bay Minette,Materials and Supplies - MS
Coastal Alabama CC,1979,Bill Salter Advertising ,9/3/2020,1200,Unrestricted -Bay Minette,Advertising & Promotions - OOS
Coastal Alabama CC,1980,Bishop Enterprises LLC ,9/3/2020,650,Unrestricted -Bay Minette,Other Professional Fees - PS
Coastal Alabama CC,1981,Bolton Newspapers Inc ,9/3/2020,42,Unrestricted-Monroeville,Subscriptions - OOS
Coastal Alabama CC,1982,Borden Dairy Company ,9/3/2020,384.16,Food Services- Bay Minette,Purchases for Resale (COGS) - MS
Coastal Alabama CC,1983,BSN ,9/3/2020,1428.46,Unrestricted -Brewton,Athletic Clothing-OOS
Coastal Alabama CC,1984,Cannon's Carpets ,9/3/2020,460,Housing - Brewton,Maintenance & Repairs  - OOS
Coastal Alabama CC,1985,Carolina Biological Supply Co ,9/3/2020,228.42,Unrestricted-Fairhope,Materials and Supplies - MS
Coastal Alabama CC,1986,City of Brewton Utility Dept ,9/3/2020,382.28,Unrestricted -Brewton,Gas & Heating Fuel - UC
Coastal Alabama CC,1986,City of Brewton Utility Dept ,9/3/2020,467.24,Unrestricted -Brewton,Water & Sewer - UC
Coastal Alabama CC,1987,City of Thomasville ,9/3/2020,1004.65,Unrestricted-Thomasville,Water & Sewer - UC
Coastal Alabama CC,1988,Council For Higher Ed.Accred. ,9/3/2020,690,Unrestricted -Bay Minette,Memberships - PS
Coastal Alabama CC,1989,CrossBay Digital Marketing ,9/3/2020,2250,AE-Federal Regular,Advertising & Promotions - OOS
Coastal Alabama CC,1990,Dade Paper & Bag Co ,9/3/2020,1720.02,CARES Act - College Relief,Internal Purchases - MS
Coastal Alabama CC,1990,Dade Paper & Bag Co ,9/3/2020,2806.95,Food Services- Bay Minette,Materials and Supplies - MS
Coastal Alabama CC,1991,Delta Flooring Inc ,9/3/2020,9314,Other Auxiliary- Bay Minette,Maintenance & Repairs  - OOS
Coastal Alabama CC,1992,Directv Inc ,9/3/2020,138.99,Unrestricted-Gilbertown,Other Professional Fees - PS
Coastal Alabama CC,1992,Directv Inc ,9/3/2020,194.99,Unrestricted-Monroeville,Other Professional Fees - PS
Coastal Alabama CC,1993,Equal Opportunity Employment Journal Inc ,9/3/2020,595,Unrestricted -Bay Minette,Advertising & Promotions - OOS
Coastal Alabama CC,1994,Fairhope High School ,9/3/2020,350,Unrestricted -Bay Minette,Advertising & Promotions - OOS
Coastal Alabama CC,1995,Fairhope Public Utilities ,9/3/2020,11.63,Unrestricted-Fairhope,Gas & Heating Fuel - UC
Coastal Alabama CC,1995,Fairhope Public Utilities ,9/3/2020,1090.86,Unrestricted-Fairhope,Water & Sewer - UC
Coastal Alabama CC,1995,Fairhope Public Utilities ,9/3/2020,18559.11,Unrestricted-Fairhope,Electricity - UC
Coastal Alabama CC,1996,Freemanville Water System ,9/3/2020,44.7,Unrestricted - Atmore,Water & Sewer - UC
Coastal Alabama CC,1999,Gulf Supply Co Inc ,9/3/2020,271.5,CARES Act - College Relief,Materials and Supplies - MS
Coastal Alabama CC,2000,Gwin's Stationary & Engraving ,9/3/2020,876.34,Unrestricted -Bay Minette,Printing and Binding - OOS
Coastal Alabama CC,2002,Kelly's Turf Pro ,9/3/2020,200,Unrestricted -Bay Minette,Other Professional Fees - PS
Coastal Alabama CC,2002,Kelly's Turf Pro ,9/3/2020,200,Unrestricted -Brewton,Other Professional Fees - PS
Coastal Alabama CC,2002,Kelly's Turf Pro ,9/3/2020,450,Unrestricted-Monroeville,Other Professional Fees - PS
Coastal Alabama CC,2003,Konica Minolta Business Solutions USA Inc ,9/3/2020,9.74,Talent Search MR,Short-Term Equipment Rentals - OOS
Coastal Alabama CC,2003,Konica Minolta Business Solutions USA Inc ,9/3/2020,790.23,Upward Bound MR,Short-Term Equipment Rentals - OOS
Coastal Alabama CC,2004,Lagniappe ,9/3/2020,1845,Unrestricted -Bay Minette,Advertising & Promotions - OOS
Coastal Alabama CC,2005,Leadership Baldwin County ,9/3/2020,950,Unrestricted-Fairhope,Mileage - IS
Coastal Alabama CC,2006,Lewis Pest Control Inc. ,9/3/2020,100,Unrestricted-Gilbertown,Maintenance & Repairs  - OOS
Coastal Alabama CC,2007,Life Inc ,9/3/2020,2500,Upward Bound TV,Other Professional Fees - PS
Coastal Alabama CC,2008,Lowe's Home Centers Inc ,9/3/2020,403.76,Unrestricted -Bay Minette,Materials and Supplies - MS
Coastal Alabama CC,2008,Lowe's Home Centers Inc ,9/3/2020,441.7,CARES Act - College Relief,Internal Purchases - MS
Coastal Alabama CC,2008,Lowe's Home Centers Inc ,9/3/2020,555.75,Housing- Bay Minette,Materials and Supplies - MS
Coastal Alabama CC,2008,Lowe's Home Centers Inc ,9/3/2020,683.82,Unrestricted -Gulf Shores,Materials and Supplies - MS
Coastal Alabama CC,2008,Lowe's Home Centers Inc ,9/3/2020,2008.51,Unrestricted-SB Center Tech,Materials and Supplies - MS
Coastal Alabama CC,2009,Mas Modern Marketing Inc ,9/3/2020,1412.67,Student Support Service - MR,Materials and Supplies - MS
Coastal Alabama CC,2010,McGriff Tire Co Inc ,9/3/2020,157.94,Unrestricted -Bay Minette,Maintenance & Repairs  - OOS
Coastal Alabama CC,2011,Mediacom Southeast ,9/3/2020,2250,Unrestricted -Brewton,Landline Phones - UC
Coastal Alabama CC,2012,Mediacom Southeast ,9/3/2020,60,Food Services- Bay Minette,Other Professional Fees - PS
Coastal Alabama CC,2012,Mediacom Southeast ,9/3/2020,4320.1,Housing- Bay Minette,Other Professional Fees - PS
Coastal Alabama CC,2013,Mims Lydia,9/3/2020,90,Upward Bound MR,Stipends-Attendance
Coastal Alabama CC,2014,Mobile Airport Authority ,9/3/2020,461.33,Unrestricted - Brookley Field,Short-Term Building Rentals - OOS
Coastal Alabama CC,2015,Mobile Area Chamber of Commerce ,9/3/2020,2500,Unrestricted -Bay Minette,Advertising & Promotions - OOS
Coastal Alabama CC,2016,Mobile Fixture & Equipment Co. Inc. ,9/3/2020,384.44,Food Services- Bay Minette,Materials and Supplies - MS
Coastal Alabama CC,2017,Muniz Angela,9/3/2020,452.91,NSF ,Other Contractual Services - PS
Coastal Alabama CC,2018,Norm's Auto Repair ,9/3/2020,1186.78,Unrestricted -Bay Minette,Maintenance & Repairs  - OOS
Coastal Alabama CC,2020,Plasco Id Holdings Llc ,9/3/2020,81,Unrestricted -Bay Minette,Materials and Supplies - MS
Coastal Alabama CC,2022,Positive Promotions ,9/3/2020,535.04,Student Support Service -BR,Materials and Supplies - MS
Coastal Alabama CC,2023,Publix Super Markets Inc ,9/3/2020,98.9,Unrestricted -Gulf Shores,Culinary Consumables
Coastal Alabama CC,2024,Qualtrics LLC ,9/3/2020,1500,Unrestricted Shared Services,Other Contractual Services - PS
Coastal Alabama CC,2025,Quill Corporation ,9/3/2020,17.63,Unrestricted-Monroeville,Materials and Supplies - MS
Coastal Alabama CC,2026,Quill Corporation ,9/3/2020,-32.82,Unrestricted-Monroeville,Materials and Supplies - MS
Coastal Alabama CC,2026,Quill Corporation ,9/3/2020,-13.18,Unrestricted -Bay Minette,Materials and Supplies - MS
Coastal Alabama CC,2026,Quill Corporation ,9/3/2020,159.35,Student Support Service -BR,Materials and Supplies - MS
Coastal Alabama CC,2026,Quill Corporation ,9/3/2020,648.92,Unrestricted-Thomasville,Materials and Supplies - MS
Coastal Alabama CC,2028,R. Carter & Associates Inc ,9/3/2020,3950,Unrestricted -Gulf Shores,Maintenance & Repairs  - OOS
Coastal Alabama CC,2029,R.S.I. ,9/3/2020,1433,Food Services- Bay Minette,Maintenance & Repairs  - OOS
Coastal Alabama CC,2030,Republic Services Inc. ,9/3/2020,62.3,Unrestricted -Brewton,Waste Disposal - UC
Coastal Alabama CC,2030,Republic Services Inc. ,9/3/2020,70.6,Unrestricted - Fountain,Waste Disposal - UC
Coastal Alabama CC,2030,Republic Services Inc. ,9/3/2020,78.91,Unrestricted - Atmore,Waste Disposal - UC
Coastal Alabama CC,2030,Republic Services Inc. ,9/3/2020,203.49,Housing - Brewton,Waste Disposal - UC
Coastal Alabama CC,2031,Republic Services Inc. ,9/3/2020,138.11,Unrestricted - Brookley Field,Waste Disposal - UC
Coastal Alabama CC,2031,Republic Services Inc. ,9/3/2020,580.74,Unrestricted -Gulf Shores,Waste Disposal - UC
Coastal Alabama CC,2032,Rp Group Llc ,9/3/2020,45,Unrestricted -Gulf Shores,Service Contracts on Equipment -OOS
Coastal Alabama CC,2033,S & C Equipment Services LLC ,9/3/2020,872.33,Unrestricted -Bay Minette,Maintenance & Repairs  - OOS
Coastal Alabama CC,2034,Select Aerospace Industries Inc ,9/3/2020,8622,Vocational Ed/CTE,Furniture and Equip $5K - $25K - CE
Coastal Alabama CC,2034,Select Aerospace Industries Inc ,9/3/2020,10460,Vocational Ed/CTE,Equipment - non capitalized - MS
Coastal Alabama CC,2035,Sherwin Williams Company ,9/3/2020,1623.66,Housing - Brewton,Maintenance & Repairs  - OOS
Coastal Alabama CC,2036,South Alabama Gas ,9/3/2020,21.66,Unrestricted-Monroeville,Gas & Heating Fuel - UC
Coastal Alabama CC,2037,Southern Linc Wireless ,9/3/2020,1604.68,Unrestricted -Bay Minette,Landline Phones - UC
Coastal Alabama CC,2038,Southern Pine Electric Co ,9/3/2020,18.84,Unrestricted -Brewton,Electricity - UC
Coastal Alabama CC,2039,Stanley Convergent Security Solutions Inc ,9/3/2020,239.06,Housing- Bay Minette,Service Contracts on Equipment -OOS
Coastal Alabama CC,2040,Staples Contract & Commercial Inc ,9/3/2020,87.49,Upward Bound GT,Materials and Supplies - MS
Coastal Alabama CC,2041,Stericycle Inc ,9/3/2020,325,Unrestricted -Bay Minette,Other Contractual Services - PS
Coastal Alabama CC,2042,Stewart's Electrical Contractors ,9/3/2020,950,Unrestricted -Bay Minette,Maintenance & Repairs  - OOS
Coastal Alabama CC,2042,Stewart's Electrical Contractors ,9/3/2020,6000,Unrestricted - Brookley Field,Maintenance & Repairs  - OOS
Coastal Alabama CC,2043,Strickland Paper Company Inc ,9/3/2020,135.75,Unrestricted -Bay Minette,Materials and Supplies - MS
Coastal Alabama CC,2044,Sunrise Fresh Producellc ,9/3/2020,580.32,Unrestricted -Gulf Shores,Culinary Consumables
Coastal Alabama CC,2045,Tappi ,9/3/2020,6249.99,NSF ,Other Contractual Services - PS
Coastal Alabama CC,2046,The Field Llc ,9/3/2020,1950,CARES Act - College Relief,Internal Purchases - MS
Coastal Alabama CC,2047,Touch Net Information Systems Inc ,9/3/2020,10175,Unrestricted Shared Services,Equipment - non capitalized - MS
Coastal Alabama CC,2048,Unifirst Corporation ,9/3/2020,4200,CARES Act - College Relief,Internal Purchases - MS
Coastal Alabama CC,2049,US Food Service ,9/3/2020,64.33,Unrestricted -Gulf Shores,Materials and Supplies - MS
Coastal Alabama CC,2049,US Food Service ,9/3/2020,91.95,Unrestricted -Gulf Shores,Short-Term Equipment Rentals - OOS
Coastal Alabama CC,2049,US Food Service ,9/3/2020,215.38,Unrestricted -Gulf Shores,Culinary Consumables
Coastal Alabama CC,2050,Utilities Board of Gilbertown ,9/3/2020,156.84,Unrestricted-Gilbertown,Water & Sewer - UC
Coastal Alabama CC,2051,Verizon Wireless ,9/3/2020,52.61,Unrestricted -Bay Minette,Wireless Phones - UC
Coastal Alabama CC,2052,Vsc Fire & Securityinc. ,9/3/2020,304,Unrestricted -Gulf Shores,Maintenance & Repairs  - OOS
Coastal Alabama CC,2053,W W Grainger Inc ,9/3/2020,332.46,Unrestricted - Brookley Field,Materials and Supplies - MS
Coastal Alabama CC,2054,Wal-Mart Community ,9/3/2020,250.33,Housing- Bay Minette,Materials and Supplies - MS
Coastal Alabama CC,2055,Wal-Mart Community ,9/3/2020,24.8,Unrestricted - Atmore,Materials and Supplies - MS
Coastal Alabama CC,2055,Wal-Mart Community ,9/3/2020,1854.72,Housing - Brewton,Materials and Supplies - MS
Coastal Alabama CC,2056,Waste Management ,9/3/2020,310.7,Unrestricted-Gilbertown,Other Contractual Services - PS
Coastal Alabama CC,2057,Waste Management ,9/3/2020,766.98,Unrestricted -Gulf Shores,Waste Disposal - UC
Coastal Alabama CC,2058,Waterworks and Sewer Board City of Jackson ,9/3/2020,37.32,Unrestricted-Jackson,Water & Sewer - UC
Coastal Alabama CC,2059,Weiser ,9/3/2020,153.6,Unrestricted-SB Center Tech,Other Contractual Services - PS
Coastal Alabama CC,2059,Weiser ,9/3/2020,358.4,Unrestricted -Gulf Shores,Other Contractual Services - PS
Coastal Alabama CC,2059,Weiser ,9/3/2020,646.4,Unrestricted -Fairhope Academy,Other Contractual Services - PS
Coastal Alabama CC,2059,Weiser ,9/3/2020,934.4,Unrestricted - Brookley Field,Other Contractual Services - PS
Coastal Alabama CC,2059,Weiser ,9/3/2020,1183.74,Housing - Brewton,Other Contractual Services - PS
Coastal Alabama CC,2059,Weiser ,9/3/2020,1366.56,Housing- Bay Minette,Other Contractual Services - PS
Coastal Alabama CC,2060,Welcome to College LLC ,9/3/2020,7500,Unrestricted -Bay Minette,Other Professional Fees - PS
Coastal Alabama CC,2061,Wesco Gas & Welding Supply Inc. ,9/3/2020,888.58,Unrestricted-Thomasville,Materials and Supplies - MS
Coastal Alabama CC,2062,West Escambia Utilities Inc ,9/3/2020,8.85,Unrestricted - Fountain,Gas & Heating Fuel - UC
Coastal Alabama CC,2063,Wilcox Academy ,9/3/2020,200,Unrestricted -Bay Minette,Advertising & Promotions - OOS
Coastal Alabama CC,2066,A & A Refrigeration ,9/11/2020,1585,Unrestricted -Gulf Shores,Other Contractual Services - PS
Coastal Alabama CC,2067,Acro Service Corporation ,9/11/2020,1295.2,Food Services- Bay Minette,Other Contractual Services - PS
Coastal Alabama CC,2068,Aho Architects LLC ,9/11/2020,263.38,Unexpended Plant Shared Services,Engineering & Architectural Svc -PS
Coastal Alabama CC,2068,Aho Architects LLC ,9/11/2020,907.71,Housing- Bay Minette,Improvements- DE
Coastal Alabama CC,2068,Aho Architects LLC ,9/11/2020,1765.61,R&R Bay Minette,Improvements - Other - CE
Coastal Alabama CC,2068,Aho Architects LLC ,9/11/2020,5303.83,Unexpended Plant Thomasville,Building Alterations - CE
Coastal Alabama CC,2068,Aho Architects LLC ,9/11/2020,9338.4,Unexpended Plant Brewton,Construction in Progress - CE
Coastal Alabama CC,2069,Air Specialty Inc ,9/11/2020,309.93,Unrestricted-Fairhope,Maintenance & Repairs  - OOS
Coastal Alabama CC,2069,Air Specialty Inc ,9/11/2020,2808.6,Unrestricted -Bay Minette,Maintenance & Repairs  - OOS
Coastal Alabama CC,2070,Airgas Gulf States ,9/11/2020,10.44,Unrestricted -Gulf Shores,Short-Term Equipment Rentals - OOS
Coastal Alabama CC,2070,Airgas Gulf States ,9/11/2020,10.45,Unrestricted -Bay Minette,Short-Term Equipment Rentals - OOS
Coastal Alabama CC,2070,Airgas Gulf States ,9/11/2020,17.48,Unrestricted-Fairhope,Short-Term Equipment Rentals - OOS
Coastal Alabama CC,2070,Airgas Gulf States ,9/11/2020,20.89,Unrestricted - Brookley Field,Materials and Supplies - MS
Coastal Alabama CC,2070,Airgas Gulf States ,9/11/2020,380.61,Unrestricted - Atmore,Short-Term Equipment Rentals - OOS
Coastal Alabama CC,2070,Airgas Gulf States ,9/11/2020,579.18,Unrestricted-Monroeville,Short-Term Equipment Rentals - OOS
Coastal Alabama CC,2071,Airwind Inc ,9/11/2020,400,Unrestricted -Bay Minette,Other Professional Fees - PS
Coastal Alabama CC,2072,Akd Inc. ,9/11/2020,539.54,Unrestricted - Brookley Field,Athletic Uniforms
Coastal Alabama CC,2073,Alabama Assoc of Collegiate Registrars & Admissions Officer ,9/11/2020,300,Unrestricted -Bay Minette,Registration Fees- IS
Coastal Alabama CC,2074,Alabama Power Company ,9/11/2020,3650.06,Unrestricted -Bay Minette,Electricity - UC
Coastal Alabama CC,2075,Alibris Inc ,9/11/2020,477.8,Unrestricted -Bay Minette,Books - CE
Coastal Alabama CC,2076,Alsco Inc ,9/11/2020,183.89,Food Services- Bay Minette,Other Contractual Services - PS
Coastal Alabama CC,2077,Ambrose's Lock & Key ,9/11/2020,1787.6,Unrestricted -Gulf Shores,Other Contractual Services - PS
Coastal Alabama CC,2078,Armster Irene,9/11/2020,500,Private Scholarships - Bm,Deposits Held for Others - Agency
Coastal Alabama CC,2079,Assurance Service Group Inc ,9/11/2020,29910.71,R&R Bay Minette,Maintenance & Repairs  - OOS
Coastal Alabama CC,2080,Atmore Auto Parts ,9/11/2020,24.44,Unrestricted - Atmore,Materials and Supplies - MS
Coastal Alabama CC,2081,Atmore Electrical Supply ,9/11/2020,31.24,Unrestricted - Atmore,Materials and Supplies - MS
Coastal Alabama CC,2082,Atmore Heating & Ac Suppl ,9/11/2020,51.7,Unrestricted - Atmore,Materials and Supplies - MS
Coastal Alabama CC,2083,Atmore Newspapers Inc. ,9/11/2020,250,Unrestricted -Bay Minette,Advertising & Promotions - OOS
Coastal Alabama CC,2084,Berney Office Solutions ,9/11/2020,3.33,Student Support Service -BM,Short-Term Equipment Rentals - OOS
Coastal Alabama CC,2084,Berney Office Solutions ,9/11/2020,5.64,Unrestricted - Atmore,Short-Term Equipment Rentals - OOS
Coastal Alabama CC,2084,Berney Office Solutions ,9/11/2020,21.35,Unrestricted-Thomasville,Short-Term Equipment Rentals - OOS
Coastal Alabama CC,2084,Berney Office Solutions ,9/11/2020,21.6,Unrestricted -Brewton,Short-Term Equipment Rentals - OOS
Coastal Alabama CC,2084,Berney Office Solutions ,9/11/2020,44.81,Unrestricted -Bay Minette,Short-Term Equipment Rentals - OOS
Coastal Alabama CC,2084,Berney Office Solutions ,9/11/2020,47.91,Unrestricted-Fairhope,Short-Term Equipment Rentals - OOS
Coastal Alabama CC,2084,Berney Office Solutions ,9/11/2020,92.03,Unrestricted - Fountain,Short-Term Equipment Rentals - OOS
Coastal Alabama CC,2084,Berney Office Solutions ,9/11/2020,145.63,Unrestricted - Brookley Field,Short-Term Equipment Rentals - OOS
Coastal Alabama CC,2084,Berney Office Solutions ,9/11/2020,10902.1,Unrestricted -Bay Minette,Other Contractual Services - PS
Coastal Alabama CC,2085,Bondurant Lumber & Hardwa ,9/11/2020,5.04,Unrestricted - Atmore,Materials and Supplies - MS
Coastal Alabama CC,2086,Bondurant Lumber & Hardwa ,9/11/2020,15.07,Unrestricted - Atmore,Materials and Supplies - MS
Coastal Alabama CC,2087,Bondurant Lumber and Hardware Inc ,9/11/2020,636.39,Unrestricted -Brewton,Maintenance & Repairs  - OOS
Coastal Alabama CC,2089,Brunson William,9/11/2020,450,Unrestricted -Gulf Shores,Maintenance & Repairs  - OOS
Coastal Alabama CC,2090,Builders Hardware and Supply ,9/11/2020,265.75,Unrestricted -Bay Minette,Materials and Supplies - MS
Coastal Alabama CC,2091,C & C Plumbing & Servc Co ,9/11/2020,355,Housing- Bay Minette,Maintenance & Repairs  - OOS
Coastal Alabama CC,2092,Carolina Biological Supply Co ,9/11/2020,129.59,Unrestricted -Bay Minette,Materials and Supplies - MS
Coastal Alabama CC,2093,Childress Jack,9/11/2020,1000,Softball Booster Funds,Deposits Held for Others - Agency
Coastal Alabama CC,2094,Chuck Stevens Chevrolet ,9/11/2020,62.54,Unrestricted -Bay Minette,Maintenance & Repairs  - OOS
Coastal Alabama CC,2095,City Electric Supply Co ,9/11/2020,229.97,Unrestricted - Atmore,Materials and Supplies - MS
Coastal Alabama CC,2095,City Electric Supply Co ,9/11/2020,394.54,Unrestricted-Fairhope,Materials and Supplies - MS
Coastal Alabama CC,2095,City Electric Supply Co ,9/11/2020,560.75,Unrestricted -Bay Minette,Materials and Supplies - MS
Coastal Alabama CC,2096,City of Gulf Shores ,9/11/2020,344.1,Unrestricted -Gulf Shores,Water & Sewer - UC
Coastal Alabama CC,2097,City Produce Of Fwbinc. ,9/11/2020,397.88,Food Services- Bay Minette,Purchases for Resale (COGS) - MS
Coastal Alabama CC,2098,Clarke County High School ,9/11/2020,200,Unrestricted -Bay Minette,Advertising & Promotions - OOS
Coastal Alabama CC,2099,Cma Technology Solutions ,9/11/2020,3269.5,Unrestricted -Bay Minette,Other Contractual Services - PS
Coastal Alabama CC,2100,Coca-Cola Bottling Company United Inc. ,9/11/2020,296.37,Food Services- Bay Minette,Purchases for Resale (COGS) - MS
Coastal Alabama CC,2101,Deas Building Supply Inc ,9/11/2020,620,Unrestricted-Monroeville,Materials and Supplies - MS
Coastal Alabama CC,2102,Deas Building Supply Inc ,9/11/2020,257.1,Unrestricted-Monroeville,Maintenance & Repairs  - OOS
Coastal Alabama CC,2103,Demco ,9/11/2020,412.15,Unrestricted-Monroeville,Materials and Supplies - MS
Coastal Alabama CC,2104,Dogwood Productions Inc ,9/11/2020,6500,Unrestricted -Bay Minette,Other Contractual Services - PS
Coastal Alabama CC,2105,Dorman Anne,9/11/2020,3500,Live At 5 Donations,Deposits Held for Others - Agency
Coastal Alabama CC,2106,Dozier Hardware Co Inc ,9/11/2020,181.95,Unrestricted-Thomasville,Materials and Supplies - MS
Coastal Alabama CC,2106,Dozier Hardware Co Inc ,9/11/2020,199,Unrestricted-Thomasville,Maintenance & Repairs  - OOS
Coastal Alabama CC,2107,Dozier Tire & Service ,9/11/2020,158.29,Unrestricted-Thomasville,Maintenance & Repairs  - OOS
Coastal Alabama CC,2108,Dumas Micheal,9/11/2020,1500,Unrestricted -Bay Minette,Other Professional Fees - PS
Coastal Alabama CC,2109,EBSCO Industries Inc ,9/11/2020,6618.52,Unrestricted -Bay Minette,Subscriptions - OOS
Coastal Alabama CC,2110,Emerald Coast Academic Advising Network Inc ,9/11/2020,120,Student Support Service -BR,Memberships - PS
Coastal Alabama CC,2111,Encore Rehabilitationinc ,9/11/2020,833.33,Unrestricted -Brewton,Other Contractual Services - PS
Coastal Alabama CC,2112,Essential Education ,9/11/2020,6746.25,AE-Federal Regular,Materials and Supplies - MS
Coastal Alabama CC,2113,Excel High School ,9/11/2020,370,Unrestricted -Bay Minette,Advertising & Promotions - OOS
Coastal Alabama CC,2114,Federal Express Corporation ,9/11/2020,378.09,Unrestricted -Bay Minette,Postage - OOS
Coastal Alabama CC,2115,Frasier-Ousley Construction & Engineering Inc ,9/11/2020,62310,Unexpended Plant Monroeville,Building Alterations - CE
Coastal Alabama CC,2116,Glenn Shepard Seminars In ,9/11/2020,39.97,Unrestricted -Bay Minette,Other Professional Fees - PS
Coastal Alabama CC,2117,Goodwyn Mills & Cawood Inc ,9/11/2020,36605.8,Unrestricted -Brewton,Construction in Progress - CE
Coastal Alabama CC,2118,Connection ,9/11/2020,310.57,Unrestricted -Bay Minette,Materials and Supplies - MS
Coastal Alabama CC,2119,Herrington's The Florist Inc ,9/11/2020,105,Unrestricted -Brewton,Materials and Supplies - MS
Coastal Alabama CC,2120,Hogwash ,9/11/2020,35.48,Unrestricted -Brewton,Other Professional Fees - PS
Coastal Alabama CC,2121,Kelly's Turf Pro ,9/11/2020,450,Unrestricted -Brewton,Other Contractual Services - PS
Coastal Alabama CC,2122,Kocurek Michael,9/11/2020,1500,Unrestricted-Monroeville,Other Contractual Services - PS
Coastal Alabama CC,2123,KONE Inc. ,9/11/2020,122.11,Housing- Bay Minette,Other Contractual Services - PS
Coastal Alabama CC,2123,KONE Inc. ,9/11/2020,441.7,Unrestricted-Fairhope,Other Contractual Services - PS
Coastal Alabama CC,2123,KONE Inc. ,9/11/2020,631.02,Unrestricted -Bay Minette,Other Contractual Services - PS
Coastal Alabama CC,2124,Lagniappe ,9/11/2020,615,Unrestricted -Bay Minette,Advertising & Promotions - OOS
Coastal Alabama CC,2125,Lamar Advertising Company ,9/11/2020,3791,Unrestricted -Bay Minette,Advertising & Promotions - OOS
Coastal Alabama CC,2126,Library Journal ,9/11/2020,104.99,Unrestricted -Bay Minette,Subscriptions - OOS
Coastal Alabama CC,2127,Long Richard,9/11/2020,900,Unrestricted-Fairhope,Maintenance & Repairs  - OOS
Coastal Alabama CC,2128,Magnolia Clipping & Broadcast Monitoring Service ,9/11/2020,113.85,Unrestricted -Bay Minette,Other Professional Fees - PS
Coastal Alabama CC,2129,Marvins ,9/11/2020,96.62,Unrestricted-Monroeville,Materials and Supplies - MS
Coastal Alabama CC,2130,McElhenney Construction Company LLC ,9/11/2020,106709.96,R&R Bay Minette,Improvements - Other - CE
Coastal Alabama CC,2131,Middleton Auto Parts Inc. ,9/11/2020,1748.34,Unrestricted-SB Center Tech,Materials and Supplies - MS
Coastal Alabama CC,2132,Mobile Area Chamber of Commerce ,9/11/2020,15,Unrestricted -Bay Minette,Advertising & Promotions - OOS
Coastal Alabama CC,2133,Mobile Area Water and Sewer System ,9/11/2020,378.91,Unrestricted - Brookley Field,Water & Sewer - UC
Coastal Alabama CC,2134,Mobile Fixture & Equipment Co. Inc. ,9/11/2020,197.08,Food Services- Bay Minette,Materials and Supplies - MS
Coastal Alabama CC,2135,Mobile Glass Llc ,9/11/2020,2041,CARES Act - College Relief,Internal Purchases - MS
Coastal Alabama CC,2136,Monroe Academy ,9/11/2020,250,Unrestricted -Bay Minette,Advertising & Promotions - OOS
Coastal Alabama CC,2137,Mott MacDonald Alabama LLC ,9/11/2020,39360,Unexpended Plant Bay Minette,Building Alterations - CE
Coastal Alabama CC,2138,Nashville Chemical & ,9/11/2020,350,Unrestricted -Bay Minette,Maintenance & Repairs  - OOS
Coastal Alabama CC,2139,National Council of State Boards of Nursing ,9/11/2020,5950,Unrestricted Shared Services,Other Professional Fees - PS
Coastal Alabama CC,2140,National Junior College Athletic Association ,9/11/2020,3528,Unrestricted -Brewton,Memberships - PS
Coastal Alabama CC,2140,National Junior College Athletic Association ,9/11/2020,3633,Unrestricted -Bay Minette,Memberships - PS
Coastal Alabama CC,2141,National Junior College Athletic Association ,9/11/2020,3413,Unrestricted-Monroeville,Memberships - PS
Coastal Alabama CC,2142,New England Flag & Banner ,9/11/2020,713,Unrestricted -Bay Minette,Materials and Supplies - MS
Coastal Alabama CC,2143,New Generation Software ,9/11/2020,9980.25,Unrestricted-Monroeville,Technology - non capitalized - MS
Coastal Alabama CC,2144,North Baldwin Printing LLC ,9/11/2020,40,CARES Act - College Relief,Internal Purchases - MS
Coastal Alabama CC,2145,North Baldwin Utilities ,9/11/2020,135.67,Food Services- Bay Minette,Gas & Heating Fuel - UC
Coastal Alabama CC,2145,North Baldwin Utilities ,9/11/2020,802.27,Housing- Bay Minette,Gas & Heating Fuel - UC
Coastal Alabama CC,2145,North Baldwin Utilities ,9/11/2020,2068.22,Housing- Bay Minette,Water & Sewer - UC
Coastal Alabama CC,2145,North Baldwin Utilities ,9/11/2020,2309.14,Unrestricted -Bay Minette,Gas & Heating Fuel - UC
Coastal Alabama CC,2145,North Baldwin Utilities ,9/11/2020,3626.04,Unrestricted -Bay Minette,Water & Sewer - UC
Coastal Alabama CC,2146,O'Reilly Automotive Stores Inc ,9/11/2020,3.99,Unrestricted-Monroeville,Maintenance & Repairs  - OOS
Coastal Alabama CC,2146,O'Reilly Automotive Stores Inc ,9/11/2020,19.77,Unrestricted -Bay Minette,Materials and Supplies - MS
Coastal Alabama CC,2147,Quill Corporation ,9/11/2020,41.82,Unrestricted-Monroeville,Materials and Supplies - MS
Coastal Alabama CC,2147,Quill Corporation ,9/11/2020,324.45,Unrestricted -Bay Minette,Materials and Supplies - MS
Coastal Alabama CC,2148,Republic Services Inc. ,9/11/2020,324.96,Unrestricted -Brewton,Waste Disposal - UC
Coastal Alabama CC,2148,Republic Services Inc. ,9/11/2020,368.28,Unrestricted - Fountain,Waste Disposal - UC
Coastal Alabama CC,2148,Republic Services Inc. ,9/11/2020,411.62,Unrestricted - Atmore,Waste Disposal - UC
Coastal Alabama CC,2148,Republic Services Inc. ,9/11/2020,1061.52,Housing - Brewton,Waste Disposal - UC
Coastal Alabama CC,2149,Rp Group Llc ,9/11/2020,81,Food Services- Bay Minette,Materials and Supplies - MS
Coastal Alabama CC,2150,Select Aerospace Industries Inc ,9/11/2020,7176,Unrestricted -Bay Minette,Other - AP
Coastal Alabama CC,2151,Selma Newspapers Inc. ,9/11/2020,285.5,Unrestricted-Monroeville,Subscriptions - OOS
Coastal Alabama CC,2152,Sexton Lawn and Landscape ,9/11/2020,3415.41,Unrestricted-Fairhope,Other Professional Fees - PS
Coastal Alabama CC,2153,Sherwin Williams Company ,9/11/2020,129.24,Unrestricted -Brewton,Materials and Supplies - MS
Coastal Alabama CC,2154,Siemens Industry Inc. ,9/11/2020,572,Unrestricted - Atmore,Other Professional Fees - PS
Coastal Alabama CC,2155,Southern Pine Electric Co ,9/11/2020,3168.52,Unrestricted -Brewton,Electricity - UC
Coastal Alabama CC,2156,Standard Roofing of Montgomery Inc ,9/11/2020,21700,R&R Bay Minette,Building Alterations - CE
Coastal Alabama CC,2156,Standard Roofing of Montgomery Inc ,9/11/2020,42589,Unexpended Plant Shared Services,Building Alterations - CE
Coastal Alabama CC,2157,Staples Contract & Commercial Inc ,9/11/2020,233.67,Unrestricted -Brewton,Materials and Supplies - MS
Coastal Alabama CC,2157,Staples Contract & Commercial Inc ,9/11/2020,240,Unrestricted - Brookley Field,Materials and Supplies - MS
Coastal Alabama CC,2157,Staples Contract & Commercial Inc ,9/11/2020,270.78,Unrestricted -Bay Minette,Materials and Supplies - MS
Coastal Alabama CC,2158,State of Alabama ,9/11/2020,25033,Unrestricted Shared Services,Internet - UC
Coastal Alabama CC,2159,State of Alabama ,9/11/2020,387878,Unrestricted Shared Services,Bond Reserve Fee Expense - OOS
Coastal Alabama CC,2160,State of Alabama ,9/11/2020,2770.47,Unrestricted -Bay Minette,Advertising & Promotions - OOS
Coastal Alabama CC,2161,Strategy Inc ,9/11/2020,12000,Unrestricted -Bay Minette,Other Professional Fees - PS
Coastal Alabama CC,2162,Strickland Paper Company Inc ,9/11/2020,348.5,Unrestricted -Gulf Shores,Materials and Supplies - MS
Coastal Alabama CC,2163,Terminix International Company LP ,9/11/2020,71,Unrestricted-Fairhope,Other Contractual Services - PS
Coastal Alabama CC,2164,The Pitney Bowes Bank Inc ,9/11/2020,463.65,Unrestricted-Thomasville,Short-Term Equipment Rentals - OOS
Coastal Alabama CC,2165,Thomasville Times ,9/11/2020,267.39,Unrestricted -Gulf Shores,Advertising & Promotions - OOS
Coastal Alabama CC,2166,Town Square Publications ,9/11/2020,1095,Unrestricted -Bay Minette,Advertising & Promotions - OOS
Coastal Alabama CC,2167,United Parcel Service Inc ,9/11/2020,3,Unrestricted -Bay Minette,Postage - OOS
Coastal Alabama CC,2167,United Parcel Service Inc ,9/11/2020,10.68,Unrestricted -Bay Minette,Materials and Supplies - MS
Coastal Alabama CC,2168,US Food Service ,9/11/2020,6773.94,Food Services- Bay Minette,Purchases for Resale (COGS) - MS
Coastal Alabama CC,2169,Virginia Wrecking Co. Inc ,9/11/2020,62810.96,Housing- Bay Minette,Improvements- DE
Coastal Alabama CC,2170,Vsc Fire & Securityinc. ,9/11/2020,625,Unrestricted -Gulf Shores,Other Contractual Services - PS
Coastal Alabama CC,2170,Vsc Fire & Securityinc. ,9/11/2020,4066.8,Unrestricted-Fairhope,Maintenance & Repairs  - OOS
Coastal Alabama CC,2171,W W Grainger Inc ,9/11/2020,124.34,Housing- Bay Minette,Materials and Supplies - MS
Coastal Alabama CC,2171,W W Grainger Inc ,9/11/2020,176.94,Unrestricted - Brookley Field,Materials and Supplies - MS
Coastal Alabama CC,2171,W W Grainger Inc ,9/11/2020,1159.66,Unrestricted -Bay Minette,Maintenance & Repairs  - OOS
Coastal Alabama CC,2172,Weiser ,9/11/2020,153.6,Unrestricted N. Baldwin Cntr Tech,Other Contractual Services - PS
Coastal Alabama CC,2172,Weiser ,9/11/2020,448,Unrestricted -Gulf Shores,Other Contractual Services - PS
Coastal Alabama CC,2172,Weiser ,9/11/2020,723.2,Unrestricted -Fairhope Academy,Other Contractual Services - PS
Coastal Alabama CC,2172,Weiser ,9/11/2020,992,Unrestricted - Brookley Field,Other Contractual Services - PS
Coastal Alabama CC,2172,Weiser ,9/11/2020,1180.47,Housing - Brewton,Other Contractual Services - PS
Coastal Alabama CC,2172,Weiser ,9/11/2020,1392.84,Housing- Bay Minette,Other Contractual Services - PS
Coastal Alabama CC,2173,Wesco Gas & Welding Supply Inc. ,9/11/2020,822.15,Unrestricted - Atmore,Materials and Supplies - MS
Coastal Alabama CC,2173,Wesco Gas & Welding Supply Inc. ,9/11/2020,1829.97,Unrestricted -Brewton,Materials and Supplies - MS
Coastal Alabama CC,2174,World Design Marketing ,9/11/2020,4730,Unrestricted -Bay Minette,Other Professional Fees - PS
Coastal Alabama CC,2175,Wrights Auto Parts Inc ,9/11/2020,357.98,Unrestricted -Bay Minette,Materials and Supplies - MS
Coastal Alabama CC,2352,City of Brewton Utility Dept ,9/21/2020,89.38,Unrestricted -Brewton,Gas & Heating Fuel - UC
Coastal Alabama CC,2352,City of Brewton Utility Dept ,9/21/2020,109.22,Unrestricted -Brewton,Water & Sewer - UC
Coastal Alabama CC,2352,City of Brewton Utility Dept ,9/21/2020,430.56,Housing - Brewton,Water & Sewer - UC
Coastal Alabama CC,2402,Davis Fireman Pest Contro ,9/21/2020,850,Unrestricted-Thomasville,Other Professional Fees - PS
Coastal Alabama CC,2798,Monroe Scrap Materialinc ,9/21/2020,100,Unrestricted-Monroeville,Short-Term Equipment Rentals - OOS
Coastal Alabama CC,2922,Quill Corporation ,9/21/2020,7.46,Unrestricted-Monroeville,Materials and Supplies - MS
Coastal Alabama CC,3019,Southern Light Llc ,9/21/2020,770.54,Unrestricted-Monroeville,Landline Phones - UC
Coastal Alabama CC,3019,Southern Light Llc ,9/21/2020,1216.82,Unrestricted-Gilbertown,Landline Phones - UC
Coastal Alabama CC,3030,Staples Contract & Commercial Inc ,9/21/2020,549.51,Unrestricted -Bay Minette,Materials and Supplies - MS
Coastal Alabama CC,3055,Synergetics DCS Inc. ,9/21/2020,28952.75,Unrestricted -Brewton,Technology - non capitalized - MS
Coastal Alabama CC,3067,The Pitney Bowes Bank Inc ,9/21/2020,120,Unrestricted - Atmore,Short-Term Equipment Rentals - OOS
Coastal Alabama CC,3067,The Pitney Bowes Bank Inc ,9/21/2020,156,Unrestricted -Brewton,Short-Term Equipment Rentals - OOS
Coastal Alabama CC,3561,A & A Refrigeration ,9/25/2020,170.06,Unrestricted -Gulf Shores,Maintenance & Repairs  - OOS
Coastal Alabama CC,3561,A & A Refrigeration ,9/25/2020,216.08,Unrestricted -Gulf Shores,Materials and Supplies - MS
Coastal Alabama CC,3562,Acro Service Corporation ,9/25/2020,2110.32,Food Services- Bay Minette,Other Contractual Services - PS
Coastal Alabama CC,3563,Affordable Interior Systems ,9/25/2020,15926.86,Upward Bound TV,Materials and Supplies - MS
Coastal Alabama CC,3564,Air Specialty Inc ,9/25/2020,1511.4,Unrestricted -Bay Minette,Maintenance & Repairs  - OOS
Coastal Alabama CC,3564,Air Specialty Inc ,9/25/2020,2856,Unrestricted - Brookley Field,Maintenance & Repairs  - OOS
Coastal Alabama CC,3564,Air Specialty Inc ,9/25/2020,4887,Unrestricted -Bay Minette,Equipment - non capitalized - MS
Coastal Alabama CC,3565,Aircraft Spruce & Specialty Co. ,9/25/2020,394.8,Unrestricted - Brookley Field,Materials and Supplies - MS
Coastal Alabama CC,3566,Alabama Assoc of Collegiate Registrars & Admissions Officer ,9/25/2020,100,Unrestricted -Bay Minette,Memberships - PS
Coastal Alabama CC,3567,Alabama Power Company ,9/25/2020,1180.45,Unrestricted-LifeTech,Electricity - UC
Coastal Alabama CC,3568,Alert Protection Systems Inc ,9/25/2020,43,Unrestricted - Atmore,Other Contractual Services - PS
Coastal Alabama CC,3569,Alibris Inc ,9/25/2020,574.95,Unrestricted -Bay Minette,Books - CE
Coastal Alabama CC,3570,Amsterdam Company ,9/25/2020,1075.13,Student Support Service -BM,Materials and Supplies - MS
Coastal Alabama CC,3571,Apogee Telecom Inc ,9/25/2020,986,Housing- Bay Minette,Other Contractual Services - PS
Coastal Alabama CC,3571,Apogee Telecom Inc ,9/25/2020,3653,Housing - Brewton,Other Contractual Services - PS
Coastal Alabama CC,3572,Apple Inc ,9/25/2020,10734,Student Support Service -BM,Materials and Supplies - MS
Coastal Alabama CC,3573,Association of American Colleges and Universities AAC&U ,9/25/2020,540,Unrestricted -Gulf Shores,Registration Fees- IS
Coastal Alabama CC,3574,AT&T ,9/25/2020,1068.16,Unrestricted -Brewton,Landline Phones - UC
Coastal Alabama CC,3575,AT&T ,9/25/2020,2604.52,Unrestricted -Bay Minette,Internet - UC
Coastal Alabama CC,3576,AT&T Mobility National Accounts LLC ,9/25/2020,164.96,AE-Federal Regular,Internet - UC
Coastal Alabama CC,3576,AT&T Mobility National Accounts LLC ,9/25/2020,199.04,Unrestricted -Brewton,Wireless Phones - UC
Coastal Alabama CC,3577,Atalian US Midwest LL ,9/25/2020,2079.31,Unrestricted-Gilbertown,Other Contractual Services - PS
Coastal Alabama CC,3577,Atalian US Midwest LL ,9/25/2020,2265.73,Unrestricted -Gulf Shores,Other Contractual Services - PS
Coastal Alabama CC,3577,Atalian US Midwest LL ,9/25/2020,2748.03,Unrestricted - Brookley Field,Other Contractual Services - PS
Coastal Alabama CC,3577,Atalian US Midwest LL ,9/25/2020,3393.2,Unrestricted - Atmore,Other Contractual Services - PS
Coastal Alabama CC,3577,Atalian US Midwest LL ,9/25/2020,5827.5,Unrestricted-Fairhope,Other Contractual Services - PS
Coastal Alabama CC,3577,Atalian US Midwest LL ,9/25/2020,24701.51,Unrestricted -Bay Minette,Other Contractual Services - PS
Coastal Alabama CC,3578,Auto-Owners Insurance ,9/25/2020,5066.44,Unrestricted -Bay Minette,Insurance and Bonding - PS
Coastal Alabama CC,3579,Baldwin Rural Area Transportation ,9/25/2020,1350,Unrestricted -Bay Minette,Other Contractual Services - PS
Coastal Alabama CC,3580,Bishop Enterprises LLC ,9/25/2020,350,Unrestricted -Bay Minette,Other Professional Fees - PS
Coastal Alabama CC,3581,Carolina Biological Supply Co ,9/25/2020,604.54,Unrestricted -Bay Minette,Materials and Supplies - MS
Coastal Alabama CC,3581,Carolina Biological Supply Co ,9/25/2020,2726.74,Unrestricted-Thomasville,Materials and Supplies - MS
Coastal Alabama CC,3582,Centurytel Inc. ,9/25/2020,2866.71,Unrestricted -Bay Minette,Landline Phones - UC
Coastal Alabama CC,3583,Clarke-mobile Counties Ga ,9/25/2020,60.16,Unrestricted-Thomasville,Gas & Heating Fuel - UC
Coastal Alabama CC,3584,Compansol ,9/25/2020,1590,Student Support Service -BM,Other Contractual Services - PS
Coastal Alabama CC,3585,Condensed Curriculum International Inc ,9/25/2020,8316.8,Unrestricted-Fairhope,Other Contractual Services - PS
Coastal Alabama CC,3586,Covington Flooring Co Inc ,9/25/2020,3496,R&R Monroeville,Maintenance & Repairs  - OOS
Coastal Alabama CC,3587,Ellington Radio Inc ,9/25/2020,266.66,Ready to Work ,Advertising & Promotions - OOS
Coastal Alabama CC,3588,Frontier Communications ,9/25/2020,169.68,Unrestricted-Monroeville,Landline Phones - UC
Coastal Alabama CC,3589,Heiberg Consulting Inc. ,9/25/2020,1599,Student Support Service - MR,Materials and Supplies - MS
Coastal Alabama CC,3590,Heiberg Consulting Inc. ,9/25/2020,1599,Upward Bound TV,Other Contractual Services - PS
Coastal Alabama CC,3591,Herb & Pepper Farm ,9/25/2020,52.8,Unrestricted -Gulf Shores,Culinary Consumables
Coastal Alabama CC,3592,Honorlock Inc. ,9/25/2020,32500,CARES Act - College Relief,Other Contractual Services - PS
Coastal Alabama CC,3593,J.W. Pepper Of Atlanta ,9/25/2020,609.44,Unrestricted -Bay Minette,Materials and Supplies - MS
Coastal Alabama CC,3594,Jubilee Landscape Mgmtin ,9/25/2020,11525.97,Unrestricted -Bay Minette,Other Contractual Services - PS
Coastal Alabama CC,3595,Knox Pest Control ,9/25/2020,92.25,Unrestricted -Gulf Shores,Other Contractual Services - PS
Coastal Alabama CC,3595,Knox Pest Control ,9/25/2020,153.75,Unrestricted-Fairhope,Other Contractual Services - PS
Coastal Alabama CC,3595,Knox Pest Control ,9/25/2020,369,Unrestricted -Bay Minette,Other Contractual Services - PS
Coastal Alabama CC,3596,Konica Minolta Business Solutions USA Inc ,9/25/2020,15.6,Talent Search MR,Short-Term Equipment Rentals - OOS
Coastal Alabama CC,3596,Konica Minolta Business Solutions USA Inc ,9/25/2020,52.21,Student Support Service - TV,Short-Term Equipment Rentals - OOS
Coastal Alabama CC,3596,Konica Minolta Business Solutions USA Inc ,9/25/2020,131.23,Upward Bound TV,Short-Term Equipment Rentals - OOS
Coastal Alabama CC,3597,Laerdal ,9/25/2020,6660,Vocational Ed/CTE,Other Professional Fees - PS
Coastal Alabama CC,3598,Mediacom Southeast ,9/25/2020,1600,Unrestricted-LifeTech,Cable - UC
Coastal Alabama CC,3599,North Baldwin Printing LLC ,9/25/2020,35,Unrestricted -Bay Minette,Materials and Supplies - MS
Coastal Alabama CC,3599,North Baldwin Printing LLC ,9/25/2020,60,Unrestricted -Bay Minette,Printing and Binding - OOS
Coastal Alabama CC,3600,Ocs Electrical Services ,9/25/2020,1306,Unrestricted-Thomasville,Maintenance & Repairs  - OOS
Coastal Alabama CC,3601,Paxton Patterson LLC ,9/25/2020,502.08,Unrestricted N. Baldwin Cntr Tech,Materials and Supplies - MS
Coastal Alabama CC,3602,PEEHIP ,9/25/2020,800,Prison,Group Health Insurance - FB
Coastal Alabama CC,3602,PEEHIP ,9/25/2020,800,Unrestricted-Thomasville,Group Health Insurance - FB
Coastal Alabama CC,3602,PEEHIP ,9/25/2020,1173.33,Unrestricted - Brookley Field,Group Health Insurance - FB
Coastal Alabama CC,3602,PEEHIP ,9/25/2020,1600,Unrestricted -Gulf Shores,Group Health Insurance - FB
Coastal Alabama CC,3603,Police And Sheriffs ,9/25/2020,153.21,Unrestricted -Bay Minette,Materials and Supplies - MS
Coastal Alabama CC,3604,Positive Promotions ,9/25/2020,4732.65,Upward Bound TV,Materials and Supplies - MS
Coastal Alabama CC,3605,Quill Corporation ,9/25/2020,299.99,Student Support Service -BR,Materials and Supplies - MS
Coastal Alabama CC,3605,Quill Corporation ,9/25/2020,1044.85,Unrestricted - Brookley Field,Materials and Supplies - MS
Coastal Alabama CC,3605,Quill Corporation ,9/25/2020,2080.4,AE-Federal Regular,Materials and Supplies - MS
Coastal Alabama CC,3606,R.S.I. ,9/25/2020,714.8,Food Services- Bay Minette,Maintenance & Repairs  - OOS
Coastal Alabama CC,3607,Retif Oil & Fuel Llc ,9/25/2020,1950.77,Unrestricted -Bay Minette,Gasoline & Oil - Motor Veh - OOS
Coastal Alabama CC,3608,Riviera Utilities ,9/25/2020,569.58,Unrestricted -Gulf Shores,Gas & Heating Fuel - UC
Coastal Alabama CC,3609,Select Aerospace Industries Inc ,9/25/2020,15690,Vocational Ed/CTE,Equipment - non capitalized - MS
Coastal Alabama CC,3610,Sherwin Williams Company ,9/25/2020,85.48,Housing- Bay Minette,Materials and Supplies - MS
Coastal Alabama CC,3611,Sign-A-Rama ,9/25/2020,136,Unrestricted-Fairhope,Materials and Supplies - MS
Coastal Alabama CC,3612,Simonetta Freelance (DBA) Proforma Green Marketing ,9/25/2020,475.15,Student Support Service -BR,Materials and Supplies - MS
Coastal Alabama CC,3613,Sodexo Inc ,9/25/2020,20550.03,Unrestricted -Bay Minette,Other Contractual Services - PS
Coastal Alabama CC,3614,Staples Contract & Commercial Inc ,9/25/2020,35.02,Unrestricted -Brewton,Materials and Supplies - MS
Coastal Alabama CC,3614,Staples Contract & Commercial Inc ,9/25/2020,50.34,Upward Bound TV,Materials and Supplies - MS
Coastal Alabama CC,3614,Staples Contract & Commercial Inc ,9/25/2020,3188.32,Unrestricted -Bay Minette,Materials and Supplies - MS
Coastal Alabama CC,3615,Staples Contract & Commercial Inc ,9/25/2020,287.18,Upward Bound TV,Materials and Supplies - MS
Coastal Alabama CC,3616,Strategy Inc ,9/25/2020,1498,Unrestricted -Bay Minette,Other Contractual Services - PS
Coastal Alabama CC,3616,Strategy Inc ,9/25/2020,1500,Unrestricted -Bay Minette,Other Professional Fees - PS
Coastal Alabama CC,3616,Strategy Inc ,9/25/2020,5990.63,Unrestricted -Bay Minette,Postage - OOS
Coastal Alabama CC,3616,Strategy Inc ,9/25/2020,6069.5,Unrestricted -Bay Minette,Printing and Binding - OOS
Coastal Alabama CC,3616,Strategy Inc ,9/25/2020,38451.74,Unrestricted -Bay Minette,Advertising & Promotions - OOS
Coastal Alabama CC,3617,Strickland Paper Company Inc ,9/25/2020,306.19,Upward Bound MR,Materials and Supplies - MS
Coastal Alabama CC,3618,Strickland Paper Company Inc ,9/25/2020,271.5,Unrestricted -Bay Minette,Materials and Supplies - MS
Coastal Alabama CC,3619,Terminix International Company LP ,9/25/2020,491,Unrestricted-Fairhope,Other Contractual Services - PS
Coastal Alabama CC,3620,Turnitin LLC ,9/25/2020,24560,Unrestricted Distance Ed,Other Contractual Services - PS
Coastal Alabama CC,3621,United Parcel Service Inc ,9/25/2020,6,Unrestricted -Bay Minette,Postage - OOS
Coastal Alabama CC,3622,W W Grainger Inc ,9/25/2020,1474.56,Unrestricted-Monroeville,Materials and Supplies - MS
Coastal Alabama CC,3623,W W Grainger Inc ,9/25/2020,559.9,Unrestricted -Fairhope Academy,Materials and Supplies - MS
Coastal Alabama CC,3623,W W Grainger Inc ,9/25/2020,822.44,Unrestricted - Brookley Field,Materials and Supplies - MS
Coastal Alabama CC,3624,Weiser ,9/25/2020,102.4,Unrestricted N. Baldwin Cntr Tech,Other Contractual Services - PS
Coastal Alabama CC,3624,Weiser ,9/25/2020,441.6,Unrestricted -Gulf Shores,Other Contractual Services - PS
Coastal Alabama CC,3624,Weiser ,9/25/2020,729.6,Unrestricted -Fairhope Academy,Other Contractual Services - PS
Coastal Alabama CC,3624,Weiser ,9/25/2020,1049.6,Unrestricted - Brookley Field,Other Contractual Services - PS
Coastal Alabama CC,3624,Weiser ,9/25/2020,1883.52,Housing - Brewton,Other Contractual Services - PS
Coastal Alabama CC,3624,Weiser ,9/25/2020,2286.36,Housing- Bay Minette,Other Contractual Services - PS
Coastal Alabama CC,3625,Wrights Auto Parts Inc ,9/25/2020,2413.95,Unrestricted - Brookley Field,Materials and Supplies - MS
Coastal Alabama CC,3626,ABM Industry Groups LLC ,9/30/2020,210.94,Unrestricted - Brookley Field,Other Contractual Services - PS
Coastal Alabama CC,3626,ABM Industry Groups LLC ,9/30/2020,625,Unrestricted -Fairhope Academy,Other Contractual Services - PS
Coastal Alabama CC,3626,ABM Industry Groups LLC ,9/30/2020,632.81,Unrestricted-Gilbertown,Other Contractual Services - PS
Coastal Alabama CC,3626,ABM Industry Groups LLC ,9/30/2020,1476.55,Unrestricted -Gulf Shores,Other Contractual Services - PS
Coastal Alabama CC,3626,ABM Industry Groups LLC ,9/30/2020,1792.96,Unrestricted-Fairhope,Other Contractual Services - PS
Coastal Alabama CC,3626,ABM Industry Groups LLC ,9/30/2020,2109.35,Unrestricted-Thomasville,Other Contractual Services - PS
Coastal Alabama CC,3626,ABM Industry Groups LLC ,9/30/2020,3804.34,Unrestricted -Brewton,Other Contractual Services - PS
Coastal Alabama CC,3626,ABM Industry Groups LLC ,9/30/2020,6389.86,Unrestricted -Bay Minette,Other Contractual Services - PS
Coastal Alabama CC,3626,ABM Industry Groups LLC ,9/30/2020,8015.55,Unrestricted-Monroeville,Other Contractual Services - PS
Coastal Alabama CC,3627,Acro Service Corporation ,9/30/2020,117.24,Food Services- Bay Minette,Other Contractual Services - PS
Coastal Alabama CC,3628,Advance Local Holdings Corp ,9/30/2020,2992.89,Unrestricted -Bay Minette,Advertising & Promotions - OOS
Coastal Alabama CC,3629,Affordable Interior Systems ,9/30/2020,13784,Unrestricted -Bay Minette,Materials and Supplies - MS
Coastal Alabama CC,3630,Aim Institute ,9/30/2020,3600,Talent Search MR,Computer Software(non capital) - MS
Coastal Alabama CC,3631,Air Specialty Inc ,9/30/2020,241.5,Unrestricted -Bay Minette,Maintenance & Repairs  - OOS
Coastal Alabama CC,3631,Air Specialty Inc ,9/30/2020,599.85,Food Services- Bay Minette,Maintenance & Repairs  - OOS
Coastal Alabama CC,3631,Air Specialty Inc ,9/30/2020,729.27,Unrestricted - Brookley Field,Maintenance & Repairs  - OOS
Coastal Alabama CC,3632,Alabama Power Company ,9/30/2020,1463.82,Unrestricted-Gilbertown,Electricity - UC
Coastal Alabama CC,3632,Alabama Power Company ,9/30/2020,1710.74,Prison,Electricity - UC
Coastal Alabama CC,3632,Alabama Power Company ,9/30/2020,3393.42,Food Services- Bay Minette,Electricity - UC
Coastal Alabama CC,3632,Alabama Power Company ,9/30/2020,6290.03,Unrestricted - Brookley Field,Electricity - UC
Coastal Alabama CC,3632,Alabama Power Company ,9/30/2020,7462.28,Unrestricted - Atmore,Electricity - UC
Coastal Alabama CC,3632,Alabama Power Company ,9/30/2020,11369.62,Unrestricted-Thomasville,Electricity - UC
Coastal Alabama CC,3632,Alabama Power Company ,9/30/2020,19301.53,Unrestricted-Monroeville,Electricity - UC
Coastal Alabama CC,3632,Alabama Power Company ,9/30/2020,23991.54,Unrestricted -Brewton,Electricity - UC
Coastal Alabama CC,3632,Alabama Power Company ,9/30/2020,24414.46,Housing- Bay Minette,Electricity - UC
Coastal Alabama CC,3632,Alabama Power Company ,9/30/2020,49625.47,Unrestricted -Bay Minette,Electricity - UC
Coastal Alabama CC,3633,All Over Jantrl Srvcs Inc ,9/30/2020,440,Housing - Brewton,Other Contractual Services - PS
Coastal Alabama CC,3634,Alsco Inc ,9/30/2020,273.23,Food Services- Bay Minette,Other Contractual Services - PS
Coastal Alabama CC,3635,Amsterdam Company ,9/30/2020,1385.27,Student Support Service -BM,Materials and Supplies - MS
Coastal Alabama CC,3636,AT&T ,9/30/2020,2118,Unrestricted -Bay Minette,Internet - UC
Coastal Alabama CC,3637,AT&T Mobility National Accounts LLC ,9/30/2020,2636.81,Unrestricted -Bay Minette,Wireless Phones - UC
Coastal Alabama CC,3638,Atmore Electrical Supply ,9/30/2020,26.01,Unrestricted - Atmore,Materials and Supplies - MS
Coastal Alabama CC,3639,Atmore Heating & Ac Suppl ,9/30/2020,102.85,Unrestricted - Atmore,Materials and Supplies - MS
Coastal Alabama CC,3640,Auto-Owners Insurance ,9/30/2020,18211.05,Unrestricted-Monroeville,Insurance and Bonding - PS
Coastal Alabama CC,3641,Borden Dairy Company ,9/30/2020,275.86,Food Services- Bay Minette,Purchases for Resale (COGS) - MS
Coastal Alabama CC,3642,BSN ,9/30/2020,980.42,Unrestricted -Brewton,Materials and Supplies - MS
Coastal Alabama CC,3642,BSN ,9/30/2020,2336.86,Unrestricted -Bay Minette,Materials and Supplies - MS
Coastal Alabama CC,3643,City Cleaners ,9/30/2020,60,Unrestricted-Thomasville,Other Professional Fees - PS
Coastal Alabama CC,3644,City Produce Of Fwbinc. ,9/30/2020,535.3,Food Services- Bay Minette,Purchases for Resale (COGS) - MS
Coastal Alabama CC,3645,Coley Air Conditioning Inc ,9/30/2020,4300,R&R  Brewton,Maintenance & Repairs  - OOS
Coastal Alabama CC,3646,Covington Flooring Co Inc ,9/30/2020,3294,R&R  Brewton,Maintenance & Repairs  - OOS
Coastal Alabama CC,3647,Dick Blick Company ,9/30/2020,1919.2,Unrestricted -Bay Minette,Materials and Supplies - MS
Coastal Alabama CC,3648,Frontier Communications ,9/30/2020,1436.06,Unrestricted-Monroeville,Landline Phones - UC
Coastal Alabama CC,3650,Jupiter Ed Inc ,9/30/2020,760,Upward Bound MR,Materials and Supplies - MS
Coastal Alabama CC,3651,King Glass Inc. ,9/30/2020,19309,Unrestricted -Bay Minette,Internal Purchases - MS
Coastal Alabama CC,3652,Monroeville Water Works ,9/30/2020,2028.11,Unrestricted-Monroeville,Water & Sewer - UC
Coastal Alabama CC,3653,Muniz Angela,9/30/2020,452.91,NSF ,Other Contractual Services - PS
Coastal Alabama CC,3654,NPC International Inc ,9/30/2020,471.2,Upward Bound MR,Stipends-Meals
Coastal Alabama CC,3655,Peacock Builders LLC ,9/30/2020,1964.45,R&R  Brewton,Maintenance & Repairs  - OOS
Coastal Alabama CC,3656,Qualtrics LLC ,9/30/2020,2000,Talent Search MR,Computer Software(non capital) - MS
Coastal Alabama CC,3657,Republic Services Inc. ,9/30/2020,1000,Unrestricted - Atmore,Waste Disposal - UC
Coastal Alabama CC,3657,Republic Services Inc. ,9/30/2020,1216.91,Unrestricted -Bay Minette,Waste Disposal - UC
Coastal Alabama CC,3658,Sam'S Club ,9/30/2020,184.89,Food Services- Bay Minette,Purchases for Resale (COGS) - MS
Coastal Alabama CC,3659,Sexton Lawn and Landscape ,9/30/2020,4072.19,Unrestricted-Fairhope,Other Professional Fees - PS
Coastal Alabama CC,3660,Siemens Industry Inc. ,9/30/2020,572,Unrestricted - Atmore,Other Contractual Services - PS
Coastal Alabama CC,3661,South Alabama Gas ,9/30/2020,17.86,Unrestricted-Monroeville,Gas & Heating Fuel - UC
Coastal Alabama CC,3662,Spire ,9/30/2020,20.34,Unrestricted - Brookley Field,Gas & Heating Fuel - UC
Coastal Alabama CC,3663,Strickland Paper Company Inc ,9/30/2020,271.49,Talent Search MR,Materials and Supplies - MS
Coastal Alabama CC,3664,Stuart C. Irby Co. ,9/30/2020,4065.1,Unrestricted -Fairhope Academy,Materials and Supplies - MS
Coastal Alabama CC,3665,Sunshine Partners LLC ,9/30/2020,7750,Unrestricted-Gilbertown,Other Professional Fees - PS
Coastal Alabama CC,3666,Supreme Paper Supplies LLC ,9/30/2020,361.5,Unrestricted -Gulf Shores,Maintenance & Repairs  - OOS
Coastal Alabama CC,3666,Supreme Paper Supplies LLC ,9/30/2020,470.89,Unrestricted -Gulf Shores,Materials and Supplies - MS
Coastal Alabama CC,3667,Taylor Hunter,9/30/2020,540,Unrestricted-Jackson,Other Professional Fees - PS
Coastal Alabama CC,3668,United Parcel Service Inc ,9/30/2020,3,Unrestricted -Bay Minette,Postage - OOS
Coastal Alabama CC,3669,Vsc Fire & Securityinc. ,9/30/2020,200,Unrestricted -Bay Minette,Other Contractual Services - PS
Coastal Alabama CC,3670,W W Grainger Inc ,9/30/2020,35.78,Unrestricted -Bay Minette,Maintenance & Repairs  - OOS
Coastal Alabama CC,3670,W W Grainger Inc ,9/30/2020,136.48,Unrestricted-Fairhope,Maintenance & Repairs  - OOS
Coastal Alabama CC,3670,W W Grainger Inc ,9/30/2020,176.48,Unrestricted-Fairhope,Materials and Supplies - MS
Coastal Alabama CC,3671,Wesco Gas & Welding Supply Inc. ,9/30/2020,664,Unrestricted -Fairhope Academy,Materials and Supplies - MS
Coastal Alabama CC,400000,Coley Trent,7/31/2020,246.1,Unrestricted -Gulf Shores,Payroll
Coastal Alabama CC,400001,Santiago Aezekiel,7/31/2020,458.22,Unrestricted -Bay Minette,Payroll
Coastal Alabama CC,400002,Thomas-Mitchell Michelle,7/31/2020,800,Ready to Work ,Payroll
Coastal Alabama CC,400002,Thomas-Mitchell Michelle,7/31/2020,1200,AE - State Regular,Payroll
Coastal Alabama CC,400003,Gay James,7/31/2020,700,Unrestricted -Brewton,Payroll
Coastal Alabama CC,400004,Coley Trent,9/30/2020,418.37,Unrestricted -Gulf Shores,Payroll
Coastal Alabama CC,400005,Dean James,9/30/2020,1200,Unrestricted -Bay Minette,Payroll
Coastal Alabama CC,400006,Stokes Skylar,9/30/2020,855,Unrestricted Distance Ed,Payroll
Coastal Alabama CC,400007,Bodenmann Laura,9/30/2020,855,Unrestricted-Fairhope,Payroll
Coastal Alabama CC,400008,Thibaut Timothy,9/30/2020,570,Unrestricted-Fairhope,Payroll
Coastal Alabama CC,400009,Judy Matthew,9/30/2020,855,Unrestricted-SB Center Tech,Payroll
Coastal Alabama CC,400010,Navarro Daniel,9/30/2020,712.5,Unrestricted -Gulf Shores,Payroll
Coastal Alabama CC,400013,Stanford Flannery,9/30/2020,855,Unrestricted -Gulf Shores,Payroll
Coastal Alabama CC,600000,Pouncey Warren,7/31/2020,22916.67,Unrestricted Shared Services,Payroll
Coastal Alabama CC,600001,Lancaster Mary,7/31/2020,10363.92,Unrestricted Shared Services,Payroll
Coastal Alabama CC,600002,Davis Jessica,7/31/2020,10867.92,Unrestricted Shared Services,Payroll
Coastal Alabama CC,600003,Bradley Vinson,7/31/2020,8750.67,Unrestricted Shared Services,Payroll
Coastal Alabama CC,600004,Strickland Brian,7/31/2020,9879.92,Unrestricted Shared Services,Payroll
Coastal Alabama CC,600005,Stokes Mickey,7/31/2020,10525.25,Unrestricted Shared Services,Payroll
Coastal Alabama CC,600006,Grant Linda,7/31/2020,10525.25,Unrestricted Shared Services,Payroll
Coastal Alabama CC,600007,Graham Jean,7/31/2020,10691.92,Unrestricted Shared Services,Payroll
Coastal Alabama CC,600008,Murphy Melinda,7/31/2020,10691.92,Unrestricted Shared Services,Payroll
Coastal Alabama CC,600009,Duplantis Joshua,7/31/2020,9078.67,Unrestricted Shared Services,Payroll
Coastal Alabama CC,600010,Babb Julia,7/31/2020,6180.67,Unrestricted -Brewton,Payroll
Coastal Alabama CC,600011,Boutwell Anita,7/31/2020,5569,Unrestricted -Brewton,Payroll
Coastal Alabama CC,600012,Boyer Rebecca,7/31/2020,7750.33,Unrestricted -Bay Minette,Payroll
Coastal Alabama CC,600013,Byrd Lindsey,7/31/2020,4250,Unrestricted -Bay Minette,Payroll
Coastal Alabama CC,600014,Calhoun Brenda,7/31/2020,3662.33,Unrestricted -Brewton,Payroll
Coastal Alabama CC,600015,Cosker Melanie,7/31/2020,6597.67,Unrestricted-Monroeville,Payroll
Coastal Alabama CC,600016,Dukes Natalie,7/31/2020,7897.33,Unrestricted -Bay Minette,Payroll
Coastal Alabama CC,600017,Fields Khori,7/31/2020,3916.67,Unrestricted -Bay Minette,Payroll
Coastal Alabama CC,600018,Godfrey Carman,7/31/2020,5874.67,Unrestricted-Fairhope,Payroll
Coastal Alabama CC,600019,Harrison Joy,7/31/2020,3713.37,Unrestricted-Monroeville,Payroll
Coastal Alabama CC,600019,Harrison Joy,7/31/2020,3713.38,Unrestricted-Thomasville,Payroll
Coastal Alabama CC,600020,Holmes Donna,7/31/2020,6639.67,Unrestricted-Monroeville,Payroll
Coastal Alabama CC,600021,Howard Ernestine,7/31/2020,5874.67,Unrestricted-Monroeville,Payroll
Coastal Alabama CC,600022,Johnson Regina,7/31/2020,2837.75,Unrestricted-Monroeville,Payroll
Coastal Alabama CC,600023,Jordan Rachael,7/31/2020,5874.67,Unrestricted -Bay Minette,Payroll
Coastal Alabama CC,600024,Joyner Holley,7/31/2020,5262.67,Unrestricted-Monroeville,Payroll
Coastal Alabama CC,600025,Killingsworth Jennifer,7/31/2020,7897.33,Unrestricted-Fairhope,Payroll
Coastal Alabama CC,600026,Lirette Katherine,7/31/2020,5874.67,Unrestricted -Brewton,Payroll
Coastal Alabama CC,600027,Mack Susan,7/31/2020,6180.67,Unrestricted -Brewton,Payroll
Coastal Alabama CC,600028,Mathews Nancy,7/31/2020,6180.67,Unrestricted -Brewton,Payroll
Coastal Alabama CC,600029,McLean Diane,7/31/2020,6639.67,Unrestricted -Bay Minette,Payroll
Coastal Alabama CC,600030,Pizzotti Connie,7/31/2020,6801.67,Unrestricted -Bay Minette,Payroll
Coastal Alabama CC,600031,Richardson Nikeya,7/31/2020,5569,Unrestricted-Thomasville,Payroll
Coastal Alabama CC,600032,Ruckman Lynette,7/31/2020,7304,Unrestricted -Brewton,Payroll
Coastal Alabama CC,600033,Rumbley Valarie,7/31/2020,7897.33,Unrestricted -Bay Minette,Payroll
Coastal Alabama CC,600034,Scarborough Tiffany,7/31/2020,8275.25,Unrestricted -Bay Minette,Payroll
Coastal Alabama CC,600035,Spillman Allison,7/31/2020,3167.92,Unrestricted -Bay Minette,Payroll
Coastal Alabama CC,600036,Barrow Michele,7/31/2020,6222.67,Unrestricted -Bay Minette,Payroll
Coastal Alabama CC,600037,McArthur Scotty,7/31/2020,1710,Unrestricted -Gulf Shores,Payroll
Coastal Alabama CC,600038,Patterson Tony,7/31/2020,7107.63,Unrestricted -Gulf Shores,Payroll
Coastal Alabama CC,600039,Peace Frederick,7/31/2020,9316.67,Unrestricted-Fairhope,Payroll
Coastal Alabama CC,600040,Petelinski Ashley,7/31/2020,9869.41,Unrestricted -Bay Minette,Payroll
Coastal Alabama CC,600041,Moeller Suzanne,7/31/2020,1710,Unrestricted-Fairhope,Payroll
Coastal Alabama CC,600042,Spratlin Kimberly,7/31/2020,8487.75,Unrestricted -Gulf Shores,Payroll
Coastal Alabama CC,600043,Allen Katrina,7/31/2020,6639.67,Unrestricted -Bay Minette,Payroll
Coastal Alabama CC,600044,Sturdivant Tyler,7/31/2020,6672.67,Unrestricted -Bay Minette,Payroll
Coastal Alabama CC,600045,Jackson Yvette,7/31/2020,8509.33,Unrestricted -Bay Minette,Payroll
Coastal Alabama CC,600046,Moquin Crystal,7/31/2020,5457.33,Unrestricted -Bay Minette,Payroll
Coastal Alabama CC,600047,Forester Cathleen,7/31/2020,7438,Unrestricted -Bay Minette,Payroll
Coastal Alabama CC,600048,Robinson Barbara,7/31/2020,5763,Unrestricted -Bay Minette,Payroll
Coastal Alabama CC,600049,Cain Kimberly,7/31/2020,1425,Unrestricted Distance Ed,Payroll
Coastal Alabama CC,600049,Cain Kimberly,7/31/2020,5874.67,Unrestricted -Bay Minette,Payroll
Coastal Alabama CC,600050,Murphy Timothy,7/31/2020,855,Unrestricted Distance Ed,Payroll
Coastal Alabama CC,600050,Murphy Timothy,7/31/2020,10073,Unrestricted-Fairhope,Payroll
Coastal Alabama CC,600051,Bishop John,7/31/2020,1710,Unrestricted Distance Ed,Payroll
Coastal Alabama CC,600051,Bishop John,7/31/2020,10828.5,Unrestricted -Bay Minette,Payroll
Coastal Alabama CC,600052,Boehm Mary,7/31/2020,3090.33,Unrestricted -Gulf Shores,Payroll
Coastal Alabama CC,600053,Childress Christa,7/31/2020,6180.67,Unrestricted-Monroeville,Payroll
Coastal Alabama CC,600054,Day Elizabeth,7/31/2020,1140,Unrestricted Distance Ed,Payroll
Coastal Alabama CC,600054,Day Elizabeth,7/31/2020,7385,Unrestricted Shared Services,Payroll
Coastal Alabama CC,600055,Stokes Jacqueline,7/31/2020,12006.5,Unrestricted -Brewton,Payroll
Coastal Alabama CC,600056,Congiardo Michael,7/31/2020,10880.08,Unrestricted -Bay Minette,Payroll
Coastal Alabama CC,600057,Merry Michael,7/31/2020,4956.33,Unrestricted-Monroeville,Payroll
Coastal Alabama CC,600058,Strickland Stephen,7/31/2020,6292,Unrestricted-Fairhope,Payroll
Coastal Alabama CC,600059,Ayers David,7/31/2020,855,Unrestricted-Monroeville,Payroll
Coastal Alabama CC,600059,Ayers David,7/31/2020,13617.33,Unrestricted -Bay Minette,Payroll
Coastal Alabama CC,600060,Barry Rebecca,7/31/2020,855,Unrestricted-Monroeville,Payroll
Coastal Alabama CC,600060,Barry Rebecca,7/31/2020,10073,Unrestricted -Bay Minette,Payroll
Coastal Alabama CC,600061,Simmons Leslie A,7/31/2020,855,Unrestricted Distance Ed,Payroll
Coastal Alabama CC,600061,Simmons Leslie A,7/31/2020,7601.83,Unrestricted Shared Services,Payroll
Coastal Alabama CC,600062,Smith Kristi,7/31/2020,5854.26,Unrestricted Shared Services,Payroll
Coastal Alabama CC,600063,Armstrong Darlin,7/31/2020,2083.33,Unrestricted -Bay Minette,Payroll
Coastal Alabama CC,600064,Blubaugh Kaitlyn,7/31/2020,600,Unrestricted -Bay Minette,Payroll
Coastal Alabama CC,600065,Boutwell Benjamin,7/31/2020,600,Unrestricted -Brewton,Payroll
Coastal Alabama CC,600066,Carden Andrew,7/31/2020,2181.8,Unrestricted -Bay Minette,Payroll
Coastal Alabama CC,600067,Ciangiotto Natalie,7/31/2020,600,Unrestricted -Brewton,Payroll
Coastal Alabama CC,600068,Dickey Steven,7/31/2020,2181.8,Unrestricted -Bay Minette,Payroll
Coastal Alabama CC,600069,Dulaney Ritchie,7/31/2020,855,Unrestricted Distance Ed,Payroll
Coastal Alabama CC,600069,Dulaney Ritchie,7/31/2020,9405.92,Unrestricted Shared Services,Payroll
Coastal Alabama CC,600070,Dussouy John,7/31/2020,600,Unrestricted -Bay Minette,Payroll
Coastal Alabama CC,600071,Harding Cassidy,7/31/2020,600,Unrestricted -Bay Minette,Payroll
Coastal Alabama CC,600072,Lambert Chase,7/31/2020,600,Unrestricted -Bay Minette,Payroll
Coastal Alabama CC,600073,Lang Angela,7/31/2020,600,Unrestricted-Monroeville,Payroll
Coastal Alabama CC,600074,Lanier Len,7/31/2020,600,Unrestricted -Bay Minette,Payroll
Coastal Alabama CC,600075,Lofton Brittany,7/31/2020,600,Unrestricted-Monroeville,Payroll
Coastal Alabama CC,600076,Nims Misti,7/31/2020,855,Unrestricted Distance Ed,Payroll
Coastal Alabama CC,600076,Nims Misti,7/31/2020,10625.25,Unrestricted -Brewton,Payroll
Coastal Alabama CC,600077,Pitts Linda,7/31/2020,570,Unrestricted Distance Ed,Payroll
Coastal Alabama CC,600077,Pitts Linda,7/31/2020,12006.5,Unrestricted -Bay Minette,Payroll
Coastal Alabama CC,600078,Radwitch Mallory,7/31/2020,5262.67,Unrestricted -Bay Minette,Payroll
Coastal Alabama CC,600079,Robertson Robert,7/31/2020,5874.67,Unrestricted -Bay Minette,Payroll
Coastal Alabama CC,600080,Reynolds Russell,7/31/2020,570,Unrestricted Distance Ed,Payroll
Coastal Alabama CC,600080,Reynolds Russell,7/31/2020,5874.67,Unrestricted -Bay Minette,Payroll
Coastal Alabama CC,600081,Blevins R,7/31/2020,570,Unrestricted Distance Ed,Payroll
Coastal Alabama CC,600081,Blevins R,7/31/2020,11177.75,Unrestricted -Brewton,Payroll
Coastal Alabama CC,600082,Crabtree Dianne,7/31/2020,1425,Unrestricted Distance Ed,Payroll
Coastal Alabama CC,600082,Crabtree Dianne,7/31/2020,6486.33,Unrestricted -Bay Minette,Payroll
Coastal Alabama CC,600083,Lake Charles,7/31/2020,9405.92,Unrestricted Shared Services,Payroll
Coastal Alabama CC,600084,Lolley Dana,7/31/2020,855,Unrestricted Distance Ed,Payroll
Coastal Alabama CC,600084,Lolley Dana,7/31/2020,10073,Unrestricted-Monroeville,Payroll
Coastal Alabama CC,600085,Poirier Peter,7/31/2020,6222.67,Unrestricted -Fairhope Academy,Payroll
Coastal Alabama CC,600086,Smith James,7/31/2020,5028.5,Unrestricted -Fairhope Academy,Payroll
Coastal Alabama CC,600087,Baxter Joe,7/31/2020,7362.67,Unrestricted-Thomasville,Payroll
Coastal Alabama CC,600088,Callais Kenneth,7/31/2020,12762.33,Unrestricted -Fairhope Academy,Payroll
Coastal Alabama CC,600089,Carlisle Larry,7/31/2020,570,Unrestricted-Thomasville,Payroll
Coastal Alabama CC,600089,Carlisle Larry,7/31/2020,10421.67,Unrestricted-Gilbertown,Payroll
Coastal Alabama CC,600090,Lewis Rueben,7/31/2020,6709,Unrestricted-Thomasville,Payroll
Coastal Alabama CC,600091,Dees Scott,7/31/2020,6942.33,Unrestricted-Thomasville,Payroll
Coastal Alabama CC,600092,Hilderbrand Edgar,7/31/2020,4750.58,Unrestricted -Fairhope Academy,Payroll
Coastal Alabama CC,600093,Brazile Kenneth,7/31/2020,570,Unrestricted Distance Ed,Payroll
Coastal Alabama CC,600094,Beall Jeffrey,7/31/2020,855,Unrestricted Distance Ed,Payroll
Coastal Alabama CC,600094,Beall Jeffrey,7/31/2020,6801.67,Unrestricted -Bay Minette,Payroll
Coastal Alabama CC,600095,Bouriche Djamel,7/31/2020,2280,Unrestricted Distance Ed,Payroll
Coastal Alabama CC,600096,Bridges-Willis Edna,7/31/2020,1710,Unrestricted Distance Ed,Payroll
Coastal Alabama CC,600096,Bridges-Willis Edna,7/31/2020,9405.92,Unrestricted Shared Services,Payroll
Coastal Alabama CC,600097,Davis Kelli,7/31/2020,190,Unrestricted Distance Ed,Payroll
Coastal Alabama CC,600097,Davis Kelli,7/31/2020,10625.25,Unrestricted-Thomasville,Payroll
Coastal Alabama CC,600098,Dekle Stephanie,7/31/2020,2784.5,Unrestricted -Brewton,Payroll
Coastal Alabama CC,600099,Dixon Caren,7/31/2020,570,Unrestricted -Bay Minette,Payroll
Coastal Alabama CC,600100,Frye Samantha,7/31/2020,190,Unrestricted Distance Ed,Payroll
Coastal Alabama CC,600100,Frye Samantha,7/31/2020,10625.25,Unrestricted-Monroeville,Payroll
Coastal Alabama CC,600101,Grogan Christopher,7/31/2020,190,Unrestricted Distance Ed,Payroll
Coastal Alabama CC,600101,Grogan Christopher,7/31/2020,5986,Unrestricted -Bay Minette,Payroll
Coastal Alabama CC,600102,Jaye Vinson,7/31/2020,855,Unrestricted Distance Ed,Payroll
Coastal Alabama CC,600102,Jaye Vinson,7/31/2020,10828.5,Unrestricted-Thomasville,Payroll
Coastal Alabama CC,600103,King Courtney,7/31/2020,10073,Unrestricted-Fairhope,Payroll
Coastal Alabama CC,600104,Langham Janet,7/31/2020,5335.58,Unrestricted -Bay Minette,Payroll
Coastal Alabama CC,600105,Lapalme Andre,7/31/2020,285,Unrestricted Distance Ed,Payroll
Coastal Alabama CC,600105,Lapalme Andre,7/31/2020,12303.09,Unrestricted -Bay Minette,Payroll
Coastal Alabama CC,600106,Lovoy Thomas,7/31/2020,6708.61,Unrestricted -Gulf Shores,Payroll
Coastal Alabama CC,600107,Lucas Teresa,7/31/2020,190,Unrestricted Distance Ed,Payroll
Coastal Alabama CC,600107,Lucas Teresa,7/31/2020,10625.25,Unrestricted -Bay Minette,Payroll
Coastal Alabama CC,600108,Sawyer Mary,7/31/2020,855,Unrestricted Distance Ed,Payroll
Coastal Alabama CC,600108,Sawyer Mary,7/31/2020,5874.67,Unrestricted-Fairhope,Payroll
Coastal Alabama CC,600109,Turner Kenneth,7/31/2020,855,Unrestricted Distance Ed,Payroll
Coastal Alabama CC,600109,Turner Kenneth,7/31/2020,6801.67,Unrestricted-Thomasville,Payroll
Coastal Alabama CC,600110,Willis David,7/31/2020,190,Unrestricted Distance Ed,Payroll
Coastal Alabama CC,600110,Willis David,7/31/2020,7790.58,Unrestricted Shared Services,Payroll
Coastal Alabama CC,600111,Allen Kouri,7/31/2020,10275.5,Unrestricted -Bay Minette,Payroll
Coastal Alabama CC,600112,Gattis Michael,7/31/2020,10828.5,Unrestricted-Fairhope,Payroll
Coastal Alabama CC,600113,Lindsay Jennifer,7/31/2020,855,Unrestricted Distance Ed,Payroll
Coastal Alabama CC,600113,Lindsay Jennifer,7/31/2020,11381,Unrestricted-Fairhope,Payroll
Coastal Alabama CC,600114,Sims James,7/31/2020,570,Unrestricted Distance Ed,Payroll
Coastal Alabama CC,600114,Sims James,7/31/2020,13021.25,Unrestricted -Bay Minette,Payroll
Coastal Alabama CC,600115,Bates David,7/31/2020,1140,Unrestricted -Bay Minette,Payroll
Coastal Alabama CC,600115,Bates David,7/31/2020,11177.75,Unrestricted -Gulf Shores,Payroll
Coastal Alabama CC,600116,Brock Kevin,7/31/2020,1140,Unrestricted Distance Ed,Payroll
Coastal Alabama CC,600117,Brock Lori,7/31/2020,570,Unrestricted Distance Ed,Payroll
Coastal Alabama CC,600117,Brock Lori,7/31/2020,7199.33,Unrestricted -Gulf Shores,Payroll
Coastal Alabama CC,600118,Gordon Marcus,7/31/2020,570,Unrestricted Distance Ed,Payroll
Coastal Alabama CC,600118,Gordon Marcus,7/31/2020,6619.17,Unrestricted Shared Services,Payroll
Coastal Alabama CC,600119,Hart Courtney,7/31/2020,570,Unrestricted Distance Ed,Payroll
Coastal Alabama CC,600119,Hart Courtney,7/31/2020,570,Unrestricted-Fairhope,Payroll
Coastal Alabama CC,600120,Lehning John,7/31/2020,1710,Unrestricted Distance Ed,Payroll
Coastal Alabama CC,600120,Lehning John,7/31/2020,13453.67,Unrestricted-Thomasville,Payroll
Coastal Alabama CC,600121,McMillan Barbara,7/31/2020,11594.17,Unrestricted-Monroeville,Payroll
Coastal Alabama CC,600122,Gainer Lisa,7/31/2020,855,Unrestricted Distance Ed,Payroll
Coastal Alabama CC,600122,Gainer Lisa,7/31/2020,11177.75,Unrestricted -Brewton,Payroll
Coastal Alabama CC,600123,Stone Heather,7/31/2020,1710,Unrestricted Distance Ed,Payroll
Coastal Alabama CC,600123,Stone Heather,7/31/2020,6619.17,Unrestricted Shared Services,Payroll
Coastal Alabama CC,600124,Brown William,7/31/2020,5569,Unrestricted-Monroeville,Payroll
Coastal Alabama CC,600125,Millis Daniel,7/31/2020,570,Unrestricted Distance Ed,Payroll
Coastal Alabama CC,600125,Millis Daniel,7/31/2020,11796,Unrestricted -Bay Minette,Payroll
Coastal Alabama CC,600126,Dunnam Angela,7/31/2020,6639.67,Unrestricted -Bay Minette,Payroll
Coastal Alabama CC,600127,Mikkelsen Carmelita,7/31/2020,570,Unrestricted-Fairhope,Payroll
Coastal Alabama CC,600127,Mikkelsen Carmelita,7/31/2020,12576.5,Unrestricted -Bay Minette,Payroll
Coastal Alabama CC,600128,Dorman Scarlet,7/31/2020,1140,Unrestricted Distance Ed,Payroll
Coastal Alabama CC,600128,Dorman Scarlet,7/31/2020,7181.92,Unrestricted Shared Services,Payroll
Coastal Alabama CC,600129,Albaugh Stacey,7/31/2020,9156.58,Unrestricted -Brewton,Payroll
Coastal Alabama CC,600130,Conerly Lee,7/31/2020,190,Unrestricted Distance Ed,Payroll
Coastal Alabama CC,600130,Conerly Lee,7/31/2020,7062,Unrestricted Shared Services,Payroll
Coastal Alabama CC,600131,Hammond Erin,7/31/2020,5645.83,Unrestricted -Bay Minette,Payroll
Coastal Alabama CC,600132,Jacobs Amelia,7/31/2020,8414.66,Unrestricted -Brewton,Payroll
Coastal Alabama CC,600133,Kendall Kelly,7/31/2020,855,Unrestricted Distance Ed,Payroll
Coastal Alabama CC,600133,Kendall Kelly,7/31/2020,12624.83,Unrestricted -Gulf Shores,Payroll
Coastal Alabama CC,600134,Stradley Shana,7/31/2020,9520.09,Unrestricted -Bay Minette,Payroll
Coastal Alabama CC,600135,Whetstone Deborah,7/31/2020,2280,Unrestricted Distance Ed,Payroll
Coastal Alabama CC,600136,White Theresa,7/31/2020,855,Unrestricted Distance Ed,Payroll
Coastal Alabama CC,600136,White Theresa,7/31/2020,11177.75,Unrestricted -Bay Minette,Payroll
Coastal Alabama CC,600137,Chancery Jennifer,7/31/2020,7540.92,Unrestricted -Brewton,Payroll
Coastal Alabama CC,600138,Cole Jonathan,7/31/2020,7991.37,Unrestricted -Brewton,Payroll
Coastal Alabama CC,600139,Cooper Adrienne,7/31/2020,1140,Unrestricted Distance Ed,Payroll
Coastal Alabama CC,600139,Cooper Adrienne,7/31/2020,9723,Unrestricted-Fairhope,Payroll
Coastal Alabama CC,600140,Holloway Jennifer,7/31/2020,2280,Unrestricted Distance Ed,Payroll
Coastal Alabama CC,600140,Holloway Jennifer,7/31/2020,5874.67,Unrestricted-Fairhope,Payroll
Coastal Alabama CC,600141,Huff Schuyler,7/31/2020,760,Unrestricted Distance Ed,Payroll
Coastal Alabama CC,600141,Huff Schuyler,7/31/2020,1140,Unrestricted-Fairhope,Payroll
Coastal Alabama CC,600141,Huff Schuyler,7/31/2020,9520.09,Unrestricted -Bay Minette,Payroll
Coastal Alabama CC,600142,Kohen Mattie,7/31/2020,1520,Unrestricted-Thomasville,Payroll
Coastal Alabama CC,600142,Kohen Mattie,7/31/2020,6296.17,Unrestricted Shared Services,Payroll
Coastal Alabama CC,600143,Maness Jennifer,7/31/2020,2280,Unrestricted Distance Ed,Payroll
Coastal Alabama CC,600143,Maness Jennifer,7/31/2020,13453.67,Unrestricted -Bay Minette,Payroll
Coastal Alabama CC,600144,McElhaney Lynne,7/31/2020,760,Unrestricted-Fairhope,Payroll
Coastal Alabama CC,600145,Pimperl Timothy,7/31/2020,12006.5,Unrestricted -Brewton,Payroll
Coastal Alabama CC,600146,Richerson Crystal,7/31/2020,760,Unrestricted-Fairhope,Payroll
Coastal Alabama CC,600147,Shelton Brent,7/31/2020,760,Unrestricted -Bay Minette,Payroll
Coastal Alabama CC,600147,Shelton Brent,7/31/2020,760,Unrestricted Distance Ed,Payroll
Coastal Alabama CC,600147,Shelton Brent,7/31/2020,5415.67,Unrestricted-Monroeville,Payroll
Coastal Alabama CC,600148,Warren Audra,7/31/2020,8321.67,Unrestricted-Fairhope,Payroll
Coastal Alabama CC,600149,Watson Kevin,7/31/2020,11177.75,Unrestricted -Bay Minette,Payroll
Coastal Alabama CC,600150,Williford Joseph,7/31/2020,1520,Unrestricted -Bay Minette,Payroll
Coastal Alabama CC,600150,Williford Joseph,7/31/2020,7062,Unrestricted Shared Services,Payroll
Coastal Alabama CC,600151,Curow Teri,7/31/2020,760,Unrestricted -Bay Minette,Payroll
Coastal Alabama CC,600152,Ford-Green Jason,7/31/2020,13592,Unrestricted -Bay Minette,Payroll
Coastal Alabama CC,600153,Patel Vijay,7/31/2020,1520,Unrestricted Distance Ed,Payroll
Coastal Alabama CC,600153,Patel Vijay,7/31/2020,10073,Unrestricted -Bay Minette,Payroll
Coastal Alabama CC,600154,Baswell Melanie,7/31/2020,4943.6,Unrestricted-Fairhope,Payroll
Coastal Alabama CC,600155,Cook Mimi,7/31/2020,10073,Unrestricted -Bay Minette,Payroll
Coastal Alabama CC,600156,Cribbs Nigel,7/31/2020,190,Unrestricted -Bay Minette,Payroll
Coastal Alabama CC,600156,Cribbs Nigel,7/31/2020,190,Unrestricted-Monroeville,Payroll
Coastal Alabama CC,600157,Dees Wendy,7/31/2020,7579.83,Unrestricted-Monroeville,Payroll
Coastal Alabama CC,600158,Devillier Heather,7/31/2020,4497.33,Unrestricted -Bay Minette,Payroll
Coastal Alabama CC,600159,Ebert Tammy,7/31/2020,190,Unrestricted -Gulf Shores,Payroll
Coastal Alabama CC,600159,Ebert Tammy,7/31/2020,760,Unrestricted Distance Ed,Payroll
Coastal Alabama CC,600159,Ebert Tammy,7/31/2020,12762.33,Unrestricted -Bay Minette,Payroll
Coastal Alabama CC,600160,Edward Franklin,7/31/2020,570,Unrestricted Distance Ed,Payroll
Coastal Alabama CC,600160,Edward Franklin,7/31/2020,14016.08,Unrestricted -Bay Minette,Payroll
Coastal Alabama CC,600161,Einfeld Dana,7/31/2020,855,Unrestricted Distance Ed,Payroll
Coastal Alabama CC,600161,Einfeld Dana,7/31/2020,6750.67,Unrestricted-Fairhope,Payroll
Coastal Alabama CC,600162,Etheridge Rachel,7/31/2020,9632.58,Unrestricted-Monroeville,Payroll
Coastal Alabama CC,600163,Gainer Lloyd,7/31/2020,855,Unrestricted Distance Ed,Payroll
Coastal Alabama CC,600163,Gainer Lloyd,7/31/2020,6370.67,Unrestricted -Brewton,Payroll
Coastal Alabama CC,600164,Garretson Catherine,7/31/2020,760,Unrestricted-Monroeville,Payroll
Coastal Alabama CC,600164,Garretson Catherine,7/31/2020,6180.67,Unrestricted -Bay Minette,Payroll
Coastal Alabama CC,600165,Jackson Loletta,7/31/2020,760,Unrestricted Distance Ed,Payroll
Coastal Alabama CC,600165,Jackson Loletta,7/31/2020,12303.09,Unrestricted -Brewton,Payroll
Coastal Alabama CC,600166,Long John,7/31/2020,10487.2,Unrestricted-Thomasville,Payroll
Coastal Alabama CC,600167,Long Vicky,7/31/2020,10332.12,Unrestricted-Thomasville,Payroll
Coastal Alabama CC,600168,Lymon Jeannette,7/31/2020,4997.08,Unrestricted - Atmore,Payroll
Coastal Alabama CC,600169,Morisani Alyssa,7/31/2020,570,Unrestricted-Fairhope,Payroll
Coastal Alabama CC,600170,Pham Hieu,7/31/2020,9986.42,Unrestricted -Bay Minette,Payroll
Coastal Alabama CC,600171,Pimperl Elliot,7/31/2020,6942.33,Unrestricted Shared Services,Payroll
Coastal Alabama CC,600172,Thomas Cheryl,7/31/2020,12006.5,Unrestricted -Bay Minette,Payroll
Coastal Alabama CC,600173,Minard David,7/31/2020,11385.25,Unrestricted -Bay Minette,Payroll
Coastal Alabama CC,600174,Abrams Anthonell,7/31/2020,3167.92,AE-Federal Admin,Payroll
Coastal Alabama CC,600175,Diaz Courtney,7/31/2020,7166.67,AE - State Regular,Payroll
Coastal Alabama CC,600176,Gilkerson Erica,7/31/2020,3909.67,AE-Federal Regular,Payroll
Coastal Alabama CC,600177,Goines Tiffany,7/31/2020,3002.75,AE - State Regular,Payroll
Coastal Alabama CC,600178,Lee Stuart,7/31/2020,4074.75,AE-Federal Regular,Payroll
Coastal Alabama CC,600179,Montgomery Jacqueline,7/31/2020,3972.75,AE-Federal Regular,Payroll
Coastal Alabama CC,600180,Young Marlo,7/31/2020,3414.42,AE-Federal Regular,Payroll
Coastal Alabama CC,600181,Rolin Thomas,7/31/2020,11251.17,Prison,Payroll
Coastal Alabama CC,600182,Kelley Ronald,7/31/2020,6639.67,Unrestricted - Brookley Field,Payroll
Coastal Alabama CC,600183,Langlois Kevin,7/31/2020,12762.33,Unrestricted - Brookley Field,Payroll
Coastal Alabama CC,600184,McLean Scott,7/31/2020,6222.67,Unrestricted - Brookley Field,Payroll
Coastal Alabama CC,600185,Mosow David,7/31/2020,3336.33,Unrestricted - Brookley Field,Payroll
Coastal Alabama CC,600186,Naron Doyle,7/31/2020,6904,Unrestricted - Brookley Field,Payroll
Coastal Alabama CC,600187,Reed David,7/31/2020,6639.67,Unrestricted - Brookley Field,Payroll
Coastal Alabama CC,600188,Sopha Bruce,7/31/2020,10974.17,Unrestricted - Brookley Field,Payroll
Coastal Alabama CC,600189,Taylor Harold,7/31/2020,6639.67,Unrestricted - Brookley Field,Payroll
Coastal Alabama CC,600190,Watson Robert,7/31/2020,7750.33,Unrestricted - Brookley Field,Payroll
Coastal Alabama CC,600191,Bullard Wayne,7/31/2020,11251.17,Prison,Payroll
Coastal Alabama CC,600192,Bradley Arbo,7/31/2020,11177.75,Prison,Payroll
Coastal Alabama CC,600193,Wilson Denise,7/31/2020,570,Unrestricted Distance Ed,Payroll
Coastal Alabama CC,600194,Barnhill Kristen,7/31/2020,4968.75,Unrestricted-Fairhope,Payroll
Coastal Alabama CC,600195,Hussey Steven,7/31/2020,2937.48,NSF ,Payroll
Coastal Alabama CC,600195,Hussey Steven,7/31/2020,6219.1,Unrestricted-Fairhope,Payroll
Coastal Alabama CC,600196,Smith Merrilyn,7/31/2020,6333,Unrestricted-Thomasville,Payroll
Coastal Alabama CC,600197,Washington Chandra,7/31/2020,3002.75,Unrestricted-Thomasville,Payroll
Coastal Alabama CC,600198,Hurtubise James,7/31/2020,8139.83,Unrestricted -Gulf Shores,Payroll
Coastal Alabama CC,600199,Palamara Matthew,7/31/2020,1364.33,Unrestricted -Gulf Shores,Payroll
Coastal Alabama CC,600200,Smith Lavon,7/31/2020,6639.67,Prison,Payroll
Coastal Alabama CC,600201,Ethington Tracie,7/31/2020,4500,Unrestricted Shared Services,Payroll
Coastal Alabama CC,600202,Chaudron Chad,7/31/2020,5569,Unrestricted-Monroeville,Payroll
Coastal Alabama CC,600203,Lisenby Ryan,7/31/2020,5853.42,Unrestricted Shared Services,Payroll
Coastal Alabama CC,600204,McCutcheon Jeffrey,7/31/2020,10741.12,Unrestricted-Thomasville,Payroll
Coastal Alabama CC,600205,McIntosh Brian,7/31/2020,5874.67,Unrestricted-Thomasville,Payroll
Coastal Alabama CC,600206,Nelson Steven,7/31/2020,5457.33,Prison,Payroll
Coastal Alabama CC,600207,Watson Cody,7/31/2020,4998.33,Unrestricted - Atmore,Payroll
Coastal Alabama CC,600208,Bond Theresa,7/31/2020,4652.5,Unrestricted Shared Services,Payroll
Coastal Alabama CC,600209,Bonner Robert,7/31/2020,3002.5,Unrestricted Shared Services,Payroll
Coastal Alabama CC,600210,Brundidge Kaneisha,7/31/2020,4506.67,Unrestricted Shared Services,Payroll
Coastal Alabama CC,600211,Douglas Leslie,7/31/2020,5573.12,Unrestricted Shared Services,Payroll
Coastal Alabama CC,600212,Gourlay Thomas,7/31/2020,3497.17,Unrestricted Shared Services,Payroll
Coastal Alabama CC,600213,Meyers Aurora,7/31/2020,2701.81,Unrestricted Shared Services,Payroll
Coastal Alabama CC,600214,Nelson John,7/31/2020,2861.98,Unrestricted Shared Services,Payroll
Coastal Alabama CC,600215,Payne Pamela,7/31/2020,4404.92,Unrestricted Shared Services,Payroll
Coastal Alabama CC,600216,Bell Ginger,7/31/2020,4239.83,Unrestricted-Thomasville,Payroll
Coastal Alabama CC,600217,Fleming Kimberly,7/31/2020,3580.25,Unrestricted -Brewton,Payroll
